{"text_format":"1","workbook":"xlsx","n_sheets":9,"sheets":["Page de couverture","Résumé","A.Budgétisation réal.","Fonction publique et GRH","EAAP","Politiques&Suivi&Législation","Innovation","Décentralisation ","Transparence & Anti-corruption "],"not_rendered":{"charts":4,"images":1,"macros":0,"external_links":1,"defined_names":5,"comments":0,"pivot_tables":0},"unopened":[],"bounds":{"document_bytes":16777216,"sheet_cells":100000,"rows_first":2000,"rows_last":500,"rows_between":2000,"halvings":0,"cell_chars":16384,"cell_head_chars":4096},"cells_cut":0,"cells_raw":0,"read":"whole","date_system":"1900"}

{"sheet":"Page de couverture","index":0,"n_rows":29,"n_cols":5,"rows_kept":29,"cut":false,"hidden":false,"merged":[[28,1,28,2],[28,3,28,9],[17,4,17,8],[26,1,26,2],[26,3,26,9],[27,1,27,2],[27,3,27,9]]}
[]
[]
[]
[]
[]
[]
[]
[]
[]
[]
[]
[null,null,"Manuel pour la préparation, la mise en œuvre, "]
[null,null,"             le suivi, le reporting et l'évaluation "]
[null,null,null,"de la RAP et des stratégies sectorielles"]
[]
[null,null,null,"Conseils pour les partenaires de SIGMA"]
[]
[null,null,null,null," Annexe 4 : Partie II"]
[null,null,null,"Exemple de chiffrage - Albanie"]
[]
[null,null,null,"Calcul et présentation des coûts"]
[null,null,null,null," des actions et activités "]
[]
[]
[]
[]
[null,"2 Rue André Pascal 75775 Paris Cedex 16 France ",null,"Ce document est produit avec le soutien financier de l’Union européenne (UE). Il ne doit pas être présenté comme exprimant les vues officielles de l’UE, de l’OCDE ou de ses pays membres, ou des pays partenaires participant au Programme SIGMA. Les opinions exprimées et les arguments employés sont ceux des auteurs. \n© OECD 2018 – L'utilisation de ce matériel, sous forme numérique ou imprimée, est régie par les Termes et conditions disponibles sur la page du site Internet de l'OCDE http://www.oecd.org/termsandconditions."]
[null,"mailto:sigmaweb@oecd.org",null,"Ce document, ainsi que les données et les cartes géographiques qu'il contient, ne préjugent pas du statut ou de la souveraineté sur un quelconque territoire, de la délimitation des frontières et limites internationales et du nom d'un territoire, d'une ville ou d'une région, quelles qu'elles soient. \n"]
[null,"Tel: +33 (0) 1 45 24 82 00 www.sigmaweb.org ",null,"© OECD 2018 – L'utilisation de ce matériel, sous forme numérique ou imprimée, est régie par les Termes et conditions disponibles sur la page du site Internet de l'OCDE http://www.oecd.org/termsandconditions."]

{"sheet":"Résumé","index":1,"n_rows":59,"n_cols":13,"rows_kept":59,"cut":false,"hidden":false,"merged":[[33,2,33,10],[33,11,34,11],[42,1,42,11],[4,1,5,1],[4,2,5,2],[4,3,4,8],[21,1,22,1],[21,2,22,2],[21,3,21,8]]}
[]
[null,null,null,"Tableau de l'analyse résumée du chiffrage de la Stratégie transversale de réforme de l'administration publique "]
[]
[null,"Tableau 1 : Répartition des fonds par objectif "]
[null,"Objectifs","Coût potentiel total","Sources de financement"]
[null,null,null,"Budget de l'État","UE (IAP)","Donneurs (CdE +)","Banque mondiale","PNUD","Écart budgétaire"]
[null,"Objectif 1 ",{"$f":"'A.Budgétisation réal.'!F41","v":9204025},{"$f":"'A.Budgétisation réal.'!G41","v":8000},{"$f":"'A.Budgétisation réal.'!H41","v":450000},{"$f":"'A.Budgétisation réal.'!I41","v":0},{"$f":"'A.Budgétisation réal.'!J41","v":300000},{"$f":"'A.Budgétisation réal.'!K41","v":0},{"$f":"'A.Budgétisation réal.'!L41","v":8446025}]
[null,"Objectif 2",{"$f":"'A.Budgétisation réal.'!F63","v":789330},{"$f":"'A.Budgétisation réal.'!G63","v":7500},{"$f":"'A.Budgétisation réal.'!H63","v":0},{"$f":"'A.Budgétisation réal.'!I63","v":0},{"$f":"'A.Budgétisation réal.'!J63","v":0},{"$f":"'A.Budgétisation réal.'!K63","v":0},{"$f":"'A.Budgétisation réal.'!L63","v":781830}]
[null,"Objectif 3",{"$f":"'A.Budgétisation réal.'!F84","v":931375.4},{"$f":"'A.Budgétisation réal.'!G84","v":80645.400000000009},{"$f":"'A.Budgétisation réal.'!H84","v":0},{"$f":"'A.Budgétisation réal.'!I84","v":0},{"$f":"'A.Budgétisation réal.'!J84","v":72900},{"$f":"'A.Budgétisation réal.'!K84","v":0},{"$f":"'A.Budgétisation réal.'!L84","v":777830}]
[null,"Objectif 4",{"$f":"'A.Budgétisation réal.'!F96","v":3186525},{"$f":"'A.Budgétisation réal.'!G96","v":70000},{"$f":"'A.Budgétisation réal.'!H96","v":1000000},{"$f":"'A.Budgétisation réal.'!I96","v":315000},{"$f":"'A.Budgétisation réal.'!J96","v":0},{"$f":"'A.Budgétisation réal.'!K96","v":0},{"$f":"'A.Budgétisation réal.'!L96","v":1801525}]
[null,"Objectif 5",{"$f":"'A.Budgétisation réal.'!F103","v":33143170},{"$f":"'A.Budgétisation réal.'!G103","v":13703370},{"$f":"'A.Budgétisation réal.'!H103","v":0},{"$f":"'A.Budgétisation réal.'!I103","v":0},{"$f":"'A.Budgétisation réal.'!J103","v":15485722},{"$f":"'A.Budgétisation réal.'!K103","v":916078},{"$f":"'A.Budgétisation réal.'!L103","v":3038000}]
[null,"Objectif 6",{"$f":"'A.Budgétisation réal.'!F145","v":3601931},{"$f":"'A.Budgétisation réal.'!G145","v":567106.51500000001},{"$f":"'A.Budgétisation réal.'!H145","v":1372024.25},{"$f":"'A.Budgétisation réal.'!I145","v":0},{"$f":"'A.Budgétisation réal.'!J145","v":348000},{"$f":"'A.Budgétisation réal.'!K145","v":0},{"$f":"'A.Budgétisation réal.'!L145","v":1314800.2350000001}]
[null,"Objectif 7",{"$f":"'A.Budgétisation réal.'!F151","v":810000},{"$f":"'A.Budgétisation réal.'!G151","v":85000},{"$f":"'A.Budgétisation réal.'!H151","v":0},{"$f":"'A.Budgétisation réal.'!I151","v":0},{"$f":"'A.Budgétisation réal.'!J151","v":0},{"$f":"'A.Budgétisation réal.'!K151","v":0},{"$f":"'A.Budgétisation réal.'!L151","v":725000}]
[null,"Objectif 8",{"$f":"'A.Budgétisation réal.'!F165","v":10970077},{"$f":"'A.Budgétisation réal.'!G165","v":2322361.4861999997},{"$f":"'A.Budgétisation réal.'!H165","v":1272242},{"$f":"'A.Budgétisation réal.'!I165","v":0},{"$f":"'A.Budgétisation réal.'!J165","v":1583750},{"$f":"'A.Budgétisation réal.'!K165","v":0},{"$f":"'A.Budgétisation réal.'!L165","v":5791723.5137999998}]
[null,"Objectif 9",{"$f":"'A.Budgétisation réal.'!F172","v":13708081},{"$f":"'A.Budgétisation réal.'!G172","v":1974175},{"$f":"'A.Budgétisation réal.'!H172","v":0},{"$f":"'A.Budgétisation réal.'!I172","v":0},{"$f":"'A.Budgétisation réal.'!J172","v":262906},{"$f":"'A.Budgétisation réal.'!K172","v":0},{"$f":"'A.Budgétisation réal.'!L172","v":11471000}]
[null,"Objectif 10",{"$f":"'A.Budgétisation réal.'!F178","v":2700000},{"$f":"'A.Budgétisation réal.'!G178","v":0},{"$f":"'A.Budgétisation réal.'!H178","v":700000},{"$f":"'A.Budgétisation réal.'!I178","v":0},{"$f":"'A.Budgétisation réal.'!J178","v":0},{"$f":"'A.Budgétisation réal.'!K178","v":0},{"$f":"'A.Budgétisation réal.'!L178","v":2000000}]
[null,"Objectif 11",{"$f":"'A.Budgétisation réal.'!F183","v":600000},{"$f":"'A.Budgétisation réal.'!G183","v":0},{"$f":"'A.Budgétisation réal.'!H183","v":600000},{"$f":"'A.Budgétisation réal.'!I183","v":0},{"$f":"'A.Budgétisation réal.'!J183","v":0},{"$f":"'A.Budgétisation réal.'!K183","v":0},{"$f":"'A.Budgétisation réal.'!L183","v":0}]
[null,"Total",{"$f":"SUM(C7:C17)","v":79644514.400000006},{"$f":"SUM(D7:D17)","v":18818158.4012},5394266.25,315000,18053278,916078,36147733.748799995]
[]
[]
[null,"Tableau 2 : Répartition des fonds par domaine"]
[null,"Objectifs","Coût potentiel total","Sources de financement"]
[null,null,null,"Budget de l'État","UE (IAP)","Donneurs (CdE +)","Banque mondiale","PNUD","Écart financier"]
[null,"Fonction publique et ressources humaines ",{"$f":"'A.Budgétisation réal.'!E187","v":5819425},{"$f":"'A.Budgétisation réal.'!F187","v":405000},{"$f":"'A.Budgétisation réal.'!G187","v":1200000},{"$f":"'A.Budgétisation réal.'!H187","v":50000},{"$f":"'A.Budgétisation réal.'!I187","v":348000},{"$f":"'A.Budgétisation réal.'!J187","v":0},{"$f":"'A.Budgétisation réal.'!K187","v":3816425}]
[null,"École albanaise d'administration publique",{"$f":"'A.Budgétisation réal.'!E188","v":989131},{"$f":"'A.Budgétisation réal.'!F188","v":317106.51500000001},{"$f":"'A.Budgétisation réal.'!G188","v":672024.25},{"$f":"'A.Budgétisation réal.'!H188","v":0},{"$f":"'A.Budgétisation réal.'!I188","v":0},{"$f":"'A.Budgétisation réal.'!J188","v":0},{"$f":"'A.Budgétisation réal.'!K188","v":0.2349999999796637}]
[null,"Élaboration des politiques, législation et suivi",{"$f":"'A.Budgétisation réal.'!E189","v":10852580.4},{"$f":"'A.Budgétisation réal.'!F189","v":96145.400000000009},{"$f":"'A.Budgétisation réal.'!G189","v":450000},{"$f":"'A.Budgétisation réal.'!H189","v":0},{"$f":"'A.Budgétisation réal.'!I189","v":372900},{"$f":"'A.Budgétisation réal.'!J189","v":0},{"$f":"'A.Budgétisation réal.'!K189","v":9933535}]
[null,"Innovation ",{"$f":"'A.Budgétisation réal.'!E190","v":50483328},{"$f":"'A.Budgétisation réal.'!F190","v":13699906.486199999},{"$f":"'A.Budgétisation réal.'!G190","v":1272242},{"$f":"'A.Budgétisation réal.'!H190","v":0},{"$f":"'A.Budgétisation réal.'!I190","v":17332378},{"$f":"'A.Budgétisation réal.'!J190","v":916078},{"$f":"'A.Budgétisation réal.'!K190","v":17262723.513799999}]
[null,"Administration locale",{"$f":"'A.Budgétisation réal.'!E191","v":8127900},{"$f":"'A.Budgétisation réal.'!F191","v":4300000},{"$f":"'A.Budgétisation réal.'!G191","v":500000},{"$f":"'A.Budgétisation réal.'!H191","v":265000},{"$f":"'A.Budgétisation réal.'!I191","v":0},{"$f":"'A.Budgétisation réal.'!J191","v":0},{"$f":"'A.Budgétisation réal.'!K191","v":3062900}]
[null,"Transparence et  A/C ",{"$f":"'A.Budgétisation réal.'!E192","v":3372150},{"$f":"'A.Budgétisation réal.'!F192","v":0},{"$f":"'A.Budgétisation réal.'!G192","v":1300000},{"$f":"'A.Budgétisation réal.'!H192","v":0},{"$f":"'A.Budgétisation réal.'!I192","v":0},{"$f":"'A.Budgétisation réal.'!J192","v":0},{"$f":"'A.Budgétisation réal.'!K192","v":2072150}]
[null,null,{"$f":"SUM(C24:C29)","v":79644514.400000006},18818158.4012,5394266.25,315000,18053278,916078,36147733.748799995]
[]
[]
[null,"Tableau 3 : Répartition par poste de dépenses "]
[null,null,"Dépenses par poste en EURO",null,null,null,null,null,null,null,null,"Total"]
[null,null,"Fonds de rémunération pour le personnel supplémentaire  ","Dépenses pour les conférences/séminaires et la formation   ","Expertise (locale et étrangère)","Dépenses d'information publique (publications)   ","Immeubles","Logiciels informatiques","Équipement informatique","Fournitures de bureau","Autres dépenses et entretien"]
[null,"Fonction publique et ressources humaines ",{"$f":"'Fonction publique et GRH'!J44","v":0},{"$f":"'Fonction publique et GRH'!S44","v":267375},{"$f":"'Fonction publique et GRH'!V44+'Fonction publique et GRH'!Y44","v":4035050},{"$f":"'Fonction publique et GRH'!AB44","v":20000},{"$f":"'Fonction publique et GRH'!AC44","v":0},{"$f":"'Fonction publique et GRH'!AD44","v":613000},{"$f":"'Fonction publique et GRH'!AG44","v":200000},{"$f":"'Fonction publique et GRH'!AJ44","v":0},{"$f":"'Fonction publique et GRH'!AK44","v":684000},{"$f":"SUM(C36:K36)","v":5819425},{"$f":"L36-C24","v":0}]
[null,"École albanaise d'administration publique",{"$f":"EAAP!K45","v":72000},{"$f":"EAAP!T45","v":501435},{"$f":"EAAP!W45+EAAP!Z45","v":140217},{"$f":"EAAP!AC45","v":4000},{"$f":"EAAP!AD45","v":70000},{"$f":"EAAP!AE45","v":70000},{"$f":"EAAP!AH45","v":39000},{"$f":"EAAP!AK45","v":16000},{"$f":"EAAP!AL45","v":76479},989131,{"$f":"L37-C25","v":0}]
[null,"Élaboration des politiques, législation et suivi",{"$f":"'Politiques&Suivi&Législation'!L88","v":259200},{"$f":"'Politiques&Suivi&Législation'!U88","v":883515},{"$f":"'Politiques&Suivi&Législation'!X88+'Politiques&Suivi&Législation'!AA88","v":9077468.2571428567},{"$f":"'Politiques&Suivi&Législation'!AD88","v":179500},{"$f":"'Politiques&Suivi&Législation'!AE88","v":0},{"$f":"'Politiques&Suivi&Législation'!AF88","v":250000},{"$f":"'Politiques&Suivi&Législation'!AI88","v":0},{"$f":"'Politiques&Suivi&Législation'!AL88","v":0},{"$f":"'Politiques&Suivi&Législation'!AM88","v":202897.14285714284},10852580.4,0]
[null,"Innovation ",{"$f":"Innovation!K36","v":3435720},{"$f":"Innovation!T36","v":200256},{"$f":"Innovation!Z36+Innovation!W36","v":10534246},{"$f":"Innovation!AC36","v":386728},{"$f":"Innovation!AD36","v":18282740},{"$f":"Innovation!AE36","v":8628015},{"$f":"Innovation!AH36","v":5172639},{"$f":"Innovation!AK36","v":50640},{"$f":"Innovation!AL36","v":3792344},50483328,0]
[null,"Administration locale",{"$f":"'Décentralisation '!J16","v":0},{"$f":"'Décentralisation '!S16","v":238250},{"$f":"'Décentralisation '!V16+'Décentralisation '!Y16","v":612650},{"$f":"'Décentralisation '!AB16","v":0},{"$f":"'Décentralisation '!AC16","v":4830000},{"$f":"'Décentralisation '!AD16","v":1542000},{"$f":"'Décentralisation '!AG16","v":905000},{"$f":"'Décentralisation '!AJ16","v":0},{"$f":"'Décentralisation '!AK16","v":0},8127900,0]
[null,"Transparence et A/C ",{"$f":"'Transparence & Anti-corruption '!J26","v":0},{"$f":"'Transparence & Anti-corruption '!S26","v":4450},{"$f":"'Transparence & Anti-corruption '!V26+'Transparence & Anti-corruption '!Y26","v":485750},{"$f":"'Transparence & Anti-corruption '!AB26","v":0},{"$f":"'Transparence & Anti-corruption '!AC26","v":0},{"$f":"'Transparence & Anti-corruption '!AD26","v":674000},{"$f":"'Transparence & Anti-corruption '!AG26","v":200000},{"$f":"'Transparence & Anti-corruption '!AJ26","v":0},{"$f":"'Transparence & Anti-corruption '!AK26","v":2007950},3372150,0]
[null,null,{"$f":"SUM(C36:C41)","v":3766920},2095281,24885381.257142857,590228,23182740,11777015,6516639,66640,6763670.1428571427,79644514.400000006,0]
[null,"En part spécifique"]
[null,"Fonction publique et ressources humaines ",{"$f":"C36/$L$36","v":0},{"$f":"D36/$L$36","v":4.5945260914952935E-2},0.69337606378637062,3.4367656598375271E-3,0,0.1053368674740202,3.4367656598375269E-2,0,0.11753738556644341,{"$f":"SUM(C44:K44)","v":0.99999999999999989}]
[null,"École albanaise d'administration publique",{"$f":"C37/$L$37","v":7.2791167196256112E-2},{"$f":"D37/$L$37","v":0.50694498504242613},0.14175776514940894,4.0439537331253394E-3,7.0769190329693435E-2,7.0769190329693435E-2,3.9428548897972059E-2,1.6175814932501358E-2,7.7319384388923204E-2,1]
[null,"Élaboration des politiques, législation et suivi",{"$f":"C38/$L$38","v":2.3883720778516415E-2},{"$f":"D38/$L$38","v":8.1410592452279829E-2},0.83643409424940607,1.6539845215060557E-2,0,2.303599612125426E-2,0,0,1.8695751183482854E-2,1]
[null,"Innovation ",{"$f":"C39/$L$39","v":6.8056527493591548E-2},{"$f":"D39/$L$39","v":3.9667749321122409E-3},0.20866781999792089,7.6605092279177795E-3,0.36215401647054646,0.17090820557630432,0.1024623218184031,1.0031034404070984E-3,7.5120721042796545E-2,1]
[null,"Administration locale",{"$f":"C40/$L$40","v":0},{"$f":"D40/$L$40","v":2.9312614574490335E-2},7.5376173427330551E-2,0,0.59424943712398037,0.18971690104455025,0.1113448738296485,0,0,1]
[null,"Transparence et A/C ",{"$f":"C41/$L$41","v":0},{"$f":"D41/$L$41","v":1.3196328751686609E-3},0.14404756609284877,0,0,0.19987248491318596,5.9309342704209483E-2,0,0.59545097341458708,1]
[null,null,{"$f":"SUM(C44:C49)","v":0.16473141546836406},0.66889986079143016,2.0996594827032857,3.1681073835941202E-2,1.0271726439242204,0.75963964545900853,0.34691274384860848,1.7178918372908455E-2,0.88412421559623311,6]
[]
[null,"Tableau : Sources de financement"]
[null,null,"Total"]
[null,"Budget de l'État",{"$f":"D30","v":18818158.4012}]
[null,"UE (IAP)",{"$f":"E30","v":5394266.25}]
[null,"Donneurs (CdE+)",{"$f":"F30","v":315000}]
[null,"Banque mondiale",{"$f":"G30","v":18053278}]
[null,{"$f":"H23","v":"PNUD"},{"$f":"H30","v":916078}]
[null,"Écart financier",{"$f":"I30","v":36147733.748799995}]

{"sheet":"A.Budgétisation réal.","index":2,"n_rows":200,"n_cols":19,"rows_kept":200,"cut":false,"hidden":false,"merged":[[97,0,99,0],[102,1,102,3],[48,1,49,1],[48,0,49,0],[91,1,94,1],[83,1,83,3],[84,1,84,3],[97,1,99,1],[85,0,88,0],[85,1,88,1],[89,0,90,0],[89,1,90,1],[91,0,94,0],[96,1,96,11],[95,1,95,3],[74,0,77,0],[79,0,82,0],[79,1,82,1],[50,0,53,0],[50,1,53,1],[62,1,62,3],[64,0,69,0],[74,1,78,1],[1,1,1,5],[2,5,6,5],[23,0,25,0],[23,1,25,1],[9,0,18,0],[21,3,22,3],[21,2,22,2],[44,1,47,1],[40,1,40,3],[36,1,39,1],[36,0,39,0],[44,0,47,0],[42,0,43,0],[42,1,43,1],[41,1,41,11],[2,6,4,11],[26,0,28,0],[26,1,28,1],[29,0,30,0],[29,1,30,1],[9,1,18,1],[8,1,8,11],[5,6,6,6],[34,0,35,0],[109,1,110,1],[111,0,114,0],[150,1,150,3],[121,0,124,0],[34,1,35,1],[31,0,32,0],[31,1,32,1],[5,11,6,11],[2,0,6,0],[2,1,6,1],[2,2,6,3],[2,4,6,4],[31,4,32,4],[64,1,69,1],[70,0,73,0],[70,1,73,1],[54,0,56,0],[54,1,56,1],[57,0,59,0],[57,1,59,1],[63,1,63,11],[60,1,61,1],[60,0,61,0],[115,0,116,0],[145,1,145,11],[162,1,163,1],[164,1,164,3],[171,1,171,3],[152,0,153,0],[152,1,153,1],[167,0,169,0],[151,1,151,11],[103,1,103,11],[126,1,134,1],[135,1,143,1],[117,0,118,0],[117,1,118,1],[115,1,116,1],[119,0,120,0],[119,1,120,1],[135,0,143,0],[126,0,134,0],[105,0,107,0],[105,1,107,1],[121,1,125,1],[144,1,144,3],[111,1,114,1],[109,0,110,0],[183,1,183,3],[182,1,182,3],[178,1,178,11],[172,1,172,11],[146,0,147,0],[146,1,147,1],[165,1,165,11],[177,1,177,3],[167,1,169,1],[159,0,161,0],[159,1,161,1],[162,0,163,0],[156,0,157,0],[156,1,157,1],[175,0,176,0],[175,1,176,1],[173,0,174,0],[173,1,174,1]]}
[]
[null,"Tableau 1 : Estimation du coût de la Stratégie transversale de réforme de l'administration publique "]
["N°","Actions","Activités/Indicateurs",null,"Explications","Coût estimé des réalisations","Sources de financement (par réalisation) "]
[]
[]
[null,null,null,null,null,null,"Budget de l'État (PBMT 2015-2017)",null,null,null,null,"Écart budgétaire"]
[null,null,null,null,null,null,null,"IAP","Donneurs (CdE+)","BM","PNUD","Financial gap"]
[1,2,3,4,null,5,6,7,8,9,10,11]
[1,"Objectif 1 - Amélioration de la planification et de la coordination des politiques de préparation des documents stratégiques du gouvernement, qui transforment les priorités en actions concrètes."]
[1.1000000000000001,"Évaluation de la situation et du cadre réglementaire actuels pour préparer des stratégies sectorielles et transversales complémentaires des compétences des parties prenantes impliquées dans le processus (Unités centrales du Bureau du Premier ministre et unités des institutions centrales).","1.1.1",{"$f":"'Politiques&Suivi&Législation'!F10","v":"Analyse de l'évaluation de la situation"},null,{"$f":"'Politiques&Suivi&Législation'!AN10","v":149500},{"$f":"'Politiques&Suivi&Législation'!AO10","v":0},{"$f":"'Politiques&Suivi&Législation'!AP10","v":0},{"$f":"'Politiques&Suivi&Législation'!AQ10","v":0},{"$f":"'Politiques&Suivi&Législation'!AR10","v":25000},{"$f":"'Politiques&Suivi&Législation'!AS10","v":0},{"$f":"'Politiques&Suivi&Législation'!AT10","v":124500}]
[null,null,"1.1.2",{"$f":"'Politiques&Suivi&Législation'!F11","v":"Révision du cadre réglementaire pour les stratégies sectorielles et transversales (Révision de l'Ordre sur la préparation des stratégies sectorielles et transversales) "},null,{"$f":"'Politiques&Suivi&Législation'!AN11","v":25000},null,{"$f":"'Politiques&Suivi&Législation'!AP11","v":0},{"$f":"'Politiques&Suivi&Législation'!AQ11","v":0},{"$f":"'Politiques&Suivi&Législation'!AR11","v":25000},{"$f":"'Politiques&Suivi&Législation'!AS11","v":0},{"$f":"'Politiques&Suivi&Législation'!AT11","v":0}]
[null,null,"1.1.3",{"$f":"'Politiques&Suivi&Législation'!F12","v":"Révision du fonctionnement d'autres groupes transversaux dans les GPGI (groupes de politiques de gestion intégrée) (y compris tout le cycle d'élaboration des politiques - mise en oeuvre - suivi) "},null,{"$f":"'Politiques&Suivi&Législation'!AN12","v":1041000},{"$f":"'Politiques&Suivi&Législation'!AO12","v":7000},{"$f":"'Politiques&Suivi&Législation'!AP12","v":0},{"$f":"'Politiques&Suivi&Législation'!AQ12","v":0},{"$f":"'Politiques&Suivi&Législation'!AR12","v":0},{"$f":"'Politiques&Suivi&Législation'!AS12","v":0},{"$f":"'Politiques&Suivi&Législation'!AT12","v":1034000}]
[null,null,"1.1.4",{"$f":"'Politiques&Suivi&Législation'!F13","v":"Assistance au fonctionnement du projet pilote de GPGI (eau, social, compétitivité)"},null,{"$f":"'Politiques&Suivi&Législation'!AN13","v":450000},{"$f":"'Politiques&Suivi&Législation'!AO13","v":0},{"$f":"'Politiques&Suivi&Législation'!AP13","v":450000},{"$f":"'Politiques&Suivi&Législation'!AQ13","v":0},{"$f":"'Politiques&Suivi&Législation'!AR13","v":0},{"$f":"'Politiques&Suivi&Législation'!AS13","v":0},{"$f":"'Politiques&Suivi&Législation'!AT13","v":0}]
[null,null,"1.1.5",{"$f":"'Politiques&Suivi&Législation'!F14","v":"Assistance au fonctionnement des autres GPGI"},null,{"$f":"'Politiques&Suivi&Législation'!AN14","v":1656375},{"$f":"'Politiques&Suivi&Législation'!AO14","v":0},{"$f":"'Politiques&Suivi&Législation'!AP14","v":0},{"$f":"'Politiques&Suivi&Législation'!AQ14","v":0},{"$f":"'Politiques&Suivi&Législation'!AR14","v":0},{"$f":"'Politiques&Suivi&Législation'!AS14","v":0},{"$f":"'Politiques&Suivi&Législation'!AT14","v":1656375}]
[null,null,"1.1.6",{"$f":"'Politiques&Suivi&Législation'!F15","v":"Préparation d'un programme de formation pour l'ensemble du personnel responsable de l'élaboration des politiques dans les ministères sectoriels (départements d'élaboration et de coordination des politiques), pour la rédaction des documents et politiques stratégiques. "},null,{"$f":"'Politiques&Suivi&Législation'!AN15","v":42000},{"$f":"'Politiques&Suivi&Législation'!AO15","v":1000},{"$f":"'Politiques&Suivi&Législation'!AP15","v":0},{"$f":"'Politiques&Suivi&Législation'!AQ15","v":0},{"$f":"'Politiques&Suivi&Législation'!AR15","v":0},{"$f":"'Politiques&Suivi&Législation'!AS15","v":0},{"$f":"'Politiques&Suivi&Législation'!AT15","v":41000}]
[null,null,"1.1.7",{"$f":"'Politiques&Suivi&Législation'!F16","v":"Mise en œuvre du programme de formation pour tout le personnel responsable de l'élaboration des politiques dans les ministères sectoriels (départements d'élaboration et de coordination des politiques) "},null,{"$f":"'Politiques&Suivi&Législation'!AN16","v":109700},{"$f":"'Politiques&Suivi&Législation'!AO16","v":0},{"$f":"'Politiques&Suivi&Législation'!AP16","v":0},{"$f":"'Politiques&Suivi&Législation'!AQ16","v":0},{"$f":"'Politiques&Suivi&Législation'!AR16","v":0},{"$f":"'Politiques&Suivi&Législation'!AS16","v":0},{"$f":"'Politiques&Suivi&Législation'!AT16","v":109700}]
[null,null,"1.1.8",{"$f":"'Politiques&Suivi&Législation'!F17","v":"Préparation de stratégies et documents transversaux "},null,{"$f":"'Politiques&Suivi&Législation'!AN17","v":1662500},{"$f":"'Politiques&Suivi&Législation'!AO17","v":0},{"$f":"'Politiques&Suivi&Législation'!AP17","v":0},{"$f":"'Politiques&Suivi&Législation'!AQ17","v":0},{"$f":"'Politiques&Suivi&Législation'!AR17","v":0},{"$f":"'Politiques&Suivi&Législation'!AS17","v":0},{"$f":"'Politiques&Suivi&Législation'!AT17","v":1662500}]
[null,null,"1.1.9",{"$f":"'Politiques&Suivi&Législation'!F18","v":"Préparation des Plans de gestion intégrée (PGI) des ministères sectoriels "},null,{"$f":"'Politiques&Suivi&Législation'!AN18","v":332500},{"$f":"'Politiques&Suivi&Législation'!AO18","v":0},{"$f":"'Politiques&Suivi&Législation'!AP18","v":0},{"$f":"'Politiques&Suivi&Législation'!AQ18","v":0},{"$f":"'Politiques&Suivi&Législation'!AR18","v":0},{"$f":"'Politiques&Suivi&Législation'!AS18","v":0},{"$f":"'Politiques&Suivi&Législation'!AT18","v":332500}]
[null,null,"1.1.10",{"$f":"'Politiques&Suivi&Législation'!F19","v":"Publication des PGI"},null,{"$f":"'Politiques&Suivi&Législation'!AN19","v":28500},{"$f":"'Politiques&Suivi&Législation'!AO19","v":0},{"$f":"'Politiques&Suivi&Législation'!AP19","v":0},{"$f":"'Politiques&Suivi&Législation'!AQ19","v":0},{"$f":"'Politiques&Suivi&Législation'!AR19","v":0},{"$f":"'Politiques&Suivi&Législation'!AS19","v":0},{"$f":"'Politiques&Suivi&Législation'!AT19","v":28500}]
[null,null,"1.1.11",{"$f":"'Politiques&Suivi&Législation'!F23","v":"Analyse de l'évaluation de la situation"},null,{"$f":"'Politiques&Suivi&Législation'!AN23","v":61500},{"$f":"'Politiques&Suivi&Législation'!AO23","v":0},{"$f":"'Politiques&Suivi&Législation'!AP23","v":0},{"$f":"'Politiques&Suivi&Législation'!AQ23","v":0},{"$f":"'Politiques&Suivi&Législation'!AR23","v":0},{"$f":"'Politiques&Suivi&Législation'!AS23","v":0},{"$f":"'Politiques&Suivi&Législation'!AT23","v":61500}]
[null,null,"1.1.12",{"$f":"'Politiques&Suivi&Législation'!F24","v":"Examen du cadre institutionnel et légal pertinent (rédaction d'un nouvel Ordre, Manuel de SPI, et examen du calendrier annuel du SPI) "},null,{"$f":"'Politiques&Suivi&Législation'!AN24","v":49000},{"$f":"'Politiques&Suivi&Législation'!AO24","v":0},{"$f":"'Politiques&Suivi&Législation'!AP24","v":0},{"$f":"'Politiques&Suivi&Législation'!AQ24","v":0},{"$f":"'Politiques&Suivi&Législation'!AR24","v":0},{"$f":"'Politiques&Suivi&Législation'!AS24","v":0},{"$f":"'Politiques&Suivi&Législation'!AT24","v":49000}]
[null,null,"1.1.13",{"$f":"'Politiques&Suivi&Législation'!F25","v":"Mise en œuvre du nouveau système et renforcement des compétences"},null,{"$f":"'Politiques&Suivi&Législation'!AN25","v":130200},{"$f":"'Politiques&Suivi&Législation'!AO25","v":0},{"$f":"'Politiques&Suivi&Législation'!AP25","v":0},{"$f":"'Politiques&Suivi&Législation'!AQ25","v":0},{"$f":"'Politiques&Suivi&Législation'!AR25","v":0},{"$f":"'Politiques&Suivi&Législation'!AS25","v":0},{"$f":"'Politiques&Suivi&Législation'!AT25","v":130200}]
[null,null,null,null,null,{"$f":"'Politiques&Suivi&Législation'!AN26","v":367200},{"$f":"'Politiques&Suivi&Législation'!AO26","v":0},{"$f":"'Politiques&Suivi&Législation'!AP26","v":0},{"$f":"'Politiques&Suivi&Législation'!AQ26","v":0},{"$f":"'Politiques&Suivi&Législation'!AR26","v":0},{"$f":"'Politiques&Suivi&Législation'!AS26","v":0},{"$f":"'Politiques&Suivi&Législation'!AT26","v":367200}]
[1.2,"Préparation du cadre réglementaire pour la rédaction des stratégies sectorielles et transversales, et des documents stratégiques sectoriels 2015-2020, dans le cadre de la SNID (Stratégie nationale pour l'intégration et le développement) 2015-2020.","1.2.1",{"$f":"'Politiques&Suivi&Législation'!F20","v":"Préparation d'analyses sectorielles et transversales de la mise en œuvre à moyen terme (phase 2014/15-2016)"},null,{"$f":"'Politiques&Suivi&Législation'!AN20","v":227500},{"$f":"'Politiques&Suivi&Législation'!AO20","v":0},{"$f":"'Politiques&Suivi&Législation'!AP20","v":0},{"$f":"'Politiques&Suivi&Législation'!AQ20","v":0},{"$f":"'Politiques&Suivi&Législation'!AR20","v":0},{"$f":"'Politiques&Suivi&Législation'!AS20","v":0},{"$f":"'Politiques&Suivi&Législation'!AT20","v":227500}]
[null,null,"1.2.2",{"$f":"'Politiques&Suivi&Législation'!F21","v":"Analyse à moyen terme de la mise en œuvre de la SNID 2014-2020 "},null,{"$f":"'Politiques&Suivi&Législation'!AN21","v":71000},{"$f":"'Politiques&Suivi&Législation'!AO21","v":0},{"$f":"'Politiques&Suivi&Législation'!AP21","v":0},{"$f":"'Politiques&Suivi&Législation'!AQ21","v":0},{"$f":"'Politiques&Suivi&Législation'!AR21","v":0},{"$f":"'Politiques&Suivi&Législation'!AS21","v":0},{"$f":"'Politiques&Suivi&Législation'!AT21","v":71000}]
[null,null,"1.2.3",{"$f":"'Politiques&Suivi&Législation'!F22","v":"Révision à moyen terme des stratégies et documents stratégiques de la SNID 2014-2020"},null,{"$f":"'Politiques&Suivi&Législation'!AN22","v":1633500},{"$f":"'Politiques&Suivi&Législation'!AO22","v":0},{"$f":"'Politiques&Suivi&Législation'!AP22","v":0},{"$f":"'Politiques&Suivi&Législation'!AQ22","v":0},{"$f":"'Politiques&Suivi&Législation'!AR22","v":0},{"$f":"'Politiques&Suivi&Législation'!AS22","v":0},{"$f":"'Politiques&Suivi&Législation'!AT22","v":1633500}]
[1.3,"Renforcement des compétences dans le Département de la programmation et du financement du développement et de l'aide étrangère (DPFDDAE) concernant la planification stratégique et la planification des politiques publiques , sur la base d'une évaluation des besoins en formation.","1.3.1",{"$f":"'Politiques&Suivi&Législation'!F27","v":"Recrutement de personnel"},null,{"$f":"'Politiques&Suivi&Législation'!AN27","v":259200},{"$f":"'Politiques&Suivi&Législation'!AO27","v":0},{"$f":"'Politiques&Suivi&Législation'!AP27","v":0},{"$f":"'Politiques&Suivi&Législation'!AQ27","v":0},{"$f":"'Politiques&Suivi&Législation'!AR27","v":0},{"$f":"'Politiques&Suivi&Législation'!AS27","v":0},{"$f":"'Politiques&Suivi&Législation'!AT27","v":259200}]
[null,null,"1.3.2",{"$f":"'Politiques&Suivi&Législation'!F28","v":"Formation et séminaires avec le personnel du Département de la programmation et du financement du développement et de l'aide étrangère."},null,{"$f":"'Politiques&Suivi&Législation'!AN28","v":6500},{"$f":"'Politiques&Suivi&Législation'!AO28","v":0},{"$f":"'Politiques&Suivi&Législation'!AP28","v":0},{"$f":"'Politiques&Suivi&Législation'!AQ28","v":0},{"$f":"'Politiques&Suivi&Législation'!AR28","v":0},{"$f":"'Politiques&Suivi&Législation'!AS28","v":0},{"$f":"'Politiques&Suivi&Législation'!AT28","v":6500}]
[null,null,"1.3.3",{"$f":"'Politiques&Suivi&Législation'!F29","v":"Voyages d'études pour comprendre les pratiques et expériences d'autres pays. "},null,{"$f":"'Politiques&Suivi&Législation'!AN29","v":9000},{"$f":"'Politiques&Suivi&Législation'!AO29","v":0},{"$f":"'Politiques&Suivi&Législation'!AP29","v":0},{"$f":"'Politiques&Suivi&Législation'!AQ29","v":0},{"$f":"'Politiques&Suivi&Législation'!AR29","v":0},{"$f":"'Politiques&Suivi&Législation'!AS29","v":0},{"$f":"'Politiques&Suivi&Législation'!AT29","v":9000}]
[1.4,"Renforcement des compétences dans les institutions centrales, après avoir évalué les besoins concernant la planification stratégique et la planification des politiques publiques (ainsi que l'utilisation du SPI et du système d'information du SPI).","1.4.1",{"$f":"'Politiques&Suivi&Législation'!F30","v":"Mise en place du SISPI"},null,{"$f":"'Politiques&Suivi&Législation'!AN30","v":250000},{"$f":"'Politiques&Suivi&Législation'!AO30","v":0},{"$f":"'Politiques&Suivi&Législation'!AP30","v":0},{"$f":"'Politiques&Suivi&Législation'!AQ30","v":0},{"$f":"'Politiques&Suivi&Législation'!AR30","v":250000},{"$f":"'Politiques&Suivi&Législation'!AS30","v":0},{"$f":"'Politiques&Suivi&Législation'!AT30","v":0}]
[null,null,"1.4.3",{"$f":"'Politiques&Suivi&Législation'!F31","v":"Formation du personnel des institutions centrales concernant la gestion et la maintenance du SISPI."},null,{"$f":"'Politiques&Suivi&Législation'!AN31","v":11190},{"$f":"'Politiques&Suivi&Législation'!AO31","v":0},{"$f":"'Politiques&Suivi&Législation'!AP31","v":0},{"$f":"'Politiques&Suivi&Législation'!AQ31","v":0},{"$f":"'Politiques&Suivi&Législation'!AR31","v":0},{"$f":"'Politiques&Suivi&Législation'!AS31","v":0},{"$f":"'Politiques&Suivi&Législation'!AT31","v":11190}]
[null,null,"1.5.2",{"$f":"'Politiques&Suivi&Législation'!F32","v":"Renforcement des compétences des institutions utilisant le SIMFA, et rédaction des rapports de suivi pertinents."},"La valeur du SIMFA n'est pas inclue, car elle est comprise dans la Stratégie de GFP comme activité budgétisée. ",{"$f":"'Politiques&Suivi&Législation'!AN32","v":0},{"$f":"'Politiques&Suivi&Législation'!AO32","v":0},{"$f":"'Politiques&Suivi&Législation'!AP32","v":0},{"$f":"'Politiques&Suivi&Législation'!AQ32","v":0},{"$f":"'Politiques&Suivi&Législation'!AR32","v":0},{"$f":"'Politiques&Suivi&Législation'!AS32","v":0},{"$f":"'Politiques&Suivi&Législation'!AT32","v":0}]
[null,null,"1.5.3",{"$f":"'Politiques&Suivi&Législation'!F33","v":"Renforcement des compétences du MdF pour la gestion du SIMFA. "},null,{"$f":"'Politiques&Suivi&Législation'!AN33","v":0},{"$f":"'Politiques&Suivi&Législation'!AO33","v":0},{"$f":"'Politiques&Suivi&Législation'!AP33","v":0},{"$f":"'Politiques&Suivi&Législation'!AQ33","v":0},{"$f":"'Politiques&Suivi&Législation'!AR33","v":0},{"$f":"'Politiques&Suivi&Législation'!AS33","v":0},{"$f":"'Politiques&Suivi&Législation'!AT33","v":0}]
[1.6,"Renforcement des compétences de l'administration centrale pour la rédaction du PBMT (Programme budgétaire à moyen terme).","1.6.1",{"$f":"'Politiques&Suivi&Législation'!F34","v":"Renforcement des compétences des institutions en lien avec le Programme budgétaire à moyen terme. "},null,{"$f":"'Politiques&Suivi&Législation'!AN34","v":27900},{"$f":"'Politiques&Suivi&Législation'!AO34","v":0},{"$f":"'Politiques&Suivi&Législation'!AP34","v":0},{"$f":"'Politiques&Suivi&Législation'!AQ34","v":0},{"$f":"'Politiques&Suivi&Législation'!AR34","v":0},{"$f":"'Politiques&Suivi&Législation'!AS34","v":0},{"$f":"'Politiques&Suivi&Législation'!AT34","v":27900}]
[1.7,"Renforcement des compétences des ministères sectoriels en termes de rédaction des politiques, des stratégies, des plans d'action et des programmes de développement.",null,{"$f":"'Politiques&Suivi&Législation'!F35","v":"Renforcement des compétences des ministères sectoriels par la mise en œuvre du Programme de formation pour la planification stratégique.  "},null,{"$f":"'Politiques&Suivi&Législation'!AN35","v":62590},{"$f":"'Politiques&Suivi&Législation'!AO35","v":0},{"$f":"'Politiques&Suivi&Législation'!AP35","v":0},{"$f":"'Politiques&Suivi&Législation'!AQ35","v":0},{"$f":"'Politiques&Suivi&Législation'!AR35","v":0},{"$f":"'Politiques&Suivi&Législation'!AS35","v":0},{"$f":"'Politiques&Suivi&Législation'!AT35","v":62590}]
[null,null,null,{"$f":"'Politiques&Suivi&Législation'!F36","v":"Renforcement des compétences des unités chargées de l'élaboration des politiques pour garantir une bonne direction et de bons conseils pour la rédaction et le suivi des documents stratégiques. "},null,{"$f":"'Politiques&Suivi&Législation'!AN36","v":13170},{"$f":"'Politiques&Suivi&Législation'!AO36","v":0},{"$f":"'Politiques&Suivi&Législation'!AP36","v":0},{"$f":"'Politiques&Suivi&Législation'!AQ36","v":0},{"$f":"'Politiques&Suivi&Législation'!AR36","v":0},{"$f":"'Politiques&Suivi&Législation'!AS36","v":0},{"$f":"'Politiques&Suivi&Législation'!AT36","v":13170}]
[1.8,"Renforcement des compétences et amélioration du fonctionnement du Groupe de gesiton stratégique comme strucutre de coordination au sein de chaque ministère.","1.8.1",{"$f":"'Politiques&Suivi&Législation'!F38","v":"Évaluation de la situation en termes de fonctionnement des Groupes de gestion stratégique (GGS) "},null,{"$f":"'Politiques&Suivi&Législation'!AN38","v":55750},{"$f":"'Politiques&Suivi&Législation'!AO38","v":0},{"$f":"'Politiques&Suivi&Législation'!AP38","v":0},{"$f":"'Politiques&Suivi&Législation'!AQ38","v":0},{"$f":"'Politiques&Suivi&Législation'!AR38","v":0},{"$f":"'Politiques&Suivi&Législation'!AS38","v":0},{"$f":"'Politiques&Suivi&Législation'!AT38","v":55750}]
[null,null,"1.8.2",{"$f":"'Politiques&Suivi&Législation'!F39","v":"Modification du cadre légal et institutionnel approprié pour le fonctionnement des GGS."},null,{"$f":"'Politiques&Suivi&Législation'!AN39","v":16000},{"$f":"'Politiques&Suivi&Législation'!AO39","v":0},{"$f":"'Politiques&Suivi&Législation'!AP39","v":0},{"$f":"'Politiques&Suivi&Législation'!AQ39","v":0},{"$f":"'Politiques&Suivi&Législation'!AR39","v":0},{"$f":"'Politiques&Suivi&Législation'!AS39","v":0},{"$f":"'Politiques&Suivi&Législation'!AT39","v":16000}]
[null,null,"1.8.3",{"$f":"'Politiques&Suivi&Législation'!F40","v":"Préparation du programme de formation pour les cadres supérieurs en lien avec le cycle de gestion des politiques publiques. "},null,{"$f":"'Politiques&Suivi&Législation'!AN40","v":28500},{"$f":"'Politiques&Suivi&Législation'!AO40","v":0},{"$f":"'Politiques&Suivi&Législation'!AP40","v":0},{"$f":"'Politiques&Suivi&Législation'!AQ40","v":0},{"$f":"'Politiques&Suivi&Législation'!AR40","v":0},{"$f":"'Politiques&Suivi&Législation'!AS40","v":0},{"$f":"'Politiques&Suivi&Législation'!AT40","v":28500}]
[null,null,"1.8.4",{"$f":"'Politiques&Suivi&Législation'!F41","v":"Renforcement des compétences des cadres supérieurs des ministères sectoriels par la mise en oeuvre du programme de formation sur le cycle de gestion des politiques publiques.  "},null,{"$f":"'Politiques&Suivi&Législation'!AN41","v":427250},{"$f":"'Politiques&Suivi&Législation'!AO41","v":0},{"$f":"'Politiques&Suivi&Législation'!AP41","v":0},{"$f":"'Politiques&Suivi&Législation'!AQ41","v":0},{"$f":"'Politiques&Suivi&Législation'!AR41","v":0},{"$f":"'Politiques&Suivi&Législation'!AS41","v":0},{"$f":"'Politiques&Suivi&Législation'!AT41","v":427250}]
[null,"Total cost of Objective 1",null,null,null,{"$f":"SUM(F10:F40)","v":9204025},8000,450000,0,300000,0,8446025,{"$f":"'Politiques&Suivi&Législation'!AN42","v":9204025},{"$f":"'Politiques&Suivi&Législation'!AO42","v":8000},{"$f":"'Politiques&Suivi&Législation'!AP42","v":450000},{"$f":"'Politiques&Suivi&Législation'!AQ42","v":0},{"$f":"'Politiques&Suivi&Législation'!AR42","v":300000},{"$f":"'Politiques&Suivi&Législation'!AS42","v":0},{"$f":"'Politiques&Suivi&Législation'!AT42","v":8446025}]
[2,"Objectif 2 : Système transparent et exhaustif de rédaction législative, fondé sur les politiques publiques et garantissant la conformité avec l'acquis  ",null,null,null,null,null,null,null,null,null,null,{"$f":"F41-M41","v":0},{"$f":"G41-N41","v":0},0,0,0,0,0]
[2.1,"Evaluation des défis auxquels est actuellement confronté le processus de rédaction des lois","2.1.1","Projet d'analyse évaluative de la situation",null,{"$f":"'Politiques&Suivi&Législation'!AN44","v":28500},{"$f":"'Politiques&Suivi&Législation'!AO44","v":0},{"$f":"'Politiques&Suivi&Législation'!AP44","v":0},{"$f":"'Politiques&Suivi&Législation'!AQ44","v":0},{"$f":"'Politiques&Suivi&Législation'!AR44","v":0},{"$f":"'Politiques&Suivi&Législation'!AS44","v":0},{"$f":"'Politiques&Suivi&Législation'!AT44","v":28500}]
[null,null,"2.1.2",{"$f":"'Politiques&Suivi&Législation'!F45","v":"Paquet législatif sur la rédaction des lois (projets de lois et de règlements)"},null,{"$f":"'Politiques&Suivi&Législation'!AN45","v":82500},{"$f":"'Politiques&Suivi&Législation'!AO45","v":0},{"$f":"'Politiques&Suivi&Législation'!AP45","v":0},{"$f":"'Politiques&Suivi&Législation'!AQ45","v":0},{"$f":"'Politiques&Suivi&Législation'!AR45","v":0},{"$f":"'Politiques&Suivi&Législation'!AS45","v":0},{"$f":"'Politiques&Suivi&Législation'!AT45","v":82500}]
[2.2000000000000002,"Rédaction de manuels de technique d'élaboration des lois et réglements et d'un manuel de rédaction des textes juridiques","2.2.1","Analyse des personnels en termes d'emploi, d'organigrammes et de fiches de poste",null,{"$f":"'Politiques&Suivi&Législation'!AN47","v":33000},{"$f":"'Politiques&Suivi&Législation'!AO47","v":0},{"$f":"'Politiques&Suivi&Législation'!AP47","v":0},{"$f":"'Politiques&Suivi&Législation'!AQ47","v":0},{"$f":"'Politiques&Suivi&Législation'!AR47","v":0},{"$f":"'Politiques&Suivi&Législation'!AS47","v":0},{"$f":"'Politiques&Suivi&Législation'!AT47","v":33000}]
[null,null,"2.2.2.",{"$f":"'Politiques&Suivi&Législation'!F48","v":"Critères plus stricts pour les postes impliqués dans le processus législatif. "},null,{"$f":"'Politiques&Suivi&Législation'!AN48","v":6700},{"$f":"'Politiques&Suivi&Législation'!AO48","v":0},{"$f":"'Politiques&Suivi&Législation'!AP48","v":0},{"$f":"'Politiques&Suivi&Législation'!AQ48","v":0},{"$f":"'Politiques&Suivi&Législation'!AR48","v":0},{"$f":"'Politiques&Suivi&Législation'!AS48","v":0},{"$f":"'Politiques&Suivi&Législation'!AT48","v":6700}]
[null,null,"2.2.3","Rédaction de fiches de poste claires",null,{"$f":"'Politiques&Suivi&Législation'!AN49","v":14750},{"$f":"'Politiques&Suivi&Législation'!AO49","v":0},{"$f":"'Politiques&Suivi&Législation'!AP49","v":0},{"$f":"'Politiques&Suivi&Législation'!AQ49","v":0},{"$f":"'Politiques&Suivi&Législation'!AR49","v":0},{"$f":"'Politiques&Suivi&Législation'!AS49","v":0},{"$f":"'Politiques&Suivi&Législation'!AT49","v":14750}]
[null,null,"2.2.2.",{"$f":"'Politiques&Suivi&Législation'!F50","v":"Rédaction d'un manuel/d'un protocole de travail pour la consultation des actes. "},null,{"$f":"'Politiques&Suivi&Législation'!AN50","v":7500},{"$f":"'Politiques&Suivi&Législation'!AO50","v":7500},{"$f":"'Politiques&Suivi&Législation'!AP50","v":0},{"$f":"'Politiques&Suivi&Législation'!AQ50","v":0},{"$f":"'Politiques&Suivi&Législation'!AR50","v":0},{"$f":"'Politiques&Suivi&Législation'!AS50","v":0},{"$f":"'Politiques&Suivi&Législation'!AT50","v":0}]
[2.2999999999999998,"Evaluation systématique des failles législatives facilitant la corruption (protection contre la corruption)","2.3.1",{"$f":"'Transparence & Anti-corruption '!E9","v":"Intégration du manuel sur la prévention de la corruption."},"Sans surcoût",{"$f":"'Transparence & Anti-corruption '!AL9","v":0},{"$f":"'Transparence & Anti-corruption '!AM9","v":0},{"$f":"'Transparence & Anti-corruption '!AN9","v":0},{"$f":"'Transparence & Anti-corruption '!AO9","v":0},{"$f":"'Transparence & Anti-corruption '!AP9","v":0},{"$f":"'Transparence & Anti-corruption '!AQ9","v":0},{"$f":"'Transparence & Anti-corruption '!AR9","v":0}]
[null,null,"2.3.2",{"$f":"'Transparence & Anti-corruption '!E10","v":"Elaboration d'une méthodologie d'analyse de la législation aux fins de détecter les failles facilitant la corruption."},null,{"$f":"'Transparence & Anti-corruption '!AL10","v":72150},{"$f":"'Transparence & Anti-corruption '!AM10","v":0},{"$f":"'Transparence & Anti-corruption '!AN10","v":0},{"$f":"'Transparence & Anti-corruption '!AO10","v":0},{"$f":"'Transparence & Anti-corruption '!AP10","v":0},{"$f":"'Transparence & Anti-corruption '!AQ10","v":0},{"$f":"'Transparence & Anti-corruption '!AR10","v":72150}]
[2.4,"Veiller à la mise en œuvre de la loi sur la communication et la concertation publiques et la compléter par des décrets","2.3.1",{"$f":"'Politiques&Suivi&Législation'!F52","v":"Adoption de règlements pour faciliter la procédure de consultation. "},null,{"$f":"'Politiques&Suivi&Législation'!AN52","v":9000},{"$f":"'Politiques&Suivi&Législation'!AO52","v":0},{"$f":"'Politiques&Suivi&Législation'!AP52","v":0},{"$f":"'Politiques&Suivi&Législation'!AQ52","v":0},{"$f":"'Politiques&Suivi&Législation'!AR52","v":0},{"$f":"'Politiques&Suivi&Législation'!AS52","v":0},{"$f":"'Politiques&Suivi&Législation'!AT52","v":9000}]
[null,null,"2.3.2",{"$f":"'Politiques&Suivi&Législation'!F53","v":" Création d'une base de données des parties prenantes "},"Sans surcoût",{"$f":"'Politiques&Suivi&Législation'!AN53","v":0},{"$f":"'Politiques&Suivi&Législation'!AO53","v":0},{"$f":"'Politiques&Suivi&Législation'!AP53","v":0},{"$f":"'Politiques&Suivi&Législation'!AQ53","v":0},{"$f":"'Politiques&Suivi&Législation'!AR53","v":0},{"$f":"'Politiques&Suivi&Législation'!AS53","v":0},{"$f":"'Politiques&Suivi&Législation'!AT53","v":0}]
[null,null,"2.3.3",{"$f":"'Politiques&Suivi&Législation'!F54","v":"Rédaction d'un manuel/protocole de travail pour la consultation des actes. "},"Sans surcoût",{"$f":"'Politiques&Suivi&Législation'!AN54","v":0},{"$f":"'Politiques&Suivi&Législation'!AO54","v":0},{"$f":"'Politiques&Suivi&Législation'!AP54","v":0},{"$f":"'Politiques&Suivi&Législation'!AQ54","v":0},{"$f":"'Politiques&Suivi&Législation'!AR54","v":0},{"$f":"'Politiques&Suivi&Législation'!AS54","v":0},{"$f":"'Politiques&Suivi&Législation'!AT54","v":0}]
[null,null,"2.3.4",{"$f":"'Politiques&Suivi&Législation'!F55","v":"Formation des personnes responsables des consultations."},null,{"$f":"'Politiques&Suivi&Législation'!AN55","v":9120},{"$f":"'Politiques&Suivi&Législation'!AO55","v":0},{"$f":"'Politiques&Suivi&Législation'!AP55","v":0},{"$f":"'Politiques&Suivi&Législation'!AQ55","v":0},{"$f":"'Politiques&Suivi&Législation'!AR55","v":0},{"$f":"'Politiques&Suivi&Législation'!AS55","v":0},{"$f":"'Politiques&Suivi&Législation'!AT55","v":9120}]
[2.4,"Amélioration de la procédure de réalisation des études d'impact obligatoires et des évaluations du respect de l'acquis. Meilleure prise en compte par la réglementation des politiques publiques menées dans le pays.","2.4.1",{"$f":"'Politiques&Suivi&Législation'!F56","v":"Analyse du degré de compréhension des impacts estimés des actes."},null,{"$f":"'Politiques&Suivi&Législation'!AN56","v":88000},{"$f":"'Politiques&Suivi&Législation'!AO56","v":0},{"$f":"'Politiques&Suivi&Législation'!AP56","v":0},{"$f":"'Politiques&Suivi&Législation'!AQ56","v":0},{"$f":"'Politiques&Suivi&Législation'!AR56","v":0},{"$f":"'Politiques&Suivi&Législation'!AS56","v":0},{"$f":"'Politiques&Suivi&Législation'!AT56","v":88000}]
[null,null,"2.4.2",{"$f":"'Politiques&Suivi&Législation'!F57","v":"Loi sur l'AIR adoptée, rendant obligatoire l'analyse en question."},"Sans surcoût",{"$f":"'Politiques&Suivi&Législation'!AN57","v":0},{"$f":"'Politiques&Suivi&Législation'!AO57","v":0},{"$f":"'Politiques&Suivi&Législation'!AP57","v":0},{"$f":"'Politiques&Suivi&Législation'!AQ57","v":0},{"$f":"'Politiques&Suivi&Législation'!AR57","v":0},{"$f":"'Politiques&Suivi&Législation'!AS57","v":0},{"$f":"'Politiques&Suivi&Législation'!AT57","v":0}]
[null,null,"2.4.3",{"$f":"'Politiques&Suivi&Législation'!F58","v":"et X AIR menées/essayées sous la loi adoptée (projets dans X institutions pour X questions). "}," ",{"$f":"'Politiques&Suivi&Législation'!AN58","v":184000},{"$f":"'Politiques&Suivi&Législation'!AO58","v":0},{"$f":"'Politiques&Suivi&Législation'!AP58","v":0},{"$f":"'Politiques&Suivi&Législation'!AQ58","v":0},{"$f":"'Politiques&Suivi&Législation'!AR58","v":0},{"$f":"'Politiques&Suivi&Législation'!AS58","v":0},{"$f":"'Politiques&Suivi&Législation'!AT58","v":184000}]
[2.5,"Amélioration des compétences des services chargés de la rédaction legislative et des services centraux responsables du suivi","2.5.1",{"$f":"'Politiques&Suivi&Législation'!F59","v":"Formation en rédaction législative pour les services centraux"},null,{"$f":"'Politiques&Suivi&Législation'!AN59","v":30825},{"$f":"'Politiques&Suivi&Législation'!AO59","v":0},{"$f":"'Politiques&Suivi&Législation'!AP59","v":0},{"$f":"'Politiques&Suivi&Législation'!AQ59","v":0},{"$f":"'Politiques&Suivi&Législation'!AR59","v":0},{"$f":"'Politiques&Suivi&Législation'!AS59","v":0},{"$f":"'Politiques&Suivi&Législation'!AT59","v":30825}]
[null,null,"2.5.2",{"$f":"'Politiques&Suivi&Législation'!F60","v":"Formation en rédaction législative pour les ministères sectoriels"},null,{"$f":"'Politiques&Suivi&Législation'!AN60","v":5190},{"$f":"'Politiques&Suivi&Législation'!AO60","v":0},{"$f":"'Politiques&Suivi&Législation'!AP60","v":0},{"$f":"'Politiques&Suivi&Législation'!AQ60","v":0},{"$f":"'Politiques&Suivi&Législation'!AR60","v":0},{"$f":"'Politiques&Suivi&Législation'!AS60","v":0},{"$f":"'Politiques&Suivi&Législation'!AT60","v":5190}]
[null,null,"2.5.3",{"$f":"'Politiques&Suivi&Législation'!F61","v":"Formation en rédaction législative pour les institutions indépendantes"},null,{"$f":"'Politiques&Suivi&Législation'!AN61","v":3095},{"$f":"'Politiques&Suivi&Législation'!AO61","v":0},{"$f":"'Politiques&Suivi&Législation'!AP61","v":0},{"$f":"'Politiques&Suivi&Législation'!AQ61","v":0},{"$f":"'Politiques&Suivi&Législation'!AR61","v":0},{"$f":"'Politiques&Suivi&Législation'!AS61","v":0},{"$f":"'Politiques&Suivi&Législation'!AT61","v":3095}]
[2.6,"Amélioration de la transparence de la publicité des lois","2.6.1",{"$f":"'Politiques&Suivi&Législation'!F62","v":"Obligation (Instruction) du service officiel des publications de publier les lois consolidées."},null,{"$f":"'Politiques&Suivi&Législation'!AN62","v":25000},{"$f":"'Politiques&Suivi&Législation'!AO62","v":0},{"$f":"'Politiques&Suivi&Législation'!AP62","v":0},{"$f":"'Politiques&Suivi&Législation'!AQ62","v":0},{"$f":"'Politiques&Suivi&Législation'!AR62","v":0},{"$f":"'Politiques&Suivi&Législation'!AS62","v":0},{"$f":"'Politiques&Suivi&Législation'!AT62","v":25000}]
[null,null,"2.6.2",{"$f":"'Politiques&Suivi&Législation'!F63","v":"Chaque institution devra avoir posté les lois consolidées sur son site internet en 2015. "},null,{"$f":"'Politiques&Suivi&Législation'!AN63","v":190000},{"$f":"'Politiques&Suivi&Législation'!AO63","v":0},{"$f":"'Politiques&Suivi&Législation'!AP63","v":0},{"$f":"'Politiques&Suivi&Législation'!AQ63","v":0},{"$f":"'Politiques&Suivi&Législation'!AR63","v":0},{"$f":"'Politiques&Suivi&Législation'!AS63","v":0},{"$f":"'Politiques&Suivi&Législation'!AT63","v":190000}]
[null,"Coût total de l'objectif 2",null,null,null,{"$f":"SUM(F43:F62)","v":789330},7500,0,0,0,0,781830,{"$f":"'Politiques&Suivi&Législation'!AN64+'Transparence & Anti-corruption '!AL11","v":789330},{"$f":"'Politiques&Suivi&Législation'!AO64+'Transparence & Anti-corruption '!AM11","v":7500},{"$f":"'Politiques&Suivi&Législation'!AP64+'Transparence & Anti-corruption '!AN11","v":0},{"$f":"'Politiques&Suivi&Législation'!AQ64+'Transparence & Anti-corruption '!AO11","v":0},{"$f":"'Politiques&Suivi&Législation'!AR64+'Transparence & Anti-corruption '!AP11","v":0},{"$f":"'Politiques&Suivi&Législation'!AS64+'Transparence & Anti-corruption '!AQ11","v":0},{"$f":"'Politiques&Suivi&Législation'!AT64+'Transparence & Anti-corruption '!AR11","v":781830}]
[3,"Objectif 3 : Création d'un système efficace de suivi et d'évaluation des stratégies, programmes et cadre juridique en vigueur, sur la base des éléments suivants : 1) recueil de données par un procédé neutre et transparent pour la rédaciton et l'élaboration des stratégies, programmes et lois, et 2) préparation d'une analyse pour évaluer les effets induits par la mise en oeuvre.",null,null,null,null,null,null,null,null,null,null,{"$f":"F63-M63","v":0},{"$f":"G63-N63","v":0},0,0,0,0,0]
[3.1,"Évaluation de la situation actuelle concernant le système de suivi et d'évaluation utilisé par le gouvernement, y compris l'institution chargée des ces fonctions, les ressources humaines disponibles et les besoins en renforcement des compétences, la méthodologie utilisée et le cadre réglementaire en vigueur.","3.1.1",{"$f":"'Politiques&Suivi&Législation'!F66","v":"Analyse de l'évaluation de la situation actuelle concernant le suivi des stratégies sectorielles et transversales  "},null,{"$f":"'Politiques&Suivi&Législation'!AN66","v":62500},{"$f":"'Politiques&Suivi&Législation'!AO66","v":0},{"$f":"'Politiques&Suivi&Législation'!AP66","v":0},{"$f":"'Politiques&Suivi&Législation'!AQ66","v":0},{"$f":"'Politiques&Suivi&Législation'!AR66","v":0},{"$f":"'Politiques&Suivi&Législation'!AS66","v":0},{"$f":"'Politiques&Suivi&Législation'!AT66","v":62500}]
[null,null,"3.1.2",{"$f":"'Politiques&Suivi&Législation'!F67","v":"Examen de la base juridique permettant le suivi des stratégies sectorielles et transversales "},null,{"$f":"'Politiques&Suivi&Législation'!AN67","v":59000},{"$f":"'Politiques&Suivi&Législation'!AO67","v":0},{"$f":"'Politiques&Suivi&Législation'!AP67","v":0},{"$f":"'Politiques&Suivi&Législation'!AQ67","v":0},{"$f":"'Politiques&Suivi&Législation'!AR67","v":0},{"$f":"'Politiques&Suivi&Législation'!AS67","v":0},{"$f":"'Politiques&Suivi&Législation'!AT67","v":59000}]
[null,null,"3.1.3",{"$f":"'Politiques&Suivi&Législation'!F68","v":"Analyse de l'évaluation de la situation existante en matière de suivi et d'évaluation (S &E) (structures et ressources humaines)"},null,{"$f":"'Politiques&Suivi&Législation'!AN68","v":91000},{"$f":"'Politiques&Suivi&Législation'!AO68","v":0},{"$f":"'Politiques&Suivi&Législation'!AP68","v":0},{"$f":"'Politiques&Suivi&Législation'!AQ68","v":0},{"$f":"'Politiques&Suivi&Législation'!AR68","v":0},{"$f":"'Politiques&Suivi&Législation'!AS68","v":0},{"$f":"'Politiques&Suivi&Législation'!AT68","v":91000}]
[null,null,"3.1.4",{"$f":"'Politiques&Suivi&Législation'!F69","v":"Analyse de l'évaluation du cadre juridique actuel et de la méthodologie de S &E"},null,{"$f":"'Politiques&Suivi&Législation'!AN69","v":42000},{"$f":"'Politiques&Suivi&Législation'!AO69","v":0},{"$f":"'Politiques&Suivi&Législation'!AP69","v":0},{"$f":"'Politiques&Suivi&Législation'!AQ69","v":0},{"$f":"'Politiques&Suivi&Législation'!AR69","v":0},{"$f":"'Politiques&Suivi&Législation'!AS69","v":0},{"$f":"'Politiques&Suivi&Législation'!AT69","v":42000}]
[null,null,"3.1.5",{"$f":"'Politiques&Suivi&Législation'!F70","v":"Analyse de l'évaluation des besoins en formation pour les structures de S &E. "},null,{"$f":"'Politiques&Suivi&Législation'!AN70","v":72250},{"$f":"'Politiques&Suivi&Législation'!AO70","v":0},{"$f":"'Politiques&Suivi&Législation'!AP70","v":0},{"$f":"'Politiques&Suivi&Législation'!AQ70","v":0},{"$f":"'Politiques&Suivi&Législation'!AR70","v":0},{"$f":"'Politiques&Suivi&Législation'!AS70","v":0},{"$f":"'Politiques&Suivi&Législation'!AT70","v":72250}]
[null,null,"3.1.6",{"$f":"'Politiques&Suivi&Législation'!F71","v":"Formation du personnel des Unités de suivi du Bureau du Premier ministre et des ministères sectoriels "},null,{"$f":"'Politiques&Suivi&Législation'!AN71","v":0},{"$f":"'Politiques&Suivi&Législation'!AO71","v":0},{"$f":"'Politiques&Suivi&Législation'!AP71","v":0},{"$f":"'Politiques&Suivi&Législation'!AQ71","v":0},{"$f":"'Politiques&Suivi&Législation'!AR71","v":0},{"$f":"'Politiques&Suivi&Législation'!AS71","v":0},{"$f":"'Politiques&Suivi&Législation'!AT71","v":0}]
[3.2,"Création et amélioration du système de suivi et d'évaluation du Gouvernement albanais par la réforme du cadre réglementaire en vigueur, une révision fonctionnelle des unités responsables du suivi et de l'évaluation dans les institutions centrales et le renforcement des compétences du personnel de ces institutions, mais aussi des unités centrales de suivi du Bureau du Premier ministre, par la mise en place d'un réseau de suivi et d'évaluation efficace.","3.2.1",{"$f":"'Politiques&Suivi&Législation'!F72","v":"Publication de rapports annuels des ministères sectoriels sur la mise en œuvre des stratégies sectorielles/transversales respectives, de la NSDI, ainsi que du DPFDDAE. "},null,{"$f":"'Politiques&Suivi&Législation'!AN72","v":144000},{"$f":"'Politiques&Suivi&Législation'!AO72","v":0},{"$f":"'Politiques&Suivi&Législation'!AP72","v":0},{"$f":"'Politiques&Suivi&Législation'!AQ72","v":0},{"$f":"'Politiques&Suivi&Législation'!AR72","v":0},{"$f":"'Politiques&Suivi&Législation'!AS72","v":0},{"$f":"'Politiques&Suivi&Législation'!AT72","v":144000}]
[null,null,"3.2.2",{"$f":"'Politiques&Suivi&Législation'!F73","v":"Rédaction d'un nouveau cadre juridique pour le système de suivi et d'évaluation."},null,{"$f":"'Politiques&Suivi&Législation'!AN73","v":69500},{"$f":"'Politiques&Suivi&Législation'!AO73","v":0},{"$f":"'Politiques&Suivi&Législation'!AP73","v":0},{"$f":"'Politiques&Suivi&Législation'!AQ73","v":0},{"$f":"'Politiques&Suivi&Législation'!AR73","v":0},{"$f":"'Politiques&Suivi&Législation'!AS73","v":0},{"$f":"'Politiques&Suivi&Législation'!AT73","v":69500}]
[null,null,"3.2.3",{"$f":"'Politiques&Suivi&Législation'!F74","v":"Révision des structures des ministères en vue de la mise en œuvre sur système de S & E "},"Sans surcoût",{"$f":"'Politiques&Suivi&Législation'!AN74","v":0},{"$f":"'Politiques&Suivi&Législation'!AO74","v":0},{"$f":"'Politiques&Suivi&Législation'!AP74","v":0},{"$f":"'Politiques&Suivi&Législation'!AQ74","v":0},{"$f":"'Politiques&Suivi&Législation'!AR74","v":0},{"$f":"'Politiques&Suivi&Législation'!AS74","v":0},{"$f":"'Politiques&Suivi&Législation'!AT74","v":0}]
[null,null,"3.2.4",{"$f":"'Politiques&Suivi&Législation'!F75","v":"Mise en place d'un réseau de S & E et renforcement des compétences (formation) "},"Le coût de la formation sera déterminé après achèvement de l'activité 3.2.3",{"$f":"'Politiques&Suivi&Législation'!AN75","v":0},{"$f":"'Politiques&Suivi&Législation'!AO75","v":0},{"$f":"'Politiques&Suivi&Législation'!AP75","v":0},{"$f":"'Politiques&Suivi&Législation'!AQ75","v":0},{"$f":"'Politiques&Suivi&Législation'!AR75","v":0},{"$f":"'Politiques&Suivi&Législation'!AS75","v":0},{"$f":"'Politiques&Suivi&Législation'!AT75","v":0}]
[3.3,"Elaboration de la méthodologie de suivi et d'évaluation.","3.3.1",{"$f":"'Politiques&Suivi&Législation'!F76","v":"Manuel sur le suivi des stratégies sectorielles/transversales (EMP) et Manuel de formation pour l'administration (FdF)"},null,{"$f":"'Politiques&Suivi&Législation'!AN76","v":61500},{"$f":"'Politiques&Suivi&Législation'!AO76","v":0},{"$f":"'Politiques&Suivi&Législation'!AP76","v":0},{"$f":"'Politiques&Suivi&Législation'!AQ76","v":0},{"$f":"'Politiques&Suivi&Législation'!AR76","v":61500},{"$f":"'Politiques&Suivi&Législation'!AS76","v":0},{"$f":"'Politiques&Suivi&Législation'!AT76","v":0}]
[null,null,"3.3.2",{"$f":"'Politiques&Suivi&Législation'!F77","v":"Renforcement des compétences du DPFDDAE concernant la rédaction des rapports de synthèse annuels sur la mise en œuvre du cadre stratégique (ToT) "},null,{"$f":"'Politiques&Suivi&Législation'!AN77","v":11400},{"$f":"'Politiques&Suivi&Législation'!AO77","v":0},{"$f":"'Politiques&Suivi&Législation'!AP77","v":0},{"$f":"'Politiques&Suivi&Législation'!AQ77","v":0},{"$f":"'Politiques&Suivi&Législation'!AR77","v":11400},{"$f":"'Politiques&Suivi&Législation'!AS77","v":0},{"$f":"'Politiques&Suivi&Législation'!AT77","v":0}]
[null,null,"3.3.3",{"$f":"'Politiques&Suivi&Législation'!F78","v":"Renforcement des compétences des ministères sectoriels pour établir les rapports EMP  "},null,{"$f":"'Politiques&Suivi&Législation'!AN78","v":92800},{"$f":"'Politiques&Suivi&Législation'!AO78","v":0},{"$f":"'Politiques&Suivi&Législation'!AP78","v":0},{"$f":"'Politiques&Suivi&Législation'!AQ78","v":0},{"$f":"'Politiques&Suivi&Législation'!AR78","v":0},{"$f":"'Politiques&Suivi&Législation'!AS78","v":0},{"$f":"'Politiques&Suivi&Législation'!AT78","v":92800}]
[null,null,"3.3.4",{"$f":"'Politiques&Suivi&Législation'!F79","v":"Elabroation de la méthodologie de suivi et d'évaluation pour le Programme du gouvernement   "},null,{"$f":"'Politiques&Suivi&Législation'!AN79","v":64780},{"$f":"'Politiques&Suivi&Législation'!AO79","v":0},{"$f":"'Politiques&Suivi&Législation'!AP79","v":0},{"$f":"'Politiques&Suivi&Législation'!AQ79","v":0},{"$f":"'Politiques&Suivi&Législation'!AR79","v":0},{"$f":"'Politiques&Suivi&Législation'!AS79","v":0},{"$f":"'Politiques&Suivi&Législation'!AT79","v":64780}]
[null,null,"3.3.5",{"$f":"'Politiques&Suivi&Législation'!F80","v":"Elabroation de la méthodologie de suivi et d'évaluation de la mise en application des lois"},null,{"$f":"'Politiques&Suivi&Législation'!AN80","v":80000},{"$f":"'Politiques&Suivi&Législation'!AO80","v":0},{"$f":"'Politiques&Suivi&Législation'!AP80","v":0},{"$f":"'Politiques&Suivi&Législation'!AQ80","v":0},{"$f":"'Politiques&Suivi&Législation'!AR80","v":0},{"$f":"'Politiques&Suivi&Législation'!AS80","v":0},{"$f":"'Politiques&Suivi&Législation'!AT80","v":80000}]
[3.4,"Utilisation des sytèmes de suivi électronique par les institutions gouvernementales.","3.4.1",{"$f":"'Politiques&Suivi&Législation'!F81","v":"Système électronique de suivi de la mise en œuvre du Programme du gouvernement"},null,{"$f":"'Politiques&Suivi&Législation'!AN81","v":12857.142857142857},{"$f":"'Politiques&Suivi&Législation'!AO81","v":12857.142857142857},{"$f":"'Politiques&Suivi&Législation'!AP81","v":0},{"$f":"'Politiques&Suivi&Législation'!AQ81","v":0},{"$f":"'Politiques&Suivi&Législation'!AR81","v":0},{"$f":"'Politiques&Suivi&Législation'!AS81","v":0},{"$f":"'Politiques&Suivi&Législation'!AT81","v":0}]
[null,null,"3.4.2",{"$f":"'Politiques&Suivi&Législation'!F82","v":"Système électronique de suivi du flux d'information et de correspondance"},null,{"$f":"'Politiques&Suivi&Législation'!AN82","v":65268.257142857146},{"$f":"'Politiques&Suivi&Législation'!AO82","v":65268.257142857146},{"$f":"'Politiques&Suivi&Législation'!AP82","v":0},{"$f":"'Politiques&Suivi&Législation'!AQ82","v":0},{"$f":"'Politiques&Suivi&Législation'!AR82","v":0},{"$f":"'Politiques&Suivi&Législation'!AS82","v":0},{"$f":"'Politiques&Suivi&Législation'!AT82","v":0}]
[null,null,"3.4.3",{"$f":"'Politiques&Suivi&Législation'!F83","v":"Système d'actes électroniques (système de suivi du processus de rédaction législative) "},null,{"$f":"'Politiques&Suivi&Législation'!AN83","v":2520},{"$f":"'Politiques&Suivi&Législation'!AO83","v":2520},{"$f":"'Politiques&Suivi&Législation'!AP83","v":0},{"$f":"'Politiques&Suivi&Législation'!AQ83","v":0},{"$f":"'Politiques&Suivi&Législation'!AR83","v":0},{"$f":"'Politiques&Suivi&Législation'!AS83","v":0},{"$f":"'Politiques&Suivi&Législation'!AT83","v":0}]
[null,null,"3.4.4",{"$f":"'Politiques&Suivi&Législation'!F84","v":"Système électronique de suivi intégré \"The watchtower\" (\"La Tour de contrôle\"). "},"Le coût de la construction du système ne peut être déterminé qu'après l'analyse des fonctions qui doit être menée par la NAIS (Agence nationale sur la société de l'information). ",{"$f":"'Politiques&Suivi&Législation'!AN84","v":0},{"$f":"'Politiques&Suivi&Législation'!AO84","v":0},{"$f":"'Politiques&Suivi&Législation'!AP84","v":0},{"$f":"'Politiques&Suivi&Législation'!AQ84","v":0},{"$f":"'Politiques&Suivi&Législation'!AR84","v":0},{"$f":"'Politiques&Suivi&Législation'!AS84","v":0},{"$f":"'Politiques&Suivi&Législation'!AT84","v":0}]
[null,"Coût total de l'Objectif 3",null,null,null,{"$f":"SUM(F65:F83)","v":931375.4},{"$f":"SUM(G65:G83)","v":80645.400000000009},0,0,72900,0,777830,{"$f":"'Politiques&Suivi&Législation'!AN87","v":931375.4},{"$f":"'Politiques&Suivi&Législation'!AO87","v":80645.400000000009},{"$f":"'Politiques&Suivi&Législation'!AP87","v":0},{"$f":"'Politiques&Suivi&Législation'!AQ87","v":0},{"$f":"'Politiques&Suivi&Législation'!AR87","v":72900},{"$f":"'Politiques&Suivi&Législation'!AS87","v":0},{"$f":"'Politiques&Suivi&Législation'!AT87","v":777830}]
[4,"Objectif 4 : Renforcer les structures de l'administration publique afin d'améliorer la prestation de services au public.",null,null,null,null,null,null,null,null,null,null,{"$f":"F84-M84","v":0},{"$f":"G84-N84","v":0},0,0,0,0,0]
[4.0999999999999996,"Mener une étude pour examiner les fonctions et l'organisation interne des institutions de l'administration aux niveaux central et local.","4.1.1",{"$f":"'Fonction publique et GRH'!E9","v":"Étude et analyse du transfert des fonctions de l'État vers le marché privé de la prestation de services."},null,{"$f":"'Fonction publique et GRH'!AL9","v":1235000},{"$f":"'Fonction publique et GRH'!AM9","v":0},{"$f":"'Fonction publique et GRH'!AN9","v":0},{"$f":"'Fonction publique et GRH'!AO9","v":0},{"$f":"'Fonction publique et GRH'!AP9","v":0},{"$f":"'Fonction publique et GRH'!AQ9","v":0},{"$f":"'Fonction publique et GRH'!AR9","v":1235000}]
[null,null,"4.1.2",{"$f":"'Fonction publique et GRH'!E10","v":"Évaluation (inventaire) des nouvelles unités de ressources humaines au niveau national."},null,{"$f":"'Fonction publique et GRH'!AL10","v":50000},{"$f":"'Fonction publique et GRH'!AM10","v":0},{"$f":"'Fonction publique et GRH'!AN10","v":0},{"$f":"'Fonction publique et GRH'!AO10","v":0},{"$f":"'Fonction publique et GRH'!AP10","v":0},{"$f":"'Fonction publique et GRH'!AQ10","v":0},{"$f":"'Fonction publique et GRH'!AR10","v":50000}]
[null,null,"4.1.3",{"$f":"'Fonction publique et GRH'!E11","v":"Création d'un cadre fonctionnel pour les relations entre les ministères et leurs institutions subordonnées.  "},null,{"$f":"'Fonction publique et GRH'!AL11","v":541625},{"$f":"'Fonction publique et GRH'!AM11","v":0},{"$f":"'Fonction publique et GRH'!AN11","v":0},{"$f":"'Fonction publique et GRH'!AO11","v":50000},{"$f":"'Fonction publique et GRH'!AP11","v":0},{"$f":"'Fonction publique et GRH'!AQ11","v":0},{"$f":"'Fonction publique et GRH'!AR11","v":491625}]
[null,null,"4.1.4",{"$f":"'Fonction publique et GRH'!E12","v":"Manuel de procédures pour les procédures administratives et le système de gestion des documents dans les ministères sectoriels (IAP A.1.5)."},null,{"$f":"'Fonction publique et GRH'!AL12","v":500000},{"$f":"'Fonction publique et GRH'!AM12","v":0},{"$f":"'Fonction publique et GRH'!AN12","v":500000},{"$f":"'Fonction publique et GRH'!AO12","v":0},{"$f":"'Fonction publique et GRH'!AP12","v":0},{"$f":"'Fonction publique et GRH'!AQ12","v":0},{"$f":"'Fonction publique et GRH'!AR12","v":0}]
[4.2,"Remanier le contenu juridique des actes constitutifs des institutions subordonnées et des agences ministérielles, examiner les organigrammes et les fiches de postes, et l'impantation des nouveaux sièges en fonction des entités territoriales.","4.2.1",{"$f":"'Fonction publique et GRH'!E13","v":"Examen du cadre juridique pertinent. "},null,{"$f":"'Fonction publique et GRH'!AL13","v":40000},{"$f":"'Fonction publique et GRH'!AM13","v":40000},{"$f":"'Fonction publique et GRH'!AN13","v":0},{"$f":"'Fonction publique et GRH'!AO13","v":0},{"$f":"'Fonction publique et GRH'!AP13","v":0},{"$f":"'Fonction publique et GRH'!AQ13","v":0},{"$f":"'Fonction publique et GRH'!AR13","v":0}]
[null,null,"4.2.2",{"$f":"'Fonction publique et GRH'!E14","v":"Examen fonctionnel des institutions et adaptation à la nouvelle division territoriale."},null,{"$f":"'Fonction publique et GRH'!AL14","v":30000},{"$f":"'Fonction publique et GRH'!AM14","v":30000},{"$f":"'Fonction publique et GRH'!AN14","v":0},{"$f":"'Fonction publique et GRH'!AO14","v":0},{"$f":"'Fonction publique et GRH'!AP14","v":0},{"$f":"'Fonction publique et GRH'!AQ14","v":0},{"$f":"'Fonction publique et GRH'!AR14","v":0}]
[4.3,"Soutien méthodologique à l'organisation et au fonctionnement des nouvelles entités administratives du pays et renforcement des compétences concernant la mise en œuvre.","4.3.1",{"$f":"'Décentralisation '!E9","v":"Préparation de la liste des fonctions des Unités gouvernementales locales (UGL), du modèle structurel de l'organisation des municipalités, de la classification des postes et de la mise en oeuvre d'un programme de formation pour les UGL (IAP A 1.6)"},null,{"$f":"'Décentralisation '!AL9","v":350000},{"$f":"'Décentralisation '!AM9","v":0},{"$f":"'Décentralisation '!AN9","v":300000},{"$f":"'Décentralisation '!AO9","v":50000},{"$f":"'Décentralisation '!AP9","v":0},{"$f":"'Décentralisation '!AQ9","v":0},{"$f":"'Décentralisation '!AR9","v":0}]
[null,null,"4.3.2",{"$f":"'Décentralisation '!E10","v":"Conception du modèle du nouveau dispositif des UGL et aide à la mise en place des nouveaux dispositifs (assistance pratique).\n"},null,{"$f":"'Décentralisation '!AL10","v":200000},{"$f":"'Décentralisation '!AM10","v":0},{"$f":"'Décentralisation '!AN10","v":0},{"$f":"'Décentralisation '!AO10","v":200000},{"$f":"'Décentralisation '!AP10","v":0},{"$f":"'Décentralisation '!AQ10","v":0},{"$f":"'Décentralisation '!AR10","v":0}]
[null,null,"4.3.3",{"$f":"'Décentralisation '!E11","v":"Renforcement des compétences des unités de gestion des ressources humaines des nouvelles municipalités (15 000 euros)."},null,{"$f":"'Décentralisation '!AL11","v":39900},{"$f":"'Décentralisation '!AM11","v":0},{"$f":"'Décentralisation '!AN11","v":0},{"$f":"'Décentralisation '!AO11","v":15000},{"$f":"'Décentralisation '!AP11","v":0},{"$f":"'Décentralisation '!AQ11","v":0},{"$f":"'Décentralisation '!AR11","v":24900}]
[null,null,"4.3.4",{"$f":"'Décentralisation '!E12","v":"Standardisation des procédures de gestion des RH dans toutes les UGL (IAP A 1.2)"},null,{"$f":"'Décentralisation '!AL12","v":200000},{"$f":"'Décentralisation '!AM12","v":0},{"$f":"'Décentralisation '!AN12","v":200000},{"$f":"'Décentralisation '!AO12","v":0},{"$f":"'Décentralisation '!AP12","v":0},{"$f":"'Décentralisation '!AQ12","v":0},{"$f":"'Décentralisation '!AR12","v":0}]
[null,"Coût total de l'Objectif 4",null,null,null,{"$f":"SUM(F86:F95)","v":3186525},70000,1000000,315000,0,0,1801525,{"$f":"'Fonction publique et GRH'!AL15+'Décentralisation '!AL13","v":3186525},{"$f":"'Fonction publique et GRH'!AM15+'Décentralisation '!AM13","v":70000},{"$f":"'Fonction publique et GRH'!AN15+'Décentralisation '!AN13","v":1000000},{"$f":"'Fonction publique et GRH'!AO15+'Décentralisation '!AO13","v":315000},{"$f":"'Fonction publique et GRH'!AP15+'Décentralisation '!AP13","v":0},{"$f":"'Fonction publique et GRH'!AQ15+'Décentralisation '!AQ13","v":0},{"$f":"'Fonction publique et GRH'!AR15+'Décentralisation '!AR13","v":1801525}]
[5,"Objectif 5 : Améliorer et concentrer les services publics en réduisant les causes de corruption et en renforçant une éthique civique pour la prestation des services publics.",null,null,null,null,null,null,null,null,null,null,{"$f":"F96-M96","v":0},{"$f":"G96-N96","v":0},0,0,0,0,0]
[5.0999999999999996,"Mise en place de centres de prestation de services sous la forme de guichets uniques.","5.2.1",{"$f":"Innovation!E10","v":"Stratégie de prestation des services publics "},null,{"$f":"Innovation!AM10","v":286960},{"$f":"Innovation!AN10","v":0},{"$f":"Innovation!AO10","v":0},{"$f":"Innovation!AP10","v":0},{"$f":"Innovation!AQ10","v":0},{"$f":"Innovation!AR10","v":286960},{"$f":"Innovation!AS10","v":0}]
[null,null,"5.2.2",{"$f":"Innovation!E11","v":"Mise en place de l'ADISA (Agence pour la prestation de services intégrés) et ouverture de 4 centres pilotes  "},null,{"$f":"Innovation!AM11","v":3153610},{"$f":"Innovation!AN11","v":2038770},{"$f":"Innovation!AO11","v":0},{"$f":"Innovation!AP11","v":0},{"$f":"Innovation!AQ11","v":485722},{"$f":"Innovation!AR11","v":629118},{"$f":"Innovation!AS11","v":0}]
[null,null,"5.2.3",{"$f":"Innovation!E12","v":"Création des infrastructures physiques des guichets uniques et de leur fonctionnement "},null,{"$f":"Innovation!AM12","v":22364600},{"$f":"Innovation!AN12","v":7364600},{"$f":"Innovation!AO12","v":0},{"$f":"Innovation!AP12","v":0},{"$f":"Innovation!AQ12","v":15000000},{"$f":"Innovation!AR12","v":0},{"$f":"Innovation!AS12","v":0}]
[5.2,{"$f":"Innovation!C13","v":"Adaptation au modèle du guichet unique de la configuration des institutions qui fournissent des services publics :"},"5.2.1",{"$f":"Innovation!E13","v":"Changement des structures administratives sur la base de l'Étude pour la réorganisation des institutions publiques"},"Sans surcoût"]
[5.3,"Adaptation au modèle du guichet unique de la configuration des institutions qui fournissent des services publics.","5.2.5",{"$f":"'Décentralisation '!C15","v":"Mise en place de guichets uniques pour les services administratifs au niveau local. "},null,{"$f":"'Décentralisation '!AL15","v":7338000},{"$f":"'Décentralisation '!AM15","v":4300000},{"$f":"'Décentralisation '!AN15","v":0},{"$f":"'Décentralisation '!AO15","v":0},{"$f":"'Décentralisation '!AP15","v":0},{"$f":"'Décentralisation '!AQ15","v":0},{"$f":"'Décentralisation '!AR15","v":3038000}]
[null,"Coût total de l'Objectif 5",null,null,null,{"$f":"SUM(F98:F102)","v":33143170},13703370,0,0,15485722,916078,3038000,{"$f":"Innovation!AM14+'Décentralisation '!AL15","v":33143170},{"$f":"Innovation!AN14+'Décentralisation '!AM15","v":13703370},{"$f":"Innovation!AO14+'Décentralisation '!AN15","v":0},{"$f":"Innovation!AP14+'Décentralisation '!AO15","v":0},{"$f":"Innovation!AQ14+'Décentralisation '!AP15","v":15485722},{"$f":"Innovation!AR14+'Décentralisation '!AQ15","v":916078},{"$f":"Innovation!AS14+'Décentralisation '!AR15","v":3038000}]
[6,"Objectif 6 : Amélioration des capacités de mise en œuvre de la législation sur la fonction publique et simplification des procédures d'éxécution. ",null,null,null,null,null,null,null,null,null,null,{"$f":"F103-M103","v":0},{"$f":"G103-N103","v":0},0,0,0,0,0]
[null,null,"6.1.6",{"$f":"'Fonction publique et GRH'!E17","v":"L'évaluation du respect de la nouvelle Loi sur la fonction publique concernant les structures actuelles de gestion et de contrôle.  "},null,{"$f":"'Fonction publique et GRH'!AL17","v":50000},{"$f":"'Fonction publique et GRH'!AM17","v":50000},{"$f":"'Fonction publique et GRH'!AN17","v":0},{"$f":"'Fonction publique et GRH'!AO17","v":0},{"$f":"'Fonction publique et GRH'!AP17","v":0},{"$f":"'Fonction publique et GRH'!AQ17","v":0},{"$f":"'Fonction publique et GRH'!AR17","v":0}]
[6.2,"Amélioration des compétences de planification des ressources humaines dans les institutions de l'administration publique.","6.2.1",{"$f":"'Fonction publique et GRH'!E18","v":"Étude de la capacité des structures menée par le DAP"},null,{"$f":"'Fonction publique et GRH'!AL18","v":60000},{"$f":"'Fonction publique et GRH'!AM18","v":60000},{"$f":"'Fonction publique et GRH'!AN18","v":0},{"$f":"'Fonction publique et GRH'!AO18","v":0},{"$f":"'Fonction publique et GRH'!AP18","v":0},{"$f":"'Fonction publique et GRH'!AQ18","v":0},{"$f":"'Fonction publique et GRH'!AR18","v":0}]
[null,null,"6.2.2",{"$f":"'Fonction publique et GRH'!E19","v":"La méthodologie de la planification à long terme des ressources humaines."},null,{"$f":"'Fonction publique et GRH'!AL19","v":19900},{"$f":"'Fonction publique et GRH'!AM19","v":0},{"$f":"'Fonction publique et GRH'!AN19","v":0},{"$f":"'Fonction publique et GRH'!AO19","v":0},{"$f":"'Fonction publique et GRH'!AP19","v":0},{"$f":"'Fonction publique et GRH'!AQ19","v":0},{"$f":"'Fonction publique et GRH'!AR19","v":19900}]
[null,null,"6.2.3",{"$f":"'Fonction publique et GRH'!E20","v":"Programme de formation spécifique pour la planification à long terme des ressources humaines."},"Le coût de la  formation sera déterminé après achèvement de l'activité 6.2.2",{"$f":"'Fonction publique et GRH'!AL20","v":0},{"$f":"'Fonction publique et GRH'!AM20","v":0},{"$f":"'Fonction publique et GRH'!AN20","v":0},{"$f":"'Fonction publique et GRH'!AO20","v":0},{"$f":"'Fonction publique et GRH'!AP20","v":0},{"$f":"'Fonction publique et GRH'!AQ20","v":0},{"$f":"'Fonction publique et GRH'!AR20","v":0}]
[6.3,"Amélioration des compétences du Département de l'Administration publique (DAP) pour mener la stratégie de réforme de la fonction publique.","6.3.1",{"$f":"'Fonction publique et GRH'!E21","v":"Formations fournies par les programmes de l'EAAP."},"Le coût de la  formation sera déterminé après achèvement de l'activité 6.2.3",{"$f":"'Fonction publique et GRH'!AL21","v":0},{"$f":"'Fonction publique et GRH'!AM21","v":0},{"$f":"'Fonction publique et GRH'!AN21","v":0},{"$f":"'Fonction publique et GRH'!AO21","v":0},{"$f":"'Fonction publique et GRH'!AP21","v":0},{"$f":"'Fonction publique et GRH'!AQ21","v":0},{"$f":"'Fonction publique et GRH'!AR21","v":0}]
[6.4,"Fonctionnement du Commissariat à la fonction publique.","6.4.1",{"$f":"'Fonction publique et GRH'!E22","v":"La création de mécanismes de renforcement de la coopération entre le CFP et les institutions de l'administraiton publique (IAP A.2.3)."},null,{"$f":"'Fonction publique et GRH'!AL22","v":300000},{"$f":"'Fonction publique et GRH'!AM22","v":0},{"$f":"'Fonction publique et GRH'!AN22","v":300000},{"$f":"'Fonction publique et GRH'!AO22","v":0},{"$f":"'Fonction publique et GRH'!AP22","v":0},{"$f":"'Fonction publique et GRH'!AQ22","v":0},{"$f":"'Fonction publique et GRH'!AR22","v":0}]
[null,null,"6.4.2",{"$f":"'Fonction publique et GRH'!E23","v":"Renforcement des capacités du CFP (partiellement IAP A.2.4)."},null,{"$f":"'Fonction publique et GRH'!AL23","v":50000},{"$f":"'Fonction publique et GRH'!AM23","v":0},{"$f":"'Fonction publique et GRH'!AN23","v":50000},{"$f":"'Fonction publique et GRH'!AO23","v":0},{"$f":"'Fonction publique et GRH'!AP23","v":0},{"$f":"'Fonction publique et GRH'!AQ23","v":0},{"$f":"'Fonction publique et GRH'!AR23","v":0}]
[6.5,"Création de bases de données avec des questions préparées et utilisation de systèmes électroniques d'évaluation pour les procédures d'examen en cas de recrutement.","6.5.1",{"$f":"'Fonction publique et GRH'!E24","v":"Mise en place de la plateforme du système. "},null,{"$f":"'Fonction publique et GRH'!AL24","v":65000},{"$f":"'Fonction publique et GRH'!AM24","v":5000},{"$f":"'Fonction publique et GRH'!AN24","v":0},{"$f":"'Fonction publique et GRH'!AO24","v":0},{"$f":"'Fonction publique et GRH'!AP24","v":60000},{"$f":"'Fonction publique et GRH'!AQ24","v":0},{"$f":"'Fonction publique et GRH'!AR24","v":0}]
[null,null,"6.5.2",{"$f":"'Fonction publique et GRH'!E25","v":"Banque de questions pour l'examen dirigé (pour 10 disciplines)."},null,{"$f":"'Fonction publique et GRH'!AL25","v":445000},{"$f":"'Fonction publique et GRH'!AM25","v":50000},{"$f":"'Fonction publique et GRH'!AN25","v":0},{"$f":"'Fonction publique et GRH'!AO25","v":0},{"$f":"'Fonction publique et GRH'!AP25","v":0},{"$f":"'Fonction publique et GRH'!AQ25","v":0},{"$f":"'Fonction publique et GRH'!AR25","v":395000}]
[null,null,"6.5.3","Systèmes de questions testés",null,{"$f":"'Fonction publique et GRH'!AL26","v":30000},{"$f":"'Fonction publique et GRH'!AM26","v":30000},{"$f":"'Fonction publique et GRH'!AN26","v":0},{"$f":"'Fonction publique et GRH'!AO26","v":0},{"$f":"'Fonction publique et GRH'!AP26","v":0},{"$f":"'Fonction publique et GRH'!AQ26","v":0},{"$f":"'Fonction publique et GRH'!AR26","v":0}]
[null,null,"6.5.4",{"$f":"'Fonction publique et GRH'!E27","v":"Système d'examen automatique élaboré (pour 15 disciplines)."},null,{"$f":"'Fonction publique et GRH'!AL27","v":213000},{"$f":"'Fonction publique et GRH'!AM27","v":5000},{"$f":"'Fonction publique et GRH'!AN27","v":0},{"$f":"'Fonction publique et GRH'!AO27","v":0},{"$f":"'Fonction publique et GRH'!AP27","v":0},{"$f":"'Fonction publique et GRH'!AQ27","v":0},{"$f":"'Fonction publique et GRH'!AR27","v":208000}]
["6.5.1","Utilisation systématique des procédures de contrôle de la probité (contrôle de la probité).  ","6.5.1.1",{"$f":"'Transparence & Anti-corruption '!E13","v":"Révision de l'examen d'admission pendant le recrutement pour y inclure des questions spécifiques concernant l'évaluation de la probité."},"Sans surcoût",{"$f":"'Transparence & Anti-corruption '!AL13","v":0},{"$f":"'Transparence & Anti-corruption '!AM13","v":0},{"$f":"'Transparence & Anti-corruption '!AN13","v":0},{"$f":"'Transparence & Anti-corruption '!AO13","v":0},{"$f":"'Transparence & Anti-corruption '!AP13","v":0},{"$f":"'Transparence & Anti-corruption '!AQ13","v":0},{"$f":"'Transparence & Anti-corruption '!AR13","v":0}]
[null,null,"6.5.1.2",{"$f":"'Transparence & Anti-corruption '!E14","v":"Évaluation de la probité lors de l'évaluation annuelle de performance."},"Sans surcoût",{"$f":"'Transparence & Anti-corruption '!AL14","v":0},{"$f":"'Transparence & Anti-corruption '!AM14","v":0},{"$f":"'Transparence & Anti-corruption '!AN14","v":0},{"$f":"'Transparence & Anti-corruption '!AO14","v":0},{"$f":"'Transparence & Anti-corruption '!AP14","v":0},{"$f":"'Transparence & Anti-corruption '!AQ14","v":0},{"$f":"'Transparence & Anti-corruption '!AR14","v":0}]
[6.6,"Simplifier et rationaliser les étapes et les procédures relatives aux RH dans la FP en utilisant des modèles ou des fomulaires standard.",{"$f":"'Fonction publique et GRH'!D28","v":"6.6.1"},{"$f":"'Fonction publique et GRH'!E28","v":"Étude d'évaluation pour 17 systèmes (2 experts locaux et 5 experts étrangers)."},null,{"$f":"'Fonction publique et GRH'!AL28","v":348000},{"$f":"'Fonction publique et GRH'!AM28","v":0},{"$f":"'Fonction publique et GRH'!AN28","v":0},{"$f":"'Fonction publique et GRH'!AO28","v":0},{"$f":"'Fonction publique et GRH'!AP28","v":0},{"$f":"'Fonction publique et GRH'!AQ28","v":0},{"$f":"'Fonction publique et GRH'!AR28","v":348000}]
[null,null,{"$f":"'Fonction publique et GRH'!D29","v":"6.6.2"},{"$f":"'Fonction publique et GRH'!E29","v":"Formation du personnel des ministères pour utiliser les formulaires standard (4 formations X 20 personnes/formation X 3 jours de formation)."},null,{"$f":"'Fonction publique et GRH'!AL29","v":11200},{"$f":"'Fonction publique et GRH'!AM29","v":0},{"$f":"'Fonction publique et GRH'!AN29","v":0},{"$f":"'Fonction publique et GRH'!AO29","v":0},{"$f":"'Fonction publique et GRH'!AP29","v":0},{"$f":"'Fonction publique et GRH'!AQ29","v":0},{"$f":"'Fonction publique et GRH'!AR29","v":11200}]
[6.7,"Elaboration et publication régulière d'un ensemble d'indicateurs pour suivre la réforme de la fonction publique.","6.7.1",{"$f":"'Fonction publique et GRH'!E30","v":"Système de suivi élaboré "},null,{"$f":"'Fonction publique et GRH'!AL30","v":130000},{"$f":"'Fonction publique et GRH'!AM30","v":0},{"$f":"'Fonction publique et GRH'!AN30","v":0},{"$f":"'Fonction publique et GRH'!AO30","v":0},{"$f":"'Fonction publique et GRH'!AP30","v":0},{"$f":"'Fonction publique et GRH'!AQ30","v":0},{"$f":"'Fonction publique et GRH'!AR30","v":130000}]
[null,null,"6.7.2",{"$f":"'Fonction publique et GRH'!E31","v":"Rapports de suivi publiés"},null,{"$f":"'Fonction publique et GRH'!AL31","v":8000},{"$f":"'Fonction publique et GRH'!AM31","v":0},{"$f":"'Fonction publique et GRH'!AN31","v":0},{"$f":"'Fonction publique et GRH'!AO31","v":0},{"$f":"'Fonction publique et GRH'!AP31","v":0},{"$f":"'Fonction publique et GRH'!AQ31","v":0},{"$f":"'Fonction publique et GRH'!AR31","v":8000}]
[6.8,"Finalisation de la mise en service du Système d'information de la gestion des ressources humaines et utilisation à grande échelle par les institutions.","6.8.1",{"$f":"'Fonction publique et GRH'!E32","v":"Adaptation et activation des modules et interopérabilité et implémentation du SIGRH."},null,{"$f":"'Fonction publique et GRH'!AL32","v":308000},{"$f":"'Fonction publique et GRH'!AM32","v":20000},{"$f":"'Fonction publique et GRH'!AN32","v":0},{"$f":"'Fonction publique et GRH'!AO32","v":0},{"$f":"'Fonction publique et GRH'!AP32","v":288000},{"$f":"'Fonction publique et GRH'!AQ32","v":0},{"$f":"'Fonction publique et GRH'!AR32","v":0}]
[null,null,"6.8.2",{"$f":"'Fonction publique et GRH'!E33","v":"Formation de 500 personnels de GRH (Total 20 formation ; 3jours de formation x 25 personnes/formation)."},null,{"$f":"'Fonction publique et GRH'!AL33","v":158550},{"$f":"'Fonction publique et GRH'!AM33","v":0},{"$f":"'Fonction publique et GRH'!AN33","v":0},{"$f":"'Fonction publique et GRH'!AO33","v":0},{"$f":"'Fonction publique et GRH'!AP33","v":0},{"$f":"'Fonction publique et GRH'!AQ33","v":0},{"$f":"'Fonction publique et GRH'!AR33","v":158550}]
[null,null,"6.8.3",{"$f":"'Fonction publique et GRH'!E34","v":"Analyse des systèmes de fonctionnement du SIGRH accomplie."},null,{"$f":"'Fonction publique et GRH'!AL34","v":30000},{"$f":"'Fonction publique et GRH'!AM34","v":30000},{"$f":"'Fonction publique et GRH'!AN34","v":0},{"$f":"'Fonction publique et GRH'!AO34","v":0},{"$f":"'Fonction publique et GRH'!AP34","v":0},{"$f":"'Fonction publique et GRH'!AQ34","v":0},{"$f":"'Fonction publique et GRH'!AR34","v":0}]
[null,null,"6.8.4",{"$f":"'Fonction publique et GRH'!E35","v":"Maintenance du système (50 personnes formées tous les 2 ans - nouveaux spécialistes GRH)."},null,{"$f":"'Fonction publique et GRH'!AL35","v":36150},{"$f":"'Fonction publique et GRH'!AM35","v":0},{"$f":"'Fonction publique et GRH'!AN35","v":0},{"$f":"'Fonction publique et GRH'!AO35","v":0},{"$f":"'Fonction publique et GRH'!AP35","v":0},{"$f":"'Fonction publique et GRH'!AQ35","v":0},{"$f":"'Fonction publique et GRH'!AR35","v":36150}]
[null,null,"6.8.5",{"$f":"'Fonction publique et GRH'!E36","v":"La mise en place d'un système pour l'avancement professionnel dans la fonction publique (IAP A.1.4)."},null,{"$f":"'Fonction publique et GRH'!AL36","v":350000},{"$f":"'Fonction publique et GRH'!AM36","v":0},{"$f":"'Fonction publique et GRH'!AN36","v":350000},{"$f":"'Fonction publique et GRH'!AO36","v":0},{"$f":"'Fonction publique et GRH'!AP36","v":0},{"$f":"'Fonction publique et GRH'!AQ36","v":0},{"$f":"'Fonction publique et GRH'!AR36","v":0}]
[6.9,"Création des conditions et des procédures pour appliquer la transparence et l'objectivité de la promotion professionnelle dans la fonction publique.","6.9.1",{"$f":"EAAP!D8","v":"Réalisation dans les unités et les programmes d'une série d'activités mises à jour pour refléter les exigences et besoins nouveaux engendrés pa la Loi sur la fonction publique. "},null,{"$f":"EAAP!AU8","v":119992},{"$f":"EAAP!AV8","v":35610},{"$f":"EAAP!AW8","v":84382},{"$f":"EAAP!AX8","v":0},{"$f":"EAAP!AY8","v":0},{"$f":"EAAP!AZ8","v":0},{"$f":"EAAP!BA8","v":0}]
[null,null,"6.9.2",{"$f":"EAAP!D10","v":"Identification régulières des besoins en formation grâce à une analyse de ces besoins.  "},null,{"$f":"EAAP!AU10","v":22050},{"$f":"EAAP!AV10","v":7386.75},{"$f":"EAAP!AW10","v":14663.25},{"$f":"EAAP!AX10","v":0},{"$f":"EAAP!AY10","v":0},{"$f":"EAAP!AZ10","v":0},{"$f":"EAAP!BA10","v":0}]
[null,null,"6.9.3",{"$f":"EAAP!D11","v":"Augmentation du nombre de programmes de formation concernant l'intégration européenne.  "},null,{"$f":"EAAP!AU11","v":49500},{"$f":"EAAP!AV11","v":0},{"$f":"EAAP!AW11","v":49500},{"$f":"EAAP!AX11","v":0},{"$f":"EAAP!AY11","v":0},{"$f":"EAAP!AZ11","v":0},{"$f":"EAAP!BA11","v":0}]
[null,null,"6.9.4",{"$f":"EAAP!D12","v":"Mise à jour et développement du groupe de formateurs spécialisés - Ceci sera réalisé par une mise à jour continue de la base de données d'experts potentiels et par un programme de développement professionnel sur le lieu de travail. "},"Sans surcoût",{"$f":"EAAP!AU12","v":0},{"$f":"EAAP!AV12","v":0},{"$f":"EAAP!AW12","v":0},{"$f":"EAAP!AX12","v":0},{"$f":"EAAP!AY12","v":0},{"$f":"EAAP!AZ12","v":0},{"$f":"EAAP!BA12","v":0}]
[null,null,"6.9.5",{"$f":"EAAP!D13","v":"Finalisation du modèle de développement professionnel tout au long de la vie dans la fonction publique. "},null,{"$f":"EAAP!AU13","v":27150},{"$f":"EAAP!AV13","v":0},{"$f":"EAAP!AW13","v":16180},{"$f":"EAAP!AX13","v":0},{"$f":"EAAP!AY13","v":0},{"$f":"EAAP!AZ13","v":0},{"$f":"EAAP!BA13","v":10970}]
[null,null,"6.9.6",{"$f":"EAAP!D15","v":"Plans de formation obligatoire pendant la période d'essai."},null,{"$f":"EAAP!AU15","v":271840},{"$f":"EAAP!AV15","v":110266.40000000001},{"$f":"EAAP!AW15","v":123840},{"$f":"EAAP!AX15","v":0},{"$f":"EAAP!AY15","v":0},{"$f":"EAAP!AZ15","v":0},{"$f":"EAAP!BA15","v":37733.599999999977}]
[null,null,"6.9.7",{"$f":"EAAP!D18","v":"Rédaction de plans annuels pour la formation des cadres moyens et supérieurs - sur la base du modèle de leadership. "},null,{"$f":"EAAP!AU18","v":159079},{"$f":"EAAP!AV18","v":53291.464999999997},{"$f":"EAAP!AW18","v":159079},{"$f":"EAAP!AX18","v":0},{"$f":"EAAP!AY18","v":0},{"$f":"EAAP!AZ18","v":0},{"$f":"EAAP!BA18","v":-53291.464999999997}]
[null,null,"6.9.8",{"$f":"EAAP!D21","v":"Évaluation d'approches alternatives concernant la formation des cadres, y compris l'approche fondée sur les compétences. "},null,{"$f":"EAAP!AU21","v":6900},{"$f":"EAAP!AV21","v":2311.5},{"$f":"EAAP!AW21","v":0},{"$f":"EAAP!AX21","v":0},{"$f":"EAAP!AY21","v":0},{"$f":"EAAP!AZ21","v":0},{"$f":"EAAP!BA21","v":4588.5}]
[null,null,"6.9.9",{"$f":"EAAP!D23","v":"Développement de la plateforme d'apprentissage et de formation en ligne et rédaction de programmes utilisant cette plateforme."},null,{"$f":"EAAP!AU23","v":146000},{"$f":"EAAP!AV23","v":0},{"$f":"EAAP!AW23","v":146000},{"$f":"EAAP!AX23","v":0},{"$f":"EAAP!AY23","v":0},{"$f":"EAAP!AZ23","v":0},{"$f":"EAAP!BA23","v":0}]
[6.1," Amélioration continue des enseignements dispensés aux fonctionnaires par  l'École albanaise d'administration publique et de ses activités d'études et de recherches en administration publique.","6.10.1",{"$f":"EAAP!D26","v":"Mise en place de groupes bénéficiaires du service (groupes d'usagers) et/ou de groupes de discussion afin de fournir des retours sur la qualité et l'utilité des services fournis par l'EAAP. "},"Sans surcoût",{"$f":"EAAP!AU26","v":0},{"$f":"EAAP!AV26","v":0},{"$f":"EAAP!AW26","v":0},{"$f":"EAAP!AX26","v":0},{"$f":"EAAP!AY26","v":0},{"$f":"EAAP!AZ26","v":0},{"$f":"EAAP!BA26","v":0}]
[null,null,"6.10.2",{"$f":"EAAP!D29","v":"Amélioration du système de retours en général, afin de fournir des données suffisantes et une information disponible sur l'impact des formations. "},"Sans surcoût",{"$f":"EAAP!AU29","v":0},{"$f":"EAAP!AV29","v":0},{"$f":"EAAP!AW29","v":0},{"$f":"EAAP!AX29","v":0},{"$f":"EAAP!AY29","v":0},{"$f":"EAAP!AZ29","v":0},{"$f":"EAAP!BA29","v":0}]
[null,null,"6.10.3",{"$f":"EAAP!D33","v":"Établissement de contacts avec des agences professionnelles et des agences de contrôle de la qualité pour l'éducation/la formation."},null,{"$f":"EAAP!AU33","v":18120},{"$f":"EAAP!AV33","v":12140.400000000001},{"$f":"EAAP!AW33","v":5980},{"$f":"EAAP!AX33","v":0},{"$f":"EAAP!AY33","v":0},{"$f":"EAAP!AZ33","v":0},{"$f":"EAAP!BA33","v":-0.4000000000005457}]
[null,null,"6.10.4",{"$f":"EAAP!D35","v":"Élaboration de systèmes et de procédures qui répondent aux normes de contrôle de la qualité établies par les agences de contrôle de l'éducation/la formation."},null,{"$f":"EAAP!AU35","v":33000},{"$f":"EAAP!AV35","v":0},{"$f":"EAAP!AW35","v":33000},{"$f":"EAAP!AX35","v":0},{"$f":"EAAP!AY35","v":0},{"$f":"EAAP!AZ35","v":0},{"$f":"EAAP!BA35","v":0}]
[null,null,"6.10.5",{"$f":"EAAP!D37","v":"Œuvrer pour atteindre le statut de centre d'excellence aux niveaux national et international. "},null,{"$f":"EAAP!AU37","v":25000},{"$f":"EAAP!AV37","v":0},{"$f":"EAAP!AW37","v":25000},{"$f":"EAAP!AX37","v":0},{"$f":"EAAP!AY37","v":0},{"$f":"EAAP!AZ37","v":0},{"$f":"EAAP!BA37","v":0}]
[null,null,"6.10.6",{"$f":"EAAP!D39","v":"Le développement de systèmes qui garantissent que toutes les ressources sont gérées de façon efficace et efficiente, pour un coût minimal. "},"Sans surcoût",{"$f":"EAAP!AU39","v":0},{"$f":"EAAP!AV39","v":0},{"$f":"EAAP!AW39","v":0},{"$f":"EAAP!AX39","v":0},{"$f":"EAAP!AY39","v":0},{"$f":"EAAP!AZ39","v":0},{"$f":"EAAP!BA39","v":0}]
[null,null,"6.10.7",{"$f":"EAAP!D41","v":"Développement d'un système moderne de gestion de la base de données dans le cadre du SIGRH. "},null,{"$f":"EAAP!AU41","v":0},{"$f":"EAAP!AV41","v":0},{"$f":"EAAP!AW41","v":0},{"$f":"EAAP!AX41","v":0},{"$f":"EAAP!AY41","v":0},{"$f":"EAAP!AZ41","v":0},{"$f":"EAAP!BA41","v":0}]
[null,null,"6.10.8",{"$f":"EAAP!D42","v":"Développement de la bibliothèque de l'EAAP et préparation d'un centre de gestion de l'information. "},null,{"$f":"EAAP!AU42","v":40500},{"$f":"EAAP!AV42","v":26100},{"$f":"EAAP!AW42","v":14400},{"$f":"EAAP!AX42","v":0},{"$f":"EAAP!AY42","v":0},{"$f":"EAAP!AZ42","v":0},{"$f":"EAAP!BA42","v":0}]
[null,null,"6.10.9",{"$f":"EAAP!D44","v":"Veiller à ce que les locaux de l'EAAP soient dans un immeuble qui convienne à cet effet."},null,{"$f":"EAAP!AU44","v":70000},{"$f":"EAAP!AV44","v":70000},{"$f":"EAAP!AW44","v":0},{"$f":"EAAP!AX44","v":0},{"$f":"EAAP!AY44","v":0},{"$f":"EAAP!AZ44","v":0},{"$f":"EAAP!BA44","v":0}]
[null,"Coût total de l'Objectif 6",null,null,null,{"$f":"SUM(F105:F144)","v":3601931},567106.51500000001,1372024.25,0,348000,0,1314800.2350000001,{"$f":"'Fonction publique et GRH'!AL37+EAAP!AM45+'Transparence & Anti-corruption '!AL15","v":3601931},{"$f":"'Fonction publique et GRH'!AM37+EAAP!AN45+'Transparence & Anti-corruption '!AM15","v":567106.51500000001},{"$f":"'Fonction publique et GRH'!AN37+EAAP!AO45+'Transparence & Anti-corruption '!AN15","v":1372024.25},{"$f":"'Fonction publique et GRH'!AO37+EAAP!AP45+'Transparence & Anti-corruption '!AO15","v":0},{"$f":"'Fonction publique et GRH'!AP37+EAAP!AQ45+'Transparence & Anti-corruption '!AP15","v":348000},{"$f":"'Fonction publique et GRH'!AQ37+EAAP!AR45+'Transparence & Anti-corruption '!AQ15","v":0},{"$f":"'Fonction publique et GRH'!AR37+EAAP!AS45+'Transparence & Anti-corruption '!AR15","v":1314800.2349999999}]
[7,"Objectif 7 : Organisation du système de rémunération de la fonction publique sur la base de l'évaluation des postes, de l'évaluation des résultats annuels des fonctionnaires et des résultats des formations professionnelles obligatoires. ",null,null,null,null,null,null,null,null,null,null,{"$f":"F145-M145","v":0},{"$f":"G145-N145","v":0},0,0,0,0,0]
[7.1,"Elaboration et adoption d'un document stratégique sur le système de rémunération et sur l'adoption de la nouvelle structure de rémunérations.","7.1.1",{"$f":"'Fonction publique et GRH'!E39","v":"Étude d'évaluation du système de rémunérations"},null,{"$f":"'Fonction publique et GRH'!AL39","v":480000},{"$f":"'Fonction publique et GRH'!AM39","v":50000},{"$f":"'Fonction publique et GRH'!AN39","v":0},{"$f":"'Fonction publique et GRH'!AO39","v":0},{"$f":"'Fonction publique et GRH'!AP39","v":0},{"$f":"'Fonction publique et GRH'!AQ39","v":0},{"$f":"'Fonction publique et GRH'!AR39","v":430000}]
[null,null,"7.1.2",{"$f":"'Fonction publique et GRH'!E40","v":"Projet de stratégie élaboré. "},null,{"$f":"'Fonction publique et GRH'!AL40","v":325000},{"$f":"'Fonction publique et GRH'!AM40","v":30000},{"$f":"'Fonction publique et GRH'!AN40","v":0},{"$f":"'Fonction publique et GRH'!AO40","v":0},{"$f":"'Fonction publique et GRH'!AP40","v":0},{"$f":"'Fonction publique et GRH'!AQ40","v":0},{"$f":"'Fonction publique et GRH'!AR40","v":295000}]
[7.2,"Adoption de nouvelles décisions sur les rémunérations et mise en œuvre de la nouvelle structure.","7.2.1",{"$f":"'Fonction publique et GRH'!E41","v":"Nouvelle structure de rémunérations adoptée. "},"Le coût sera déterminé après achèvement de l'étude et approbation de la nouvelle stratégie.",{"$f":"'Fonction publique et GRH'!AL41","v":0},{"$f":"'Fonction publique et GRH'!AM41","v":0},{"$f":"'Fonction publique et GRH'!AN41","v":0},{"$f":"'Fonction publique et GRH'!AO41","v":0},{"$f":"'Fonction publique et GRH'!AP41","v":0},{"$f":"'Fonction publique et GRH'!AQ41","v":0},{"$f":"'Fonction publique et GRH'!AR41","v":0}]
[7.3,"Révision des ratios entre les rémunérations moyennes maximum et minimum dans l'administration publique, afin de maintenir une pyramide des salaires objective et de préserver l'attractivité des postes de direction, et de conserver une classification differencié selon le contenu des postes.","7.3.1",{"$f":"'Fonction publique et GRH'!E42","v":"Nouvelle classification des salaires et amendement de la loi sur les taux salariaux."},null,{"$f":"'Fonction publique et GRH'!AL42","v":5000},{"$f":"'Fonction publique et GRH'!AM42","v":5000},{"$f":"'Fonction publique et GRH'!AN42","v":0},{"$f":"'Fonction publique et GRH'!AO42","v":0},{"$f":"'Fonction publique et GRH'!AP42","v":0},{"$f":"'Fonction publique et GRH'!AQ42","v":0},{"$f":"'Fonction publique et GRH'!AR42","v":0}]
[null,"Coût total de l'Objectif 7",null,null,null,{"$f":"SUM(F147:F150)","v":810000},{"$f":"SUM(G147:G150)","v":85000},0,0,0,0,725000,{"$f":"'Fonction publique et GRH'!AL43","v":810000},{"$f":"'Fonction publique et GRH'!AM43","v":85000},{"$f":"'Fonction publique et GRH'!AN43","v":0},{"$f":"'Fonction publique et GRH'!AO43","v":0},{"$f":"'Fonction publique et GRH'!AP43","v":0},{"$f":"'Fonction publique et GRH'!AQ43","v":0},{"$f":"'Fonction publique et GRH'!AR43","v":725000}]
[8,"Objectif 8 : Procédure simplifiée pour la prestation des services par la promotion de la communication avec le public et l'évitement de la corruption.",null,null,null,null,null,null,null,null,null,null,{"$f":"F151-M151","v":0},{"$f":"G151-N151","v":0},0,0,0,0,0]
[8.1,"Restructuration des services publics comme mesure préalable à la simplification des procédures administratives et à la réduction du nombre de msures effectuées par les citoyens et le personnel de soutien.","8.1.1",{"$f":"Innovation!E16","v":"Restructuration des services publics - Identification, évaluation et définition des procédures standard pour 300+ services publics"},null,{"$f":"Innovation!AM16","v":5825000},{"$f":"Innovation!AN16","v":1510422.4999999998},{"$f":"Innovation!AO16","v":0},{"$f":"Innovation!AP16","v":0},{"$f":"Innovation!AQ16","v":0},{"$f":"Innovation!AR16","v":0},{"$f":"Innovation!AS16","v":4314577.5}]
[null,null,"8.1.2",{"$f":"Innovation!E17","v":"Rédaction de manuels pour la réglementation des procédures de service ;"},null,{"$f":"Innovation!AM17","v":437500},{"$f":"Innovation!AN17","v":113443.74999999999},{"$f":"Innovation!AO17","v":0},{"$f":"Innovation!AP17","v":0},{"$f":"Innovation!AQ17","v":0},{"$f":"Innovation!AR17","v":0},{"$f":"Innovation!AS17","v":324056.25}]
[8.1999999999999993,"Réorganisation des services qui seront fournis par les guichets uniques en organisant les relations entre le guichet unique et le bureau de soutien.","8.2.1",{"$f":"Innovation!E18","v":"Étude de faisabilité pour le modèle de services centrés sur les citoyens."},null,{"$f":"Innovation!AM18","v":1350000},{"$f":"Innovation!AN18","v":350000},{"$f":"Innovation!AO18","v":0},{"$f":"Innovation!AP18","v":0},{"$f":"Innovation!AQ18","v":1000000},{"$f":"Innovation!AR18","v":0},{"$f":"Innovation!AS18","v":0}]
[8.3000000000000007,"Décharger les institutions de l'administration publique de la fonction de prestation directe de services.","8.3.1",{"$f":"Innovation!E19","v":"Mener l'étude sur la réorganisation des institutions publiques."},null,{"$f":"Innovation!AM19","v":1206250},{"$f":"Innovation!AN19","v":312780.62499999994},{"$f":"Innovation!AO19","v":25992},{"$f":"Innovation!AP19","v":0},{"$f":"Innovation!AQ19","v":0},{"$f":"Innovation!AR19","v":0},{"$f":"Innovation!AS19","v":867477.375}]
[8.4,"Examen général de la législation applicable à la prestation de services publics afin de refléter la restructuration des processus opérationnel dans le cadre réglementaire.","8.4.1",{"$f":"Innovation!E20","v":"Achèvement de l'Étude sur la consolidation de l'analyse de la situation initiale (référence)."},null,{"$f":"Innovation!AM20","v":241152},{"$f":"Innovation!AN20","v":35714.611199999999},{"$f":"Innovation!AO20","v":0},{"$f":"Innovation!AP20","v":0},{"$f":"Innovation!AQ20","v":0},{"$f":"Innovation!AR20","v":0},{"$f":"Innovation!AS20","v":205437.38880000002}]
[null,null,"8.4.2",{"$f":"Innovation!E21","v":"Identification des macro secteurs nécessitant des changements (Analyses des lacunes juridiques)."},null,{"$f":"Innovation!AM21","v":583750},{"$f":"Innovation!AN21","v":0},{"$f":"Innovation!AO21","v":0},{"$f":"Innovation!AP21","v":0},{"$f":"Innovation!AQ21","v":583750},{"$f":"Innovation!AR21","v":0},{"$f":"Innovation!AS21","v":0}]
[8.5,"Rédaction de manuels et des formulaires standard pour assurer le service d'une manière unifiée et codifiée.","8.5.1",{"$f":"Innovation!E22","v":"Formulaires de services unifiés et codifiés (services unifiés totalement codifiés en 2015, tous les services en 2017)."},null,{"$f":"Innovation!AM22","v":150000},{"$f":"Innovation!AN22","v":0},{"$f":"Innovation!AO22","v":150000},{"$f":"Innovation!AP22","v":0},{"$f":"Innovation!AQ22","v":0},{"$f":"Innovation!AR22","v":0},{"$f":"Innovation!AS22","v":0}]
[8.6,"Garantir la valeur légale des documents électroniques imprimés.","8.6.1",{"$f":"Innovation!E23","v":"Propositions de modifications juridiques et administratives."},null,{"$f":"Innovation!AM23","v":1096250},{"$f":"Innovation!AN23","v":0},{"$f":"Innovation!AO23","v":1096250},{"$f":"Innovation!AP23","v":0},{"$f":"Innovation!AQ23","v":0},{"$f":"Innovation!AR23","v":0},{"$f":"Innovation!AS23","v":0}]
[null,null,"8.6.2",{"$f":"Innovation!E24","v":"Validation des modifications apportées au cadre juridique"},null,{"$f":"Innovation!AM24","v":0},{"$f":"Innovation!AN24","v":0},{"$f":"Innovation!AO24","v":0},{"$f":"Innovation!AP24","v":0},{"$f":"Innovation!AQ24","v":0},{"$f":"Innovation!AR24","v":0},{"$f":"Innovation!AS24","v":0}]
[null,null,"8.6.3",{"$f":"Innovation!E25","v":"Finalisation des modifications institutionnelles et administratives"},null,{"$f":"Innovation!AM25","v":0},{"$f":"Innovation!AN25","v":0},{"$f":"Innovation!AO25","v":0},{"$f":"Innovation!AP25","v":0},{"$f":"Innovation!AQ25","v":0},{"$f":"Innovation!AR25","v":0},{"$f":"Innovation!AS25","v":0}]
[8.6999999999999993,"Renforcement des compétences du personnel impliqué dans la restructuration des procédures et dans la prestation de services publics.","8.7.1",{"$f":"Innovation!E26","v":"Préparation de programmes de formation."},null,{"$f":"Innovation!AM26","v":6000},{"$f":"Innovation!AN26","v":0},{"$f":"Innovation!AO26","v":0},{"$f":"Innovation!AP26","v":0},{"$f":"Innovation!AQ26","v":0},{"$f":"Innovation!AR26","v":0},{"$f":"Innovation!AS26","v":6000}]
[null,null,"8.7.2",{"$f":"Innovation!E27","v":" Sessions de formation générale  (2017)"},null,{"$f":"Innovation!AM27","v":74175},{"$f":"Innovation!AN27","v":0},{"$f":"Innovation!AO27","v":0},{"$f":"Innovation!AP27","v":0},{"$f":"Innovation!AQ27","v":0},{"$f":"Innovation!AR27","v":0},{"$f":"Innovation!AS27","v":74175}]
[null,"Coût total de l'Objectif 8",null,null,null,{"$f":"SUM(F153:F164)","v":10970077},{"$f":"SUM(G153:G164)","v":2322361.4861999997},1272242,0,1583750,0,5791723.5137999998,{"$f":"Innovation!AM28","v":10970077},{"$f":"Innovation!AN28","v":2322361.4861999997},{"$f":"Innovation!AO28","v":1272242},{"$f":"Innovation!AP28","v":0},{"$f":"Innovation!AQ28","v":1583750},{"$f":"Innovation!AR28","v":0},{"$f":"Innovation!AS28","v":5791723.5137999998}]
[9,"Objectif 9 : Développement d'une infrastructure de TIC capable de soutenir les activités quotidiennes de l'administration publique et d'amélioer le rendement en réduisnt le délai pour accéder aux informations, les traiter et les transmettre tout en améliorant le flux d'informations.",null,null,null,null,null,null,null,null,null,null,{"$f":"F165-M165","v":0},0,0,0,0,0,0]
[9.1,"Numérisation des registres principaux.","9.1.1",{"$f":"Innovation!E30","v":"Étude de l'analyse de la situation des principaux registres "},null,{"$f":"Innovation!AM30","v":200000},{"$f":"Innovation!AN30","v":0},{"$f":"Innovation!AO30","v":0},{"$f":"Innovation!AP30","v":0},{"$f":"Innovation!AQ30","v":0},{"$f":"Innovation!AR30","v":0},{"$f":"Innovation!AS30","v":200000}]
[9.1999999999999993,"Élaboration et utilisation d'un système intégré de TIC (fondé sur les exigences du processus de restructuration des services).","9.2.1",{"$f":"Innovation!E31","v":"Préparation d'un système intégré de TIC (fondé sur les exigences du processus de restructuration des services) ;"},null,{"$f":"Innovation!AM31","v":1350000},{"$f":"Innovation!AN31","v":350000},{"$f":"Innovation!AO31","v":0},{"$f":"Innovation!AP31","v":0},{"$f":"Innovation!AQ31","v":0},{"$f":"Innovation!AR31","v":0},{"$f":"Innovation!AS31","v":1000000}]
[null,null,"9.2.2",{"$f":"Innovation!E32","v":"Développement et consolidation du système ; Documents pour la formation des utilisateurs ; "},null,{"$f":"Innovation!AM32","v":11821000},{"$f":"Innovation!AN32","v":1550000},{"$f":"Innovation!AO32","v":0},{"$f":"Innovation!AP32","v":0},{"$f":"Innovation!AQ32","v":0},{"$f":"Innovation!AR32","v":0},{"$f":"Innovation!AS32","v":10271000}]
[null,null,"9.2.3",{"$f":"Innovation!E33","v":"Sessions de formaiton pour les utilisateurs du système de TIC (2017)"},null,{"$f":"Innovation!AM33","v":126081},{"$f":"Innovation!AN33","v":74175},{"$f":"Innovation!AO33","v":0},{"$f":"Innovation!AP33","v":0},{"$f":"Innovation!AQ33","v":51906},{"$f":"Innovation!AR33","v":0},{"$f":"Innovation!AS33","v":0}]
[9.3000000000000007,"Création d'un mécanisme pour que les citoyens qui contrôleront la qualité des services fournissent directement leur opinion par SMS, pour les destinaitaires du service uniquement.","9.3.1",{"$f":"Innovation!E34","v":"Élaboration d'un système permettant de rapporter les réactions des citoyens et de suivre les plaintes pour toutes les catégories de services fournis par l'administration.  "},null,{"$f":"Innovation!AM34","v":211000},{"$f":"Innovation!AN34","v":0},{"$f":"Innovation!AO34","v":0},{"$f":"Innovation!AP34","v":0},{"$f":"Innovation!AQ34","v":211000},{"$f":"Innovation!AR34","v":0},{"$f":"Innovation!AS34","v":0}]
[null,"Coût total de l'Objectif 9",null,null,null,{"$f":"SUM(F167:F171)","v":13708081},1974175,0,0,262906,0,11471000,{"$f":"Innovation!AM35","v":13708081},{"$f":"Innovation!AN35","v":1974175},{"$f":"Innovation!AO35","v":0},{"$f":"Innovation!AP35","v":0},{"$f":"Innovation!AQ35","v":262906},{"$f":"Innovation!AR35","v":0},{"$f":"Innovation!AS35","v":11471000}]
[10,"Objectif 10 : Renforcement de l'efficience et de la responsabilité des fonctionnaires. ",null,null,null,null,null,null,null,null,null,null,{"$f":"F172-M172","v":0},{"$f":"G172-N172","v":0},0,0,0,0,0]
[10.1,"Préparation d'un large programme de formation au nouveau Code de procédure administrative.","10.1.1",{"$f":"'Transparence & Anti-corruption '!E17","v":"Mise en œuvre du programme de renforcement des compétences pour les ministères sectoriels et les UGL, en ce qui concerne l'application du Code de procédure administrative (IAP A.1.1)"},null,{"$f":"'Transparence & Anti-corruption '!AL17","v":700000},{"$f":"'Transparence & Anti-corruption '!AM17","v":0},{"$f":"'Transparence & Anti-corruption '!AN17","v":700000},{"$f":"'Transparence & Anti-corruption '!AO17","v":0},{"$f":"'Transparence & Anti-corruption '!AP17","v":0},{"$f":"'Transparence & Anti-corruption '!AQ17","v":0},{"$f":"'Transparence & Anti-corruption '!AR17","v":0}]
[null,null,"10.1.2",{"$f":"'Transparence & Anti-corruption '!E18","v":"Développement des projets pilotes de délégation de prise de décisions."},null,{"$f":"'Transparence & Anti-corruption '!AL18","v":2000000},{"$f":"'Transparence & Anti-corruption '!AM18","v":0},{"$f":"'Transparence & Anti-corruption '!AN18","v":0},{"$f":"'Transparence & Anti-corruption '!AO18","v":0},{"$f":"'Transparence & Anti-corruption '!AP18","v":0},{"$f":"'Transparence & Anti-corruption '!AQ18","v":0},{"$f":"'Transparence & Anti-corruption '!AR18","v":2000000}]
[10.199999999999999,"Généraliser les délégations de compétences aux institutions afin de responsabiliser d'avantage les fonctionnaires.","10.2.1","Généraliser les délégations à l'ensemble de l'administration publique\"","Sans surcoût",{"$f":"'Transparence & Anti-corruption '!AL19","v":0},{"$f":"'Transparence & Anti-corruption '!AM19","v":0},{"$f":"'Transparence & Anti-corruption '!AN19","v":0},{"$f":"'Transparence & Anti-corruption '!AO19","v":0},{"$f":"'Transparence & Anti-corruption '!AP19","v":0},{"$f":"'Transparence & Anti-corruption '!AQ19","v":0},{"$f":"'Transparence & Anti-corruption '!AR19","v":0}]
[null,null,"10.2.2","Généraliser les délégations à l'ensemble de l'administration publique\"","L'estimation réelle du coût aura lieu après l'achèvement des projets pilotes. Le coût fixé n'est qu'indicatif.",{"$f":"'Transparence & Anti-corruption '!AL19","v":0},{"$f":"'Transparence & Anti-corruption '!AM19","v":0},{"$f":"'Transparence & Anti-corruption '!AN19","v":0},{"$f":"'Transparence & Anti-corruption '!AO19","v":0},{"$f":"'Transparence & Anti-corruption '!AP19","v":0},{"$f":"'Transparence & Anti-corruption '!AQ19","v":0},{"$f":"'Transparence & Anti-corruption '!AR19","v":0}]
[null,"Coût total de l'Objectif 10",null,null,null,{"$f":"SUM(F174:F177)","v":2700000},0,700000,0,0,0,2000000,{"$f":"'Transparence & Anti-corruption '!AL20","v":2700000},{"$f":"'Transparence & Anti-corruption '!AM20","v":0},{"$f":"'Transparence & Anti-corruption '!AN20","v":700000},{"$f":"'Transparence & Anti-corruption '!AO20","v":0},{"$f":"'Transparence & Anti-corruption '!AP20","v":0},{"$f":"'Transparence & Anti-corruption '!AQ20","v":0},{"$f":"'Transparence & Anti-corruption '!AR20","v":2000000}]
[11,"Objectif 11 : Renforcement du contrôle sur les activités de l'admnistration publique, garantissant les droits des citoyens et l'accès à l'information.",null,null,null,null,null,null,null,null,null,null,{"$f":"F178-M178","v":0},{"$f":"G178-N178","v":0},0,0,0,0,0]
[11.1,"Mise en œuvre du programme de transparence institutionnelle par les autorités publiques.",11.1,null,null,null,null,null,null,null,null,{"$f":"F180-G180-H180-K180","v":0}]
[11.2,"Utilisation des TIC pour renforcer la transparence des activités de l'administration.",11.2,null,null,null,null,null,null,null,null,{"$f":"F181-G181-H181-K181","v":0}]
[11.3,{"$f":"'Transparence & Anti-corruption '!C24","v":"Élaboration d'un mécanisme d'évaluationpour contrôler la mise en application cohérente et homogène des normes dans l'administration publique."},"11.3.1",{"$f":"'Transparence & Anti-corruption '!E24","v":"Développement d'un programme de contrôle de l'application des normes (IAP A.2.1)"},null,{"$f":"'Transparence & Anti-corruption '!AL24","v":600000},{"$f":"'Transparence & Anti-corruption '!AM24","v":0},{"$f":"'Transparence & Anti-corruption '!AN24","v":600000},{"$f":"'Transparence & Anti-corruption '!AO24","v":0},{"$f":"'Transparence & Anti-corruption '!AP24","v":0},{"$f":"'Transparence & Anti-corruption '!AQ24","v":0},{"$f":"'Transparence & Anti-corruption '!AR24","v":0}]
[null,"Coût total de l'Objectif 11",null,null,null,{"$f":"SUM(F180:F182)","v":600000},0,600000,0,0,0,0,{"$f":"'Transparence & Anti-corruption '!AL25","v":600000},{"$f":"'Transparence & Anti-corruption '!AM25","v":0},{"$f":"'Transparence & Anti-corruption '!AN25","v":600000},{"$f":"'Transparence & Anti-corruption '!AO25","v":0},{"$f":"'Transparence & Anti-corruption '!AP25","v":0},{"$f":"'Transparence & Anti-corruption '!AQ25","v":0},{"$f":"'Transparence & Anti-corruption '!AR25","v":0}]
[null,"Total ",null,null,null,{"$f":"F41+F63+F84+F96+F103+F145+F151+F165+F172+F178+F183","v":79644514.400000006},18818158.4012,5394266.25,315000,18053278,916078,36147733.748799995,{"$f":"F183-M183","v":0},0,0,0,0,0,0]
[]
[]
[null,null,null,"FP&GRH",{"$f":"'Fonction publique et GRH'!AL44","v":5819425},{"$f":"'Fonction publique et GRH'!AM44","v":405000},{"$f":"'Fonction publique et GRH'!AN44","v":1200000},{"$f":"'Fonction publique et GRH'!AO44","v":50000},{"$f":"'Fonction publique et GRH'!AP44","v":348000},{"$f":"'Fonction publique et GRH'!AQ44","v":0},{"$f":"'Fonction publique et GRH'!AR44","v":3816425}]
[null,null,null,"EAAP",{"$f":"EAAP!AU45","v":989131},{"$f":"EAAP!AV45","v":317106.51500000001},{"$f":"EAAP!AW45","v":672024.25},{"$f":"EAAP!AX45","v":0},{"$f":"EAAP!AY45","v":0},{"$f":"EAAP!AZ45","v":0},{"$f":"EAAP!BA45","v":0.2349999999796637}]
[null,null,null,"Élaboration&Suivi des politiques",{"$f":"'Politiques&Suivi&Législation'!AN88","v":10852580.4},{"$f":"'Politiques&Suivi&Législation'!AO88","v":96145.400000000009},{"$f":"'Politiques&Suivi&Législation'!AP88","v":450000},{"$f":"'Politiques&Suivi&Législation'!AQ88","v":0},{"$f":"'Politiques&Suivi&Législation'!AR88","v":372900},{"$f":"'Politiques&Suivi&Législation'!AS88","v":0},{"$f":"'Politiques&Suivi&Législation'!AT88","v":9933535}]
[null,null,null,"Innovation",{"$f":"Innovation!AM36","v":50483328},{"$f":"Innovation!AN36","v":13699906.486199999},{"$f":"Innovation!AO36","v":1272242},{"$f":"Innovation!AP36","v":0},{"$f":"Innovation!AQ36","v":17332378},{"$f":"Innovation!AR36","v":916078},{"$f":"Innovation!AS36","v":17262723.513799999}]
[null,null,null,"Décentralisation",{"$f":"'Décentralisation '!AL16","v":8127900},{"$f":"'Décentralisation '!AM16","v":4300000},{"$f":"'Décentralisation '!AN16","v":500000},{"$f":"'Décentralisation '!AO16","v":265000},{"$f":"'Décentralisation '!AP16","v":0},{"$f":"'Décentralisation '!AQ16","v":0},{"$f":"'Décentralisation '!AR16","v":3062900}]
[null,null,null,"Transparence et Anti-corruption",{"$f":"'Transparence & Anti-corruption '!AL26","v":3372150},{"$f":"'Transparence & Anti-corruption '!AM26","v":0},{"$f":"'Transparence & Anti-corruption '!AN26","v":1300000},{"$f":"'Transparence & Anti-corruption '!AO26","v":0},{"$f":"'Transparence & Anti-corruption '!AP26","v":0},{"$f":"'Transparence & Anti-corruption '!AQ26","v":0},{"$f":"'Transparence & Anti-corruption '!AR26","v":2072150}]
[null,null,null,"Total",{"$f":"SUM(E187:E192)","v":79644514.400000006},18818158.4012,5394266.25,315000,18053278,916078,36147733.748799995]
[null,null,null,"Écart",{"$f":"F184-E193","v":0},0,0,0,0,0,0]
[]
[]
[null,null,null,null,null,"Total",{"$f":"F184","v":79644514.400000006}]
[null,null,null,null,null,"Financement gouvernemental",{"$f":"G184","v":18818158.4012},{"$f":"G198/$G$197","v":0.23627689292810855}]
[null,null,null,null,null,"Contributions des donneurs",{"$f":"H184+I184+J184+K184+Innovation!AU38","v":36377423.363799997},{"$f":"G199/$G$197","v":0.45674738100732265}]
[null,null,null,null,null,"Écart financier",{"$f":"L184-Innovation!AU38","v":24448932.634999998},{"$f":"G200/$G$197","v":0.30697572606456869}]

{"sheet":"Fonction publique et GRH","index":3,"n_rows":46,"n_cols":44,"rows_kept":46,"cut":false,"hidden":false,"merged":[[38,0,41,0],[17,0,34,0],[17,1,19,1],[38,1,39,1],[29,2,30,2],[23,2,26,2],[29,1,30,1],[17,2,19,2],[37,0,37,43],[27,1,28,1],[27,2,28,2],[31,1,34,1],[1,1,1,15],[2,0,2,4],[2,6,2,9],[2,10,2,27],[31,2,34,2],[21,1,22,1],[21,2,22,2],[23,1,26,1],[8,2,11,2],[8,1,11,1],[4,19,4,21],[15,0,15,43],[7,0,7,43],[8,0,13,0],[12,2,13,2],[12,1,13,1],[3,0,5,0],[3,1,5,2],[3,3,5,4],[3,6,4,9],[3,10,4,18],[4,5,5,5],[4,30,4,32],[4,33,4,35],[2,38,4,43],[4,22,4,24],[38,2,39,2],[2,28,3,35],[3,25,4,27],[2,36,5,36],[3,19,3,24],[4,28,5,28],[4,29,5,29],[2,37,5,37]]}
[]
[]
[null,null,null,null,null,null,"Dépenses de la catégorie économique \"Rémunérations et salaires\" : (Code 600-601)",null,null,null,null,null,null,null,null,null,null,null,null,null,null,null,null,null,null,null,null,null,"Investissements ",null,null,null,null,null,null,null,"Autres dépenses","Coût estimé de la réalisation ","Sources de financement (par réalisation)"]
["Numéro ","Action",null,"Indicateurs de réalisation",null,null,"Fonds de rémunération pour le personnel supplémentaire ",null,null,null,"Dépenses pour les conférences/séminaires et la formation   ",null,null,null,null,null,null,null,null,"Services de conseil divers (assistance technique)",null,null,null,null,null,"Dépenses d'information publique (publications)  "]
[null,null,null,null,null,"Activité avec/sans coût additionnel",null,null,null,null,null,null,null,null,null,null,null,null,null,"Expertise locale",null,null,"Expertise étrangère",null,null,null,null,null,"Immeubles","Développement de logiciels","Équipement informatique",null,null,"Fournitures de bureau "]
[null,null,null,null,null,null,"Nb","Salaire moyen","Mois","Valeur totale","Nb d'activités de formation/séminaires","Jour/activité","Participants à la formation","Location de salle/jour","Coût pour une personne (café/restauration)","Coût moyen d'hébergement/nuit ","Valeur matériel/personne",null,"Valeur totale","Jour/expert","Honoraires","Total ","Jour/expert","Honoraires","Total","Article/activité","Prix/valeur par unité","Total",null,null,"Pièce ","Prix moyen/unité","Valeur totale","Pièce","Prix moyen/unité","Valeur totale",null,null,"Budget de l'État (PBMT 2015-2017)","IAP","CDE","BM","UNDP","Écart budgétaire"]
["a","c","d","e","f",null,1,2,3,4,5,6,7,8,9,10,11,12,13,14,15,16,17,18,19,20,21,22,23,24,25,26,27,28,29,30,31,32,33,34,35,36,37,38]
["Objectif 4 : Renforcer les structures de l'administration publique afin d'améliorer la prestation de services aux citoyens.\n\n"]
[4,4.0999999999999996,"4.1. Mener une étude pour examiner les fonctions et l'organisation interne des institutions de l'administration aux niveaux central et local :","4.1.1","Étude et analyse du transfert des fonctions de l'État vers le marché privé de la prestation de services.",null,null,null,null,{"$f":"G9*H9*I9","v":0},10,2,20,300,25,null,20,null,{"$f":"(K9*L9*N9)+(K9*L9*M9*O9)+(K9*L9*M9*P9)+(K9*M9*Q9)+(K9*L9*R9)","v":20000},500,350,{"$f":"T9*U9","v":175000},700,1200,{"$f":"W9*X9","v":840000},null,null,{"$f":"Z9*AA9","v":0},null,null,null,null,{"$f":"AE9*AF9","v":0},null,null,{"$f":"AH9*AI9","v":0},200000,{"$f":"J9+S9+V9+Y9+AB9+AG9+AJ9+AK9+AC9+AD9","v":1235000},null,null,null,null,null,{"$f":"AL9-AM9-AN9-AO9-AP9-AQ9","v":1235000}]
[null,null,null,"4.1.2","Évaluation (inventaire) des nouvelles unités de ressources humaines au niveau national.",null,null,null,null,null,null,null,null,null,null,null,null,null,null,null,null,50000,null,null,null,null,null,null,null,null,null,null,null,null,null,null,null,50000,null,null,null,null,null,50000]
[null,null,null,"4.1.3","Création d'un cadre fonctionnel pour les relations entre les ministères et leurs institutions subordonnées.  ",null,null,null,null,{"$f":"G11*H11*I11","v":0},15,5,15,300,25,null,20,null,{"$f":"(K11*L11*N11)+(K11*L11*M11*O11)+(K11*L11*M11*P11)+(K11*M11*Q11)+(K11*L11*R11)","v":55125},150,350,{"$f":"T11*U11","v":52500},320,1200,{"$f":"W11*X11","v":384000},null,null,{"$f":"Z11*AA11","v":0},null,null,null,null,{"$f":"AE11*AF11","v":0},null,null,{"$f":"AH11*AI11","v":0},50000,541625,null,null,50000,null,null,491625]
[null,null,null,"4.1.4","Manuel de procédures pour les procédures administratives et le système de gestion des documents dans les ministères sectoriels (IAP A.1.5).","Activité 1.5",null,null,null,{"$f":"G12*H12*I12","v":0},null,null,null,null,null,null,null,null,{"$f":"(K12*L12*N12)+(K12*L12*M12*O12)+(K12*L12*M12*P12)+(K12*M12*Q12)+(K12*L12*R12)","v":0},null,null,50000,null,null,100000,null,null,{"$f":"Z12*AA12","v":0},null,150000,null,null,200000,null,null,{"$f":"AH12*AI12","v":0},null,500000,null,500000,null,null,null,0]
[null,4.2,"4.2. Mener des interventions juridiques dans les actes constitutif des institutions subordonnées et les agences ministérielles, réviser les organigrammes et les descriptions de postes, et relocaliser les nouveaux sièges selon les entités territoriales.","4.2.1","Examen du cadre juridique pertinent. ",null,null,null,null,{"$f":"G13*H13*I13","v":0},null,null,null,null,null,null,null,null,{"$f":"(K13*L13*N13)+(K13*L13*M13*O13)+(K13*L13*M13*P13)+(K13*M13*Q13)+(K13*L13*R13)","v":0},null,null,{"$f":"T13*U13","v":0},null,null,{"$f":"W13*X13","v":0},null,null,{"$f":"Z13*AA13","v":0},null,null,null,null,{"$f":"AE13*AF13","v":0},null,null,{"$f":"AH13*AI13","v":0},40000,40000,40000,null,null,null,null,0]
[null,null,null,"4.2.2","Examen fonctionnel des institutions et adaptation à la nouvelle division territoriale.",null,null,null,null,{"$f":"G14*H14*I14","v":0},null,null,null,null,null,null,null,null,{"$f":"(K14*L14*N14)+(K14*L14*M14*O14)+(K14*L14*M14*P14)+(K14*M14*Q14)+(K14*L14*R14)","v":0},null,null,{"$f":"T14*U14","v":0},null,null,{"$f":"W14*X14","v":0},null,null,{"$f":"Z14*AA14","v":0},null,null,null,null,{"$f":"AE14*AF14","v":0},null,null,{"$f":"AH14*AI14","v":0},30000,30000,30000,null,null,null,null,0]
[null,null,null,null,null,null,null,null,null,null,null,null,null,null,null,null,null,null,{"$f":"SUM(S9:S14)","v":75125},null,null,{"$f":"SUM(V9:V14)","v":327500},null,null,1324000,0,0,0,0,150000,0,0,200000,0,0,0,320000,2396625,70000,500000,50000,0,0,1776625]
["Objectif 6 : Amélioration des capacités de mise en œuvre de la législation sur la fonction publique et simplification des méthodes d'éxécution.\n\n"]
[null,6.1,"6.1. Évaluation des capacités en ressources humaines pour la mise en oeuvre de la Loi sur la fonction publique dans les institutions nouvellement constituées et renforcement des compétences pour mettre en oeuvre des procédures uniformes.","6.1.6","L'évaluation du respect de la nouvelle Loi sur la fonction publique concernant les structures actuelles de gestion et de contrôle.  ","Jumelage A.1.1.5",null,null,null,null,null,null,null,null,null,null,null,null,null,null,null,null,null,null,null,null,null,null,null,null,null,null,null,null,null,null,50000,50000,50000,null,null,null,null,{"$f":"AL17-AM17-AN17-AO17-AP17-AQ17","v":0}]
[6,6.2,"Renforcement des capacités de planification des ressources humaines dans les institutions de l'administration publique","6.2.1","Étude de la capacité des structures menée par le DAP","Pas de surcoût",null,null,null,{"$f":"G18*H18*I18","v":0},null,null,null,null,null,null,null,null,{"$f":"(K18*L18*N18)+(K18*L18*M18*O18)+(K18*L18*M18*P18)+(K18*M18*Q18)+(K18*L18*R18)","v":0},null,null,{"$f":"T18*U18","v":0},null,null,{"$f":"W18*X18","v":0},null,null,{"$f":"Z18*AA18","v":0},null,null,null,null,{"$f":"AE18*AF18","v":0},null,null,{"$f":"AH18*AI18","v":0},60000,60000,60000,null,null,null,null,{"$f":"AL18-AM18-AN18-AO18-AP18-AQ18","v":0}]
[null,null,null,"6.2.2","La méthodologie de la planification à long terme des ressources humaines.",null,null,null,null,{"$f":"G19*H19*I19","v":0},2,1,20,300,25,null,20,null,{"$f":"(K19*L19*N19)+(K19*L19*M19*O19)+(K19*L19*M19*P19)+(K19*M19*Q19)+(K19*L19*R19)","v":2400},50,350,{"$f":"T19*U19","v":17500},null,null,{"$f":"W19*X19","v":0},null,null,0,null,null,null,null,{"$f":"AE19*AF19","v":0},null,null,{"$f":"AH19*AI19","v":0},null,{"$f":"J19+S19+V19+Y19+AB19+AG19+AJ19+AK19+AC19+AD19","v":19900},null,null,null,null,null,19900]
[null,null,null,"6.2.3","Programme de formation spécifique pour la planification à long terme des ressources humaines.","Après la rédaction de la méthodologie",null,null,null,{"$f":"G20*H20*I20","v":0},null,null,null,null,null,null,null,null,{"$f":"(K20*L20*N20)+(K20*L20*M20*O20)+(K20*L20*M20*P20)+(K20*M20*Q20)+(K20*L20*R20)","v":0},null,null,{"$f":"T20*U20","v":0},null,null,{"$f":"W20*X20","v":0},null,null,0,null,null,null,null,{"$f":"AE20*AF20","v":0},null,null,{"$f":"AH20*AI20","v":0},null,0,null,null,null,null,null,0]
[null,6.3,"Renforcement des capacités du Département de l'Administration publique (DAP) pour mener la stratégie de réforme de la fonction publique :","6.3.1","Formations fournies par les programmes de l'EAAP.",null,null,null,null,{"$f":"G21*H21*I21","v":0},null,null,null,null,null,null,null,null,{"$f":"(K21*L21*N21)+(K21*L21*M21*O21)+(K21*L21*M21*P21)+(K21*M21*Q21)+(K21*L21*R21)","v":0},null,null,{"$f":"T21*U21","v":0},null,null,{"$f":"W21*X21","v":0},null,null,0,null,null,null,null,{"$f":"AE21*AF21","v":0},null,null,{"$f":"AH21*AI21","v":0},null,0,null,null,null,null,null,0]
[null,6.4,"Fonctionnement du Commissaire à la fonction publique","6.4.1","La création de mécanismes de renforcement de la coopération entre le CFP et les institutions de l'administraiton publique (IAP A.2.3).",null,null,null,null,null,null,null,null,null,null,null,null,null,null,null,null,null,null,null,300000,null,null,0,null,null,null,null,null,null,null,null,null,300000,null,{"$f":"AL22","v":300000},null,null,null,0]
[null,null,null,"6.4.2","Renforcement des capacités du CFP (partiellement IAP A.2.4).",null,null,null,null,{"$f":"G23*H23*I23","v":0},null,null,null,null,null,null,null,null,{"$f":"(K23*L23*N23)+(K23*L23*M23*O23)+(K23*L23*M23*P23)+(K23*M23*Q23)+(K23*L23*R23)","v":0},null,null,{"$f":"T23*U23","v":0},null,null,50000,null,null,0,null,null,null,null,{"$f":"AE23*AF23","v":0},null,null,{"$f":"AH23*AI23","v":0},null,50000,null,{"$f":"AL23","v":50000},null,null,null,0]
[null,6.5," Mise en place d'un système pour créer les bases de données avec des questions préparées et l'utilisation de systèmes électroniques d'évaluation pour les procédures d'examen en cas de recrutement dans la fonction publique (2017)","6.5.1","Mise en place de la plateforme du système. ",null,null,null,null,0,null,null,null,null,null,null,null,null,35000,null,null,0,null,null,{"$f":"W24*X24","v":0},null,null,0,null,25000,null,null,0,null,null,0,5000,65000,5000,null,null,60000,null,0]
[null,null,null,"6.5.2","Banque de questions pour l'examen dirigé (pour 10 disciplines).",null,null,null,null,0,null,null,null,null,null,null,null,null,{"$f":"(K25*L25*N25)+(K25*L25*M25*O25)+(K25*L25*M25*P25)+(K25*M25*Q25)+(K25*L25*R25)","v":0},{"$f":"10*10","v":100},350,35000,{"$f":"10*30","v":300},1200,360000,null,null,0,null,null,null,null,0,null,null,0,50000,445000,50000,null,null,null,null,395000]
[null,null,null,"6.5.3","Systèmes de quesitons testés",null,null,null,null,0,null,null,null,null,null,null,null,null,0,null,null,0,null,null,0,null,null,0,null,null,null,null,0,null,null,0,30000,30000,30000,null,null,null,null,0]
[null,null,null,"6.5.4","Système d'examen automatique élaboré (pour 15 disciplines).",null,null,null,null,0,null,null,null,null,null,null,null,null,0,80,350,28000,{"$f":"15*10","v":150},1200,180000,null,null,0,null,null,null,null,0,null,null,0,5000,213000,5000,null,null,null,null,208000]
[null,6.6,"Simplification et formattage des étapes et procédures liées aux ressources humaines dans l'administration publique, par l'utilisation de modèles ou formulaires standard (2017)","6.6.1","Étude d'évaluation pour 17 systèmes (2 experts locaux et 5 experts étrangers).",null,null,null,null,0,null,null,null,null,null,null,null,null,0,300,350,105000,200,1200,240000,null,null,0,null,null,null,null,0,null,null,0,3000,348000,null,null,null,null,null,348000]
[null,null,null,"6.6.2","Formation du personnel des ministères pour utiliser les formulaires standard (4 formations X 20 personnes/formation X 3 jours de formation).",null,null,null,null,0,4,3,20,300,25,null,20,null,11200,null,null,0,null,null,0,null,null,0,null,null,null,null,0,null,null,0,null,11200,null,null,null,null,null,11200]
[null,6.7," Publication annuelle, sur le site internet du DAP, de l'ensemble d'indicateurs liés à la gestion des ressources humaines dans la fonction publique. (Chaque année, à partir de 2015) ","6.7.1","Système de suivi élaboré ",null,null,null,null,0,null,null,null,null,null,null,null,null,0,null,null,0,100,1200,120000,null,null,0,null,null,null,null,0,null,null,0,10000,130000,null,null,null,null,null,130000]
[null,null,null,"6.7.2","Rapports de suivi publiés","Pas de surcoût",null,null,null,0,null,null,null,null,null,null,null,null,0,null,null,0,null,null,0,null,null,0,null,null,null,null,0,null,null,0,8000,8000,null,null,null,null,null,8000]
[null,6.8,"Finalisation du SIGRH et exécution du plan de mise en œuvre  ","6.8.1","Adaptation et activation des modules et interopérabilité et implémentation du SIGRH.","IPS 2",null,null,null,0,null,null,null,null,null,null,null,null,0,null,null,0,null,null,0,null,null,20000,null,288000,null,null,0,null,null,0,null,308000,20000,null,null,{"$f":"AL32-AM32","v":288000},null,0]
[null,null,null,"6.8.2","Formation de 500 personnels de GRH (Total 20 formation ; 3jours de formation x 25 personnes/formation).",null,null,null,null,0,20,3,25,300,25,30,20,null,110500,{"$f":"(20*3)*2 +3","v":123},350,43050,null,null,0,null,null,0,null,null,null,null,0,null,null,0,5000,158550,null,null,null,null,null,158550]
[null,null,null,"6.8.3","Analyse des systèmes de fonctionnement du SIGRH accomplie.",null,null,null,null,0,null,null,null,null,null,null,null,null,0,null,null,0,null,null,0,null,null,0,null,null,null,null,0,null,null,0,30000,30000,30000,null,null,null,null,0]
[null,null,null,"6.8.4","Maintenance du système (50 personnes formées tous les 2 ans - nouveaux spécialistes GRH).",null,null,null,null,0,6,3,25,300,25,30,20,null,33150,null,null,0,null,null,0,null,null,0,null,null,null,null,0,null,null,0,3000,36150,null,null,null,null,null,36150]
[null,6.9,null,"6.9.1","La mise en place d'un système pour l'avancement professionnel dans la fonction publique (IAP A.1.4).",null,null,null,null,null,null,null,null,null,null,null,null,null,null,null,null,null,null,null,200000,null,null,null,null,150000,null,null,null,null,null,null,null,{"$f":"J36+S36+V36+Y36+AB36+AG36+AJ36+AK36+AC36+AD36","v":350000},null,350000,null,null,null,0]
[null,null,null,null,null,null,null,null,null,null,null,null,null,null,null,null,null,null,{"$f":"SUM(S17:S36)","v":192250},null,null,{"$f":"SUM(V17:V36)","v":228550},null,null,{"$f":"SUM(Y17:Y36)","v":1450000},0,0,20000,0,463000,0,0,0,0,0,0,259000,2612800,250000,700000,0,348000,0,1314800]
["Objectif 7 : Organisation du système de rémunération de la fonction publique sur la base de l'évaluation des postes, de l'évaluation des résultats annuels des fonctionnaires et des résultats des formations professionnelles obligatoires. \n"]
[7,7.1,"Elaboration d'un document stratégique sur le système de rémunération et l'adoption de la nouvelle structure de rémunérations (2017)","7.1.1","Étude d'évaluation du système de rémunérations",null,null,null,null,{"$f":"G39*H39*I39","v":0},null,null,null,null,null,null,null,null,{"$f":"(K39*L39*N39)+(K39*L39*M39*O39)+(K39*L39*M39*P39)+(K39*M39*Q39)+(K39*L39*R39)","v":0},200,350,{"$f":"T39*U39","v":70000},300,1200,{"$f":"W39*X39","v":360000},null,null,{"$f":"Z39*AA39","v":0},null,null,null,null,{"$f":"AE39*AF39","v":0},null,null,{"$f":"AH39*AI39","v":0},50000,{"$f":"J39+S39+V39+Y39+AB39+AG39+AJ39+AK39+AC39+AD39","v":480000},50000,null,null,null,null,{"$f":"AL39-AM39-AN39-AO39-AP39-AQ39","v":430000}]
[null,null,null,"7.1.2","Projet de stratégie élaboré. ",null,null,null,null,{"$f":"G40*H40*I40","v":0},null,null,null,null,null,null,null,null,{"$f":"(K40*L40*N40)+(K40*L40*M40*O40)+(K40*L40*M40*P40)+(K40*M40*Q40)+(K40*L40*R40)","v":0},100,350,{"$f":"T40*U40","v":35000},200,1200,{"$f":"W40*X40","v":240000},null,null,{"$f":"Z40*AA40","v":0},null,null,null,null,{"$f":"AE40*AF40","v":0},null,null,{"$f":"AH40*AI40","v":0},50000,{"$f":"J40+S40+V40+Y40+AB40+AG40+AJ40+AK40+AC40+AD40","v":325000},30000,null,null,null,null,{"$f":"AL40-AM40-AN40-AO40-AP40-AQ40","v":295000}]
[null,7.2,"Adoption de nouvelles décisions sur les rémunérations et mise en œuvre de la nouvelle structure (2020)","7.2.1","Nouvelle structure de rémunérations adoptée. ","Le coût sera déterminé après l'achèvement de l'étude et l'approbation de la nouvelle stratégie.",null,null,null,{"$f":"G41*H41*I41","v":0},null,null,null,null,null,null,null,null,{"$f":"(K41*L41*N41)+(K41*L41*M41*O41)+(K41*L41*M41*P41)+(K41*M41*Q41)+(K41*L41*R41)","v":0},null,null,{"$f":"T41*U41","v":0},null,null,{"$f":"W41*X41","v":0},null,null,{"$f":"Z41*AA41","v":0},null,null,null,null,{"$f":"AE41*AF41","v":0},null,null,{"$f":"AH41*AI41","v":0},null,{"$f":"J41+S41+V41+Y41+AB41+AG41+AJ41+AK41+AC41+AD41","v":0},null,null,null,null,null,{"$f":"AL41-AM41-AN41-AO41-AP41-AQ41","v":0}]
[null,7.3,"Examen des ratios entre les rémunérations moyennes maximum et minimum dans l'administration publique, afin de maintenir une pyramide des salaires objective et la motivation des postes de direction, ainsi que la diversification de la classification selon le contenu des postes.","7.3.1","Nouvelle classification des salaires et amendement de la loi sur les taux salariaux.",null,null,null,null,{"$f":"G42*H42*I42","v":0},null,null,null,null,null,null,null,null,null,null,null,{"$f":"T42*U42","v":0},null,null,{"$f":"W42*X42","v":0},null,null,{"$f":"Z42*AA42","v":0},null,null,null,null,{"$f":"AE42*AF42","v":0},null,null,{"$f":"AH42*AI42","v":0},5000,{"$f":"J42+S42+V42+Y42+AB42+AG42+AJ42+AK42+AC42+AD42","v":5000},5000,null,null,null,null,{"$f":"AL42-AM42-AN42-AO42-AP42-AQ42","v":0}]
[null,null,null,null,null,null,null,null,null,null,{"$f":"SUM(K39:K42)","v":0},0,0,0,0,0,0,0,0,null,null,105000,null,null,600000,0,0,0,0,0,0,0,0,0,0,0,105000,810000,{"$f":"SUM(AM39:AM42)","v":85000},0,0,0,0,725000]
[null,null,null,null,null,null,null,null,null,{"$f":"J15+J37+J43","v":0},0,0,0,0,0,0,0,0,267375,null,null,{"$f":"V15+V37+V43","v":661050},null,null,{"$f":"Y15+Y37+Y43","v":3374000},0,0,20000,0,613000,0,0,200000,0,0,0,684000,5819425,405000,1200000,50000,348000,0,3816425]
[]
[null,null,null,null,null,null,null,null,null,null,null,null,null,null,null,null,null,null,null,null,null,null,null,null,null,null,null,null,null,null,null,null,null,null,null,null,null,{"$f":"J44+S44+V44+Y44+AB44+AD44+AG44+AK44","v":5819425},{"$f":"AL44-AL46","v":0}]

{"sheet":"EAAP","index":4,"n_rows":52,"n_cols":53,"rows_kept":52,"cut":false,"hidden":false,"merged":[[34,50,35,50],[25,46,27,46],[32,46,33,46],[32,47,33,47],[32,48,33,48],[41,52,42,52],[34,46,35,46],[34,47,35,47],[34,48,35,48],[34,51,35,51],[34,52,35,52],[41,49,42,49],[41,50,42,50],[38,46,39,46],[38,47,39,47],[38,48,39,48],[38,51,39,51],[41,46,42,46],[41,47,42,47],[41,48,42,48],[41,51,42,51],[38,52,39,52],[38,49,39,49],[38,50,39,50],[34,49,35,49],[7,51,8,51],[25,47,27,47],[25,48,27,48],[25,51,27,51],[25,52,27,52],[17,52,19,52],[20,46,21,46],[20,47,21,47],[20,48,21,48],[20,51,21,51],[17,47,19,47],[17,51,19,51],[17,50,19,50],[20,49,21,49],[20,50,21,50],[20,52,21,52],[22,51,24,51],[22,50,24,50],[22,49,24,49],[14,50,16,50],[7,52,8,52],[17,49,19,49],[22,46,24,46],[22,47,24,47],[38,1,43,1],[38,3,39,3],[41,3,42,3],[17,3,19,3],[36,2,37,2],[34,2,35,2],[14,0,24,0],[14,51,16,51],[14,52,16,52],[32,51,33,51],[32,52,33,52],[22,48,24,48],[28,49,31,49],[28,46,31,46],[28,47,31,47],[32,49,33,49],[32,50,33,50],[28,48,31,48],[22,52,24,52],[28,51,31,51],[28,52,31,52],[28,50,31,50],[25,49,27,49],[25,50,27,50],[7,49,8,49],[12,48,13,48],[12,49,13,49],[14,46,16,46],[14,47,16,47],[14,48,16,48],[14,40,16,40],[38,0,43,0],[25,0,31,0],[28,2,31,2],[22,2,24,2],[14,2,16,2],[14,1,24,1],[25,2,27,2],[32,0,37,0],[20,3,21,3],[22,3,24,3],[32,3,33,3],[34,3,35,3],[36,3,37,3],[28,3,31,3],[14,3,16,3],[41,2,42,2],[38,2,39,2],[17,44,19,44],[17,48,19,48],[17,2,19,2],[12,3,13,3],[14,43,16,43],[14,44,16,44],[17,46,19,46],[14,49,16,49],[12,2,13,2],[12,46,13,46],[12,47,13,47],[17,40,19,40],[20,2,21,2],[32,2,33,2],[25,1,31,1],[25,3,27,3],[32,1,37,1],[3,26,4,28],[3,0,5,0],[1,1,1,16],[2,0,2,5],[2,7,2,10],[2,11,2,28],[3,20,3,25],[7,0,13,0],[7,3,8,3],[7,2,8,2],[7,1,13,1],[2,39,4,44],[12,51,13,51],[12,52,13,52],[2,46,4,52],[3,1,5,1],[3,2,5,3],[3,4,5,5],[4,6,5,6],[4,20,4,22],[3,7,4,10],[3,11,4,19],[2,37,5,37],[4,29,5,29],[2,29,3,36],[2,38,5,38],[4,23,4,25],[4,30,5,30],[4,34,4,36],[4,31,4,33],[12,50,13,50],[7,50,8,50],[7,46,8,46],[7,47,8,47],[7,48,8,48]]}
[]
[null,"Tableau 1 : Estimation du coût de la Stratégie transversale de réforme de l'administration publique - EAAP"]
[null,null,null,null,null,null,null,"Dépenses de la catégorie économique \"Rémunérations et salaires\" : (Code 600-601)",null,null,null," ",null,null,null,null,null,null,null,null,null,null,null,null,null,null,null,null,null,"Investissements ",null,null,null,null,null,null,null,"Autres dépenses ","Coût estimé de la réalisation ","Sources de financement (par réalisation)",null,null,null,null,null,null,"Dotation budgétaire au cours des années"]
["Numéro","L'objectif et le but de la Stratégie","Action",null,"Indicateurs de réalisation",null,null,"Fonds de rémunération pour le personnel supplémentaire ",null,null,null,"Dépenses pour les conférences/séminaires et la formation   ",null,null,null,null,null,null,null,null,"Services de conseil divers (assistance technique)",null,null,null,null,null,"Dépenses d'information publique (publications)  "]
[null,null,null,null,null,null,"Activité avec/sans coût additionnel",null,null,null,null,null,null,null,null,null,null,null,null,null,"Expertise locale",null,null,"Expertise étrangère",null,null,null,null,null,"Immeubles","Développement de logiciels","Équipement informatique",null,null,"Fournitures de bureau "]
[null,null,null,null,null,null,null,"Nb","Salaire moyen","Mois","Valeur totale","Nb d'activités de formation/séminaires","Jour/activité","Participants à la formation","Location de salle/jour","Coût pour une personne (café/restauration)","Coût moyen d'hébergement/nuit ","Valeur matériel/personne","Honoraires du formateur/jour",{"$f":"(L6*M6*O6)+(L6*M6*N6*P6)+(L6*M6*N6*Q6)+(L6*N6*R6)+(L6*M6*S6)","v":{"$error":"#VALUE!"}},"Jour/expert","Honoraires","Total ","Jour/expert","Honoraires","Total","Article/activité","Prix/valeur par unité","Total",null,null,"Pièce ","Prix moyen/unité","Valeur totale","Pièce","Prix moyen/unité","Valeur totale",null,null,"Budget de l'État (PBMT 2015-2017)","IAP","CDE","BM","UNDP","Écart budgétaire",null,"Coût estimé de l'activité","Budget de l'État (PBMT 2015-2017)","IAP","CDE","BM","PNUD","Écart financier"]
["a","b","c","d","e","f",null,1,2,3,"4(1x2x3)",11,null,12,13,14,15,16,null,{"$f":"(L7*M7*O7)+(L7*M7*N7*P7)+(L7*M7*N7*Q7)+(L7*N7*R7)+(L7*M7*S7)","v":2112},14,15,16,17,18,20,30,31,32,34,null,21,22,23,24,25,26,41,42,43,44,null,null,45,46]
[1,"Offre de formation pour répondre à la demande croissante d'experts et de formations, créée par le statut de pays candidat attribué à l'Albanie. ",1.1000000000000001,"Réalisation dans les unités et les programmes d'une série d'activités mises à jour pour refléter les exigences et besoins nouveaux engendrés pa la Loi sur la fonction publique. ","1.1.1","Le programme de formation (cours de base et spécialisés) est rédigé et est approuvé avec les objectifs du programme, les objectifs pédagogiques et les critères d'évaluation.",null,null,null,null,{"$f":"H8*I8*J8","v":0},null,null,null,null,null,null,null,null,0,null,null,{"$f":"U8*V8","v":0}," ",null,14242,null,null,{"$f":"AA8*AB8","v":0},null,null,null,null,{"$f":"AF8*AG8","v":0},null,null,{"$f":"AI8*AJ8","v":0},null,{"$f":"K8+T8+W8+Z8+AC8+AH8+AK8+AL8+AD8+AE8","v":14242},null,14242," ",null,null,{"$f":"AM8-AN8-AO8-AR8","v":0},null,{"$f":"AM8+AM9","v":119992},{"$f":"AN8+AN9","v":35610},{"$f":"AO8+AO9","v":84382},{"$f":"AR8+AR9","v":0},{"$f":"AS8+AS9","v":0},{"$f":"AR8+AR9","v":0},{"$f":"AU8-AV8-AW8","v":0}]
[null,null,null,null,"1.1.2","Les cours sont organisés en fonction des besoins",null,null,null,null,0,180,3.5,20,0,0,0,18,65,105750,null,null,0,null,null,{"$f":"X9*Y9","v":0},null,null,0,null,null,null,null,0,null,null,0,null,{"$f":"K9+T9+W9+Z9+AC9+AH9+AK9+AL9+AD9+AE9","v":105750},35610,{"$f":"AM9-AN9","v":70140},null,null,null,{"$f":"AM9-AN9-AO9-AR9","v":0}]
[null,null,1.2,"Identification régulières des besoins en formation grâce à une analyse de ces besoins.  ","1.2.1","Les besoins spécifiques en termes de formation et les groupes cibles sont identifiés ",null,null,null,null,0,45,2,20,0,0,0,18,65,22050,null,null,0,null,null,0,null,null,0,null,null,null,null,0,null,null,0,null,22050,{"$f":"AM10*0.67/2","v":7386.75},{"$f":"AM10-AN10","v":14663.25},null,null,null,0,null,{"$f":"AM10","v":22050},{"$f":"AN10","v":7386.75},14663.25,{"$f":"AR10","v":0},{"$f":"AS10","v":0},{"$f":"AR10","v":0},0]
[null,null,1.3,"Augmentation du nombre de programmes de formation concernant l'intégration européenne.  ","1.3.1","Changement du pourcentage représentant les programmes à contenu européen de 35 % à 50 % entre 2015 et 2020.",null,null,null,null,0,150,2,20,0,0,0,10,65,49500,null,null,0,null,null,0,null,null,0,null,null,null,null,0,null,null,0,null,49500,null,{"$f":"AM11","v":49500},null,null,null,0,null,{"$f":"AM11","v":49500},0,49500,{"$f":"AP11","v":0},{"$f":"AQ11","v":0},0,0]
[null,null,1.4,"Mise à jour et développement du groupe de formateurs spécialisés - Ceci sera réalisé par une mise à jour continue de la base de données d'experts potentiels et par un programme de développement professionnel sur le lieu de travail. ","1.4.1","Base de données préparée et pleinement opérationnelle","Sans surcoût",null,null,null,0,null,null,null,null,null,null,null,null,0,null,null,0,null,null,0,null,null,0,null,null,null,null,0,null,null,0,null,0,null,null,null,null,null,0,null,{"$f":"AM12","v":0},0,0,{"$f":"AP12","v":0},{"$f":"AQ12","v":0},0,0]
[null,null,1.5,"Finalisation du modèle de développement professionnel tout au long de la vie dans la fonction publique. ","1.5.1","Le programme de développement a été préparé au sein de l'institution.","Sans surcoût",null,null,null,0,null,null,null,null,null,null,null,null,0,null,null,0,null,null,0,null,null,0,null,null,null,null,0,null,null,0,null,0,null,null,null,null,null,0,null,{"$f":"AM13+AM14","v":27150},0,16180,0,0,0,10970]
[null,null,null,null,"1.5.2","Le programme de développement est mis en œuvre dans 5 institutions au moins. "," ",null,null,null,0,5,2,10,0,0,0,10,65,1150,null,null,0,20,1200,24000,null,null,0,null,null,null,null,0,null,null,0,2000,27150,null,16180,null,null,null,10970]
[2,"Réponse aux besoins de formation en augmentation constante de la fonction publique albanaise. L'augmentation du nombre de fonctionnaires est un facteur qui aura un impact sur les demandes de formation au sein de la fonction publique. ",2.1,"Plans de formation obligatoire pendant la période d'essai.","2.1.1","Le plan et le calendrier des formations obligatoires pendant la période d'essai selon les emplois dans la fonction publique sont rédigés."," ",null,null,null,{"$f":"H15*I15*J15","v":0},null,null,null,null,null,null,null,null,0,null,null,{"$f":"U15*V15","v":0},null,null,32345,null,null,{"$f":"AA15*AB15","v":0},null,null,null,null,{"$f":"AF15*AG15","v":0},null,null,{"$f":"AI15*AJ15","v":0},null,32345,{"$f":"AM15*0.67/2","v":10835.575000000001},{"$f":"25972+38718+26805+32345","v":123840},null,null,null,{"$f":"(AM15+AM16+AM17)-(AN15+AN16+AN17+AO15)","v":37733.599999999977},null,{"$f":"AM15+AM16+AM17","v":271840},110266.40000000001,123840,0,0,0,37733.599999999977]
[null,null,null,null,"2.1.2","Les fonctionnaires sont formés et évalués à l'essai dans l'administration centrale ",null,null,null,null,0,60,10,20,0,0,0,50,65,99000,null,null,null,null,null,null,null,null,null,null,null,null,null,null,null,null,null,1000,100000,{"$f":"AM16*0.67/2","v":33500}]
[null,null,null,null,"2.1.3","Les fonctionnaires sont formés et évalués à l'essai dans l'administration locale","Coût additionnel",2,400,60,48000,20,5,20,100,12,20,25,65,{"$f":"(L17*M17*O17)+(L17*M17*N17*P17)+(L17*M17*N17*Q17)+(L17*N17*R17)+(L17*M17*S17)","v":90500},null,null,0,null,null,{"$f":"X17*Y17","v":0},null,null,0,null,null,null,null,0,null,null,0,995,139495,{"$f":"(AM17*0.67/2)+19200","v":65930.825000000012}]
[null,null,2.2000000000000002,"Rédaction de plans annuels pour la formation des cadres moyens et supérieurs - sur la base du modèle de leadership. ","2.2.1","Le plan annuel de formation pour les cadres supérieurs est rédigé.","Sans surcoût",null,null,null,0,null,null,null,null,null,null,null,null,{"$f":"(L18*M18*O18)+(L18*M18*N18*P18)+(L18*M18*N18*Q18)+(L18*N18*R18)+(L18*M18*S18)","v":0},57,90,5130,null,null,0,null,null,0,null,null,null,null,0,null,null,0,null,5130,{"$f":"AM18*0.67/2","v":1718.5500000000002},{"$f":"11010+148069","v":159079},null,null,null,{"$f":"AM18+AM19+AM20-AN18-AN19-AN20-AO18","v":-53291.464999999997},null,{"$f":"AM18+AM19+AM20","v":159079},53291.464999999997,159079,0,0,0,-53291.464999999997]
[null,null,null,null,"2.2.2","Les cours de formation sont préparés pour les cadres supérieurs ","Sans surcoût",null,null,null,0,7,47,20,0,0,0,235,65,54285,null,null,0,null,null,0,null,null,0,null,null,null,null,0,null,null,0,20464,74749,{"$f":"AM19*0.67/2","v":25040.915000000001}]
[null,null,null,null,"2.2.3","Les cours de formation sont préparés pour les cadres moyens.","Sans surcoût",null,null,null,0,48,10,20,0,0,0,50,65,79200,null,null,0,null,null,0,null,null,0,null,null,null,null,0,null,null,0,null,79200,{"$f":"AM20*0.67/2","v":26532}]
[null,null,2.2999999999999998,"Évaluation d'approches alternatives concernant la formation des cadres, y compris l'approche fondée sur les compétences. ","2.3.1","Recherches sur les approches alternatives","Sans surcoût",null,null,null,0,null,null,null,null,null,null,null,null,0,null,null,0,null,null,0,null,null,0,null,null,null,null,0,null,null,0,null,0,null,null,null,null,null,0,null,{"$f":"AM21+AM22","v":6900},2311.5,0,0,0,0,4588.5]
[null,null,null,null,"2.3.2","Effectuer des visites d'études dans des ministères, 3 institutions/écoles (3 visites, 2 personnes, 5 jours)",null,null,null,null,0,null,null,null,null,null,null,null,null,0,null,null,0,null,null,0,null,null,0,null,null,null,null,0,null,null,0,{"$f":"(3*2*500)+ (3*2*5*80)+(3*2*5*50)","v":6900},6900,{"$f":"AM22*0.67/2","v":2311.5},null,null,null,null,4588.5]
[null,null,2.4,"Développement de la plateforme d'apprentissage et de formation en ligne et rédaction de programmes utilisant cette plateforme.","2.4.1","Mener une étude de faisabilité pour la mise en œuvre de la plateforme ",null,null,null,null,0,null,null,null,null,null,null,null,null,0,10,350,3500,25,1200,30000,null,null,0,null,null,null,null,0,null,null,0,null,33500,null,{"$f":"AM23","v":33500},null,null,null,0,null,{"$f":"AM23+AM24+AM25","v":146000},0,146000,0,0,0,0]
[null,null,null,null,"2.4.2","Développement de la plateforme dans l'EAAP et pilotage de 3 cours de formation "," ",null,null,null,0,null,null,null,null,null,null,null,null,0,null,null,0,null,null,0,null,null,0,null,70000,50,600,30000,50,250,12500,null,112500,null,112500,null,null,null,0]
[null,null,null,null,"2.4.3","Exécution de 30 % du curriculum de formation par la plateforme d'apprentissage en ligne ","Sans surcoût",null,null,null,0,null,null,null,null,null,null,null,null,0,null,null,0,null,null,0,null,null,0,null,null,null,null,0,null,null,0,null,0,null,null,null,null,null,0]
[3,"Transition d'une culture du contrôle des ressources dans la fonction publique à un modèle moderne de prestation de service axée sur la demande du client. ",3.1,"Mise en place de groupes bénéficiaires du service (groupes d'usagers) et/ou de groupes de discussion afin de fournir des retours sur la qualité et l'utilité des services fournis par l'EAAP. ","3.1.1","Mise à jour de la base de données des \"clients\" de l'EAAP ","Sans surcoût",null,null,null,0,null,null,null,null,null,null,null,null,0,null,null,0,null,null,0,null,null,0,null,null,null,null,0,null,null,0,null,0,null,null,null,null,null,0,null,{"$f":"AM26+AM27+AM28","v":0},0,0,0,0,0,0]
[null,null,null,null,"3.1.2","Mise en place de groupes de discussion avec les directeurs des ressources humaines des ministères et des institutions de l'administration centrale.","Sans surcoût",null,null,null,0,null,null,null,null,null,null,null,null,0,null,null,null,null,null,null,null,null,null,null,null,null,null,null,null,null,null,null,0,null,null,null,null,null,0]
[null,null,null,null,"3.1.3","Mise en place de groupes de discussion avec les directeurs des ressources humaines des administrations locales et des institutions indépendantes. ","Sans surcoût",null,null,null,{"$f":"H28*I28*J28","v":0},null,null,null,null,null,null,null,null,0,null,null,{"$f":"U28*V28","v":0},null,null,{"$f":"X28*Y28","v":0},null,null,{"$f":"AA28*AB28","v":0},null,null,null,null,{"$f":"AF28*AG28","v":0},null,null,{"$f":"AI28*AJ28","v":0},null,0,null,null,null,null,null,0]
[null,null,3.2,"Amélioration du système de retours en général, afin de fournir des données suffisantes et une information disponible sur l'impact des formations. ","3.2.1","Les procédures et réglementations sont révisées et adaptées conformément au modèle fondé sur le client.",null,null,null,null,{"$f":"H29*I29*J29","v":0},null,null,null,null,null,null,null,null,0,null,null,{"$f":"U29*V29","v":0},null,null,{"$f":"X29*Y29","v":0},null,null,{"$f":"AA29*AB29","v":0},null,null,null,null,{"$f":"AF29*AG29","v":0},null,null,{"$f":"AI29*AJ29","v":0},null,0,null,null,null,null,null,0,null,{"$f":"AM29+AM30+AM31+AM32","v":0},0,0,0,0,0,0]
[null,null,null,null,"3.2.2","La méthodologie et les quesitonnaires pour mesurer l'impact de la formation sont préparés. ",null,null,null,null,null,null,null,null,null,null,null,null,null,0,null,null,null,null,null,null,null,null,null,null,null,null,null,null,null,null,null,null,0,null,null,null,null,null,0]
[null,null,null,null,"3.2.3","Des objectifs de satisfaction de l'usager sont définis pour tous les cours de formation.",null,null,null,null,{"$f":"H31*I31*J31","v":0},null,null,null,null,null,null,null,null,0,null,null,{"$f":"U31*V31","v":0},null,null,{"$f":"X31*Y31","v":0},null,null,{"$f":"AA31*AB31","v":0},null,null,null,null,0,null,null,0,null,0,null,null,null,null,null,0]
[null,null,null,null,"3.2.4","Des évaluations indépendantes et objectives sont régulièrement menées (au moins une tous les deux ans).","Sans surcoût",null,null,null,null,null,null,null,null,null,null,null,null,0,null,null,null,null,null,null,null,null,null,null,null,null,null,null,null,null,null,null,0,null,null,null,null,null,0]
[4,"Transformation ien centre d'excellence pour la formation de la fonction publique et du secteur public, aux niveaux international et national.",4.0999999999999996,"Établissement de contacts avec des agences professionnelles et des agences de contrôle de la qualité pour l'éducation/la formation.","4.1.1","La recherche a été menée et le statut de membre d'au moins deux réseaux internationaux est atteint.","Sans surcoût",null,null,null,{"$f":"H33*I33*J33","v":0},null,null,null,null,null,null,null,null,0,null,null,0,null,null,{"$f":"X33*Y33","v":0},null,null,{"$f":"AA33*AB33","v":0},null,null,null,null,0,null,null,0,9000,9000,{"$f":"AM33*0.67","v":6030},2970,null,null,null,0,null,{"$f":"AM33+AM34","v":18120},12140.400000000001,5980,0,0,0,-0.4000000000005457]
[null,null,null,null,"4.1.2","Des activités et conférences internationales ont été suivies.","Coûts des déplacements à estimer",null,null,null,{"$f":"H34*I34*J34","v":0},null,null,null,null,null,null,null,null,0,null,null,0,null,null,{"$f":"X34*Y34","v":0},null,null,{"$f":"AA34*AB34","v":0},null,null,null,null,0,null,null,0,{"$f":"(12*1*500)+ (12*2*1*80)+(12*1*2*50)","v":9120},9120,{"$f":"AM34*0.67","v":6110.4000000000005},3010,null,null,null,-0.4000000000005457]
[null,null,4.2,"Élaboration de systèmes et de procédures qui répondent aux normes de contrôle de la qualité établies par les agences de contrôle de l'éducation/la formation.","4.2.1","Les systèmes et procédures de contrôle de la qualité établis par les agences et les universités nationales et internationales ont été préparés. ","Sans surcoût",null,null,null,null,null,null,null,null,null,null,null,null,0,20,350,7000,20,1200,{"$f":"X35*Y35","v":24000},null,null,null,null,null,null,null,null,null,null,null,2000,33000,null,33000,null,null,null,0,null,{"$f":"AM35+AM36","v":33000},0,33000,0,0,0,0]
[null,null,null,null,"4.2.2","Des protocoles d'entente et des accords d'habilitation ont été conclus."," ",null,null,null,null,null,null,null,null,null,null,null,null,0,null,null,null,null,null,null,null,null,null,null,null,null,null,null,null,null,null,null,0,null,null,null,null,null,0]
[null,null,4.3,"Œuvrer pour atteindre le statut de centre d'excellence aux niveaux national et international. ","4.3.1","L'habilitation nationale et internationale est atteinte.","Frais d'habilitation",null,null,null,{"$f":"H37*I37*J37","v":0},null,null,null,null,null,null,null,null,0,null,null,0,null,null,{"$f":"X37*Y37","v":0},null,null,{"$f":"AA37*AB37","v":0},null,null,null,null,0,null,null,0,25000,25000,null,25000,null,null,null,0,null,{"$f":"AM37","v":25000},0,25000,0,0,0,0]
[null,null,null,null,null,null,null,null,null,null,0,null,null,null,null,null,null,null,null,0,null,null,0,null,null,0,null,null,0,null,null,null,null,0,null,null,0,null,0,null,null,null,null,null,0]
[5,"Renforcement des capacités et compétences internes, et de la gestion des ressources de l'EAAP.  ",5.0999999999999996,"Le développement de systèmes qui garantissent que toutes les ressources sont gérées de façon efficace et efficiente, pour un coût minimal. ","5.1.1","Évaluation de la situation actuelle en la reliant à un Plan d'affaires et à un modèle choisi pour l'analyse de l'organisation.","Pas de surcoût",null,null,null,0,null,null,null,null,null,null,null,null,0,null,null,0,null,null,0,null,null,0,null,null,null,null,0,null,null,0,null,0,null,null,null,null,null,0,null,{"$f":"AM39+AM40","v":0},0,0,0,0,0,0]
[null,null,null,null,"5.1.2","Définir le cycle de gestion qui doit se répéter au moins chaque année.","Sans surcoût",null,null,null,0,null,null,null,null,null,null,null,null,0,null,null,0,null,null,0,null,null,0,null,null,null,null,0,null,null,0,null,0,null,null,null,null,null,0]
[null,null,5.2,"Développement d'un système moderne de gestion de la base de données dans le cadre du SIGRH. ","5.2.1","Un système moderne de gestion de l'information a été créé.","SIGRH",null,null,null,0,null,null,null,null,null,null,null,null,0,null,null,0,null,null,0,null,null,0,null,null,null,null,0,null,null,0,null,0,null,null,null,null,null,0,null,{"$f":"AM41","v":0},0,0,0,0,0,0]
[null,null,5.3,"Développement de la bibliothèque de l'EAAP et préparation d'un centre de gestion de l'information. ","5.3.1","La bibliothèque de l'EAAP s'est développée et transformée en un centre de gestion de l'information.","Sans surcoût",1,400,60,24000,null,null,null,null,null,null,null,null,0,null,null,0,null,null,0,200,20,4000,null,null,null,null,0,null,null,0,null,28000,{"$f":"4000+9600","v":13600},14400,null,null,null,0,null,{"$f":"AM42+AM43","v":40500},26100,14400,0,0,0,0]
[null,null,null,null,"5.3.2","Le matériel et l'équipement informatique nécessaire a été acheté pour établir le centre de gestion de l'information.","Sans surcoût",null,null,null,0,null,null,null,null,null,null,null,null,0,null,null,{"$f":"U43*V43","v":0},null,null,0,null,null,0,null,null,10,900,{"$f":"AF43*AG43","v":9000},10,350,{"$f":"AI43*AJ43","v":3500},null,12500,12500,null,null,null,null,0]
[null,null,5.4,"Veiller à ce que les locaux de l'EAAP soient dans un immeuble qui convienne à cet effet.","5.4.1","Une reconstruction complète a été menée et l'immeuble a reçu les équipement nécessaires pour mener les activités.","Sans surcoût",null,null,null,null,null,null,null,null,null,null,null,null,0,null,null,null,null,null,null,null,null,null,70000,null,null,null,null,null,null,{"$f":"AI44*AJ44","v":0},null,70000,70000,null,null,null,null,0,null,{"$f":"AM44","v":70000},70000,0,0,0,0,0]
[null,null,null,null,null,null,null,null,null,null,{"$f":"SUM(K8:K44)","v":72000},null,null,null,null,null,null,null,null,{"$f":"SUM(T8:T44)","v":501435},null,null,{"$f":"SUM(W8:W44)","v":15630},null,null,{"$f":"SUM(Z8:Z44)","v":124587},null,null,{"$f":"SUM(AC8:AC44)","v":4000},{"$f":"SUM(AD8:AD44)","v":70000},{"$f":"SUM(AE8:AE44)","v":70000},null,null,{"$f":"SUM(AH8:AH44)","v":39000},null,null,{"$f":"SUM(AK8:AK44)","v":16000},{"$f":"SUM(AL8:AL44)","v":76479},{"$f":"SUM(AM8:AM44)","v":989131},{"$f":"SUM(AN8:AN44)","v":317106.51500000001},672024.25,0,0,0,0.2349999999796637,null,{"$f":"SUM(AU8:AU44)","v":989131},{"$f":"SUM(AV8:AV44)","v":317106.51500000001},{"$f":"SUM(AW8:AW44)","v":672024.25},null,null,{"$f":"SUM(AZ8:AZ44)","v":0},{"$f":"SUM(BA8:BA44)","v":0.2349999999796637}]
[null,null,null,null,null,null,null,null,null,null,null,null,null,null,null,null,null,null,null,null,null,null,null,null,null,null,null,null,null,null,null,null,null,null,null,null,null,null,null,null,null,null,null,null,null,null,null,null,null,null,null,null,{"$f":"AS45-BA45","v":0}]
[null,null,null,null,null,null,null,null,null,null,null,null,null,null,null,null,null,null,null,null,null,null,null,null,null,null,null,null,null,null,null,null,null,null,null,null,null,null,null,null,null,{"$f":"AN45+AO45+AP45+AQ45+AR45+AS45","v":989131},null,null,null,null,null,null,null,{"$f":"AV45+AW45+BA45","v":989131}]
[]
[]
[]
[]
[null,null,null,null,null,null,null,null,null,null,null,null,null,null,null,null,null,null,null,null,null,null,null,null,null,null,null,null,null,null,null,null,null,null,null,null,null,null,null," "]

{"sheet":"Politiques&Suivi&Législation","index":5,"n_rows":95,"n_cols":46,"rows_kept":95,"cut":false,"hidden":false,"merged":[[58,2,60,2],[58,3,60,3],[43,0,62,0],[43,1,62,1],[49,2,50,2],[49,3,50,3],[51,2,54,2],[43,2,45,2],[43,3,45,3],[51,3,54,3],[55,3,57,3],[46,2,48,2],[46,3,48,3],[55,2,57,2],[75,2,79,2],[75,3,79,3],[64,0,64,45],[65,7,66,7],[61,3,62,3],[65,0,85,0],[65,1,85,1],[65,3,70,3],[80,2,85,2],[80,3,85,3],[61,2,62,2],[63,2,63,5],[65,2,74,2],[71,3,74,3],[1,1,1,17],[2,8,2,11],[2,12,2,29],[3,27,5,29],[2,0,2,5],[4,6,6,6],[3,8,4,11],[3,12,4,20],[3,4,6,5],[3,0,6,0],[3,1,6,1],[3,2,6,3],[9,3,18,3],[9,2,18,2],[8,0,8,45],[2,39,6,39],[4,30,6,30],[2,38,6,38],[4,35,4,37],[2,30,3,37],[3,21,3,26],[4,21,4,23],[4,24,4,26],[2,40,4,45],[5,41,5,44],[4,31,6,31],[4,32,4,34],[19,2,21,2],[42,0,42,45],[29,2,30,2],[22,3,25,3],[34,3,36,3],[37,3,40,3],[34,2,36,2],[37,2,40,2],[31,2,32,2],[22,2,25,2],[31,6,32,6],[24,5,25,5],[26,3,28,3],[29,3,30,3],[31,3,32,3],[19,3,21,3]]}
[]
[null,"Tableau 1 : Estimation du coût de la Stratégie transversale de réforme de l'administration publique - Élaboration des politiques, Suivi & Législation"]
[null,null,null,null,null,null,null,null,"Dépenses de la catégorie économique \"Rémunérations et salaires\" : (Code 600-601)",null,null,null,"Dépenses de fournitures et de services  ",null,null,null,null,null,null,null,null,null,null,null,null,null,null,null,null,null,"Investissements ",null,null,null,null,null,null,null,"Autres dépenses (frais accessoires & impévus) ","Coût estimé de la réalisation","Sources de financement (par réalisation)"]
["Numéro",null,"Action",null,"Indicateurs de réalisation",null,null,null,"Fonds de rémunération pour le personnel supplémentaire ",null,null,null,"Dépenses pour les conférences/séminaires et la formation   ",null,null,null,null,null,null,null,null,"Services de conseil divers (assistance technique)",null,null,null,null,null,"Dépenses d'information publique (publications)   "]
[null,null,null,null,null,null,"Activité avec/sans coût additionnel",null,null,null,null,null,null,null,null,null,null,null,null,null,null,"Expertise locale",null,null,"Expertise étrangère",null,null,null,null,null,"Immeubles","Développement de logiciels","Équipement informatique",null,null,"Fournitures de bureau "]
[null,null,null,null,null,null,null,null,null,null,null,null,null,null,null,null,null,null,null,null,null,null,null,null,null,null,null,null,null,null,null,null,null,null,null,null,null,null,null,null,null,"Contributions"]
[null,null,null,null,null,null,null,"sqarime","Nb","Salaire moyen","Mois","Valeur totale","Nb d'activités de formation/séminaires","Jour/activité","Participants à la formation","Location de salle/jour","Coût pour une personne (café/restauration)","Coût moyen d'hébergement/nuit ","Valeur matériel/personne","Honoraires du formateur/jour","Total","Jour/expert","Honoraires","Total ","Jour/expert","Honoraires","Total","Article/activité","Prix/valeur par unité","Total",null,null,"Pièce ","Prix moyen/unité","Valeur totale","Pièce","Prix moyen/unité","Valeur totale",null,null,"Budget de l'État (PBMT 2015-2017)","IAP","CdE","BM","PNUD","Déficit de financement"]
["a","b","c","d","e","f",null,null,1,2,3,4,5,6,7,8,9,10,11,12,13,14,15,16,17,18,19,20,21,22,23,24,25,26,27,28,29,30,31,32,33,34,35,36,37,38]
["Objectif 1 : Améliorer la planification et la coordination des politiques de préparation des documents stratégiques du gouvernement, qui transforment les priorités en actions concrètes."]
[1,null,1.1000000000000001,"1.1.Évaluation de la situation et du cadre réglementaire actuels pour préparer des stratégies sectorielles et transversales complémentaire des compétences des parties prenantes impliquées dans le processus (Unités centrales du Bureau du Premier ministre et unités des institutions centrales).","1.1.1","Analyse de l'évaluation de la situation","Assistance technique ",null,null,null,null,{"$f":"I10*J10*K10","v":0},null,null,null,null,null,null,null,null,{"$f":"(M10*N10*P10)+(M10*N10*O10*Q10)+(M10*N10*O10*R10)+(M10*O10*S10)+(M10*N10*T10)","v":0},70,350,{"$f":"V10*W10","v":24500},100,1250,{"$f":"Y10*Z10","v":125000},null,null,{"$f":"AB10*AC10","v":0},null,null,null,null,{"$f":"AG10*AH10","v":0},null,null,{"$f":"AJ10*AK10","v":0},null,{"$f":"L10+U10+X10+AA10+AD10+AI10+AL10+AM10+AE10+AF10","v":149500},null,null,null,25000,null,{"$f":"AN10-AO10-AP10-AR10","v":124500}]
[null,null,null,null,"1.1.2","Révision du cadre réglementaire pour les stratégies sectorielles et transversales (Révision de l'Ordre sur la préparation des stratégies sectorielles et transversales) ","Assistance technique",null,null,null,null,{"$f":"I11*J11*K11","v":0},null,null,null,null,null,null,null,null,0,null,null,0,20,1250,25000,null,null,{"$f":"AB11*AC11","v":0},null,null,null,null,0,null,null,{"$f":"AJ11*AK11","v":0},null,{"$f":"L11+U11+X11+AA11+AD11+AI11+AL11+AM11+AE11+AF11","v":25000},null,null,null,{"$f":"AN11","v":25000},null,{"$f":"AN11-AO11-AP11-AR11","v":0}]
[null,null,null,null,"1.1.3","Révision du fonctionnement d'autres groupes transversaux dans les GPGI (groupes de politiques de gestion intégrée) (y compris tout le cycle d'élaboration des politiques - mise en oeuvre - suivi) ","Assistance technique",null,null,null,null,0,15,1,20,null,25,20,null,null,13500,{"$f":"15*50","v":750},350,262500,{"$f":"15*40","v":600},1250,750000,null,null,0,null,null,null,null,0,null,null,null,15000,1041000,7000,null,null,null,null,{"$f":"AN12-AO12-AP12-AR12","v":1034000}]
[null,null,null,null,"1.1.4","Assistance au fonctionnement du projet pilote de GPGI (eau, social, compétitivité)","Assistance technique",null,null,null,null,0,null,null,null,null,null,null,null,null,0,null,null,0,null,null,450000,null,null,0,null,null,null,null,0,null,null,null,null,450000,null,{"$f":"AN13","v":450000},null,null,null,0]
[null,null,null,null,"1.1.5","Assistance au fonctionnement des autres GPGI",null,null,null,null,null,0,15,1,20,25,null,20,null,null,6375,{"$f":"15*100","v":1500},350,525000,{"$f":"15*60","v":900},1250,1125000,null,null,0,null,null,null,null,0,null,null,null,null,1656375,null,null,null,null,null,1656375]
[null,null,null,null,"1.1.6","Préparation d'un programme de formation pour l'ensemble du personnel responsable de l'élaboration des politiques dans les ministères sectoriels (départements d'élaboration et de coordination des politiques), pour la rédaction des documents et politiques stratégiques. ","Assistance technique",null,null,null,null,0,null,null,null,null,null,null,null,null,0,10,350,3500,30,1250,37500,null,null,0,null,null,null,null,0,null,null,null,1000,42000,1000,null,null,null,null,41000]
[null,null,null,null,"1.1.7","Mise en œuvre du programme de formation pour tout le personnel responsable de l'élaboration des politiques dans les ministères sectoriels (départements d'élaboration et de coordination des politiques) ","Assistance technique","20 ministri, 20 persona/mini. 3 cikle 3 ditore trajnimi",null,null,null,0,20,9,20,null,25,null,20,65,109700,null,null,0,null,null,0,null,null,0,null,null,null,null,0,null,null,null,null,109700,null,null,null,null,null,109700]
[null,null,null,null,"1.1.8","Préparation de stratégies et documents transversaux ","Au moins 10 documents stratégiques ",null,null,null,null,0,10,1,20,350,25,null,20,null,12500,{"$f":"10*100","v":1000},350,350000,{"$f":"10*100","v":1000},1250,1250000,null,null,0,null,null,null,null,0,null,null,null,{"$f":"10*5000","v":50000},1662500,null,null,null,null,null,1662500]
[null,null,null,null,"1.1.9","Préparation des Plans de gestion intégrée (PGI) des ministères sectoriels ","pour 19 ministres",null,null,null,null,0,null,null,null,null,null,null,null,null,0,{"$f":"19*50","v":950},350,332500,null,null,0,null,null,0,null,null,null,null,0,null,null,null,null,332500,null,null,null,null,null,332500]
[null,null,null,null,"1.1.10","Publication des PGI",null,null,null,null,null,0,null,null,null,null,null,null,null,null,0,null,null,0,null,null,0,{"$f":"19*300","v":5700},5,28500,null,null,null,null,0,null,null,null,null,28500,null,null,null,null,null,28500]
[null,null,1.2,"Préparation du cadre réglementaire pour la rédaction des stratégies sectorielles et transversales, et des documents stratégiques sectoriels 2015-2020, dans le cadre de la NSDI (Stratégie nationale pour l'intégration et le développement) 2015-2020.","1.2.1","Préparation d'analyses sectorielles et transversales de la mise en œuvre à moyen terme (phase 2014/15-2016)","Assistance technique","30 dokumenta strategjike: 5 eksperte lokale ( 1 TL + 4 eksperte). 20 dite per sektore ekpsertet. TL 50 dite me shume ",null,null,null,{"$f":"I20*J20*K20","v":0},null,null,null,null,null,null,null,null,0,{"$f":"30*20+50","v":650},350,{"$f":"V20*W20","v":227500},null,null,{"$f":"Y20*Z20","v":0},null,null,{"$f":"AB20*AC20","v":0},null,null,null,null,{"$f":"AG20*AH20","v":0},null,null,{"$f":"AJ20*AK20","v":0},null,{"$f":"L20+U20+X20+AA20+AD20+AI20+AL20+AM20+AE20+AF20","v":227500},null,null,null,null,null,{"$f":"AN20-AO20-AP20-AR20","v":227500}]
[null,null,null,null,"1.2.2","Analyse à moyen terme de la mise en œuvre de la SNID 2014-2020 ",null,"1 ekspert I huaj dhe 1 lokal",null,null,null,{"$f":"I21*J21*K21","v":0},null,null,null,null,null,null,null,null,{"$f":"(M21*N21*P21)+(M21*N21*O21*Q21)+(M21*N21*O21*R21)+(M21*O21*S21)+(M21*N21*T21)","v":0},60,350,{"$f":"V21*W21","v":21000},40,1250,{"$f":"Y21*Z21","v":50000},null,null,{"$f":"AB21*AC21","v":0},null,null,null,null,{"$f":"AG21*AH21","v":0},null,null,{"$f":"AJ21*AK21","v":0},null,{"$f":"L21+U21+X21+AA21+AD21+AI21+AL21+AM21+AE21+AF21","v":71000},null,null,null,null,null,{"$f":"AN21-AO21-AP21-AR21","v":71000}]
[null,null,null,null,"1.2.3","Révision à moyen terme des stratégies et documents stratégiques de la SNID 2014-2020",null,"1 ekspert te huaj dhe 1 lokal per sektor",null,null,null,{"$f":"I22*J22*K22","v":0},null,null,null,null,null,null,null,null,{"$f":"(M22*N22*P22)+(M22*N22*O22*Q22)+(M22*N22*O22*R22)+(M22*O22*S22)+(M22*N22*T22)","v":0},{"$f":"27*30","v":810},350,{"$f":"V22*W22","v":283500},{"$f":"27*40","v":1080},1250,{"$f":"Y22*Z22","v":1350000},null,null,{"$f":"AB22*AC22","v":0},null,null,null,null,{"$f":"AG22*AH22","v":0},null,null,{"$f":"AJ22*AK22","v":0},null,{"$f":"L22+U22+X22+AA22+AD22+AI22+AL22+AM22+AE22+AF22","v":1633500},null,null,null,null,null,{"$f":"AN22-AO22-AP22-AR22","v":1633500}]
[null,null,1.2,"1.3. Examen du système de planification intégrée après avoir mené une analyse de l'évaluation de la situation et des cadres institutionnels existants.","1.2.1","Analyse de l'évaluation de la situation","Assistance technique","1 ekspert I huaj dhe 1 lokal",null,null,null,0,null,null,null,null,null,null,null,null,0,30,350,10500,40,1250,50000,null,null,0,null,null,null,null,0,null,null,null,1000,61500,null,null,null,null,null,61500]
[null,null,null,null,"1.2.2","Examen du cadre institutionnel et légal pertinent (rédaction d'un nouvel Ordre, Manuel de SPI, et examen du calendrier annuel du SPI) ","Assistance technique","1 ekspert I huaj dhe 1 lokal qe do bejne rishikimin e gjithe kuadrit institucional, urdheri , manuali I IPS prodhimi dhe botimi",null,null,null,0,null,null,null,null,null,null,null,null,0,30,350,10500,30,1250,37500,null,null,0,null,null,null,null,0,null,null,null,1000,49000,null,null,null,null,null,49000]
[null,null,null,null,null,"Mise en œuvre du nouveau système et renforcement des compétences","Assistance technique","a. 1 retreat ne vit per Kabinetin e Qeverise (ministrat dhe KM) \nb. 1 retreat ne vit per Sekretaret e Pergjithshem\n ",null,null,null,0,{"$f":"(1+1)*6","v":12},1,{"$f":"40+40","v":80},450,30,80,20,null,130200,null,null,0,null,null,0,null,null,0,null,null,null,null,0,null,null,null,null,130200,null,null,null,null,null,130200]
[null,null,null,null,"1.2.3",null,"Assistance technique"," 2 trajnime ne vit me ML per IPS",null,null,null,0,{"$f":"2*20*6","v":240},2,20,null,25,null,20,65,367200,null,null,0,null,null,0,null,null,0,null,null,null,null,0,null,null,null,null,367200,null,null,null,null,null,367200]
[null,null,1.3,"1.4. Renforcement des compétences dans le Département de la programmation et du financement du développement et de l'aide étrangère (DPFDDAE) concernant la planification stratégique et la planification des politiques publiques , basée sur l'évaluation préalable des besoins en formation.","1.3.1","Recrutement de personnel",null,"5 persona te rinj, llogaritur si buxhet per 6 vjet",5,720,{"$f":"12*6","v":72},259200,null,null,null,null,null,null,null,null,0,null,null,0,null,null,0,null,null,0,null,null,null,null,0,null,null,{"$f":"AJ27*AK27","v":0},null,259200,null,null,null,null,null,259200]
[null,null,null,null,"1.3.2","Formation et séminaires avec le personnel du Département de la programmation et du financement du développement et de l'aide étrangère.","Formation de formateurs (FdF). 2 formations par année",null,null,null,null,0,2,2,15,350,25,50,20,null,6500,null,null,0,null,null,0,null,null,0,null,null,null,null,0,null,null,{"$f":"AJ28*AK28","v":0},null,6500,null,null,null,null,null,6500]
[null,null,null,null,"1.3.3","Voyages d'études pour comprendre les pratiques et expériences d'autres pays. ",null,"6 vjet /3 ST per 10 persona. 1 ST 5 dite.",null,null,null,0,null,null,null,null,null,null,null,null,0,null,null,0,null,null,0,null,null,0,null,null,null,null,0,null,null,{"$f":"AJ29*AK29","v":0},9000,9000,null,null,null,null,null,9000]
[null,null,1.4,"1.5.Renforcement des compétences dans les institutions centrales, après avoir évalué les besoins concernant la planification stratégique et la planification des politiques publiques (ainsi que l'utilisation du SPI et du système d'information du SPI).","1.4.1","Mise en place du SISPI"," ",null,null,null,null,0,null,null,null,null,null,null,null,null,0,null,null,0,null,null,0,null,null,0,null,250000,null,null,0,null,null,{"$f":"AJ30*AK30","v":0},null,250000,null,null,null,250000,null,0]
[null,null,null,null,"1.4.3","Formation du personnel des institutions centrales concernant la gestion et la maintenance du SISPI.",null,"1 ne vit 1 ditor",null,null,null,0,{"$f":"1*6","v":6},1,40,null,25,null,20,65,11190,null,null,0,null,null,0,null,null,0,null,null,null,null,0,null,null,{"$f":"AJ31*AK31","v":0},null,11190,null,null,null,null,null,11190]
[null,null,null,"1.6. Mise en place du SIMFA (Système d'information du ministère des Finances albanais) et renforcement des compétences en gestion du contrôle financier.","1.5.2","Renforcement des compétences des institutions utilisant le SIMFA, et rédaction des rapports de suivi pertinents.","La budgétisation de cette activité est dans le cadre de la stratégie de GFP","Trajnime per stafet e Ministrive",null,null,null,0,null,null,null,null,null,null,null,null,0,null,null,0,null,null,0,null,null,0,null,null,null,null,0,null,null,null,null,0,null,null,null,null,null,0]
[null,null,null,null,"1.5.3","Renforcement des compétences du MdF pour la gestion du SIMFA. ",null,"Trajnim I vazhdueshem per stafin e ri te MF",null,null,null,0,null,null,null,null,null,null,null,null,0,null,null,0,null,null,0,null,null,0,null,null,null,null,0,null,null,{"$f":"AJ33*AK33","v":0},null,0,null,null,null,null,null,0]
[null,null,1.6,"1.6. Renforcement des compétences de l'administration centrale pour la rédaction du PBMT (Programme budgétaire à moyen terme).","1.6.1","Renforcement des compétences des institutions en lien avec le Programme budgétaire à moyen terme. ",null,"Trajnime per stafet e Ministrive . Te pakten 15 persona/ministri= 300 ne total",null,null,null,0,20,3,15,null,25,null,5,65,27900,null,null,0,null,null,0,null,null,0,null,null,null,null,0,null,null,0,null,27900,null,null,null,null,null,27900]
[null,null,1.7,"Renforcement des compétences des ministères sectoriels en termes de rédaction des politiques, des stratégies, des plans d'action et des programmes de développement.","1.7.1","Renforcement des compétences des ministères sectoriels par la mise en œuvre du Programme de formation pour la planification stratégique.  ",null,"a. hartimi I paketes se trajnimit \nb.trajnimi I stafeve (20 persona/ministri) + 30% te stafeve te reja potencialisht te hyra ne vit",null,null,null,0,23,2,20,null,25,null,10,65,30590,20,350,7000,20,1250,25000,null,null,0,null,null,null,null,0,null,null,0,null,62590,null,null,null,null,null,62590]
[null,null,null,null,"1.7.2","Renforcement des compétences des unités chargées de l'élaboration des politiques pour garantir une bonne direction et de bons conseils pour la rédaction et le suivi des documents stratégiques. ",null,"Trajnim per stafin e SPU",null,null,null,0,6,3,10,null,25,null,10,65,6270,null,null,0,null,null,0,null,null,0,null,null,null,null,0,null,null,0,{"$f":"(3*2*500)+ (3*2*5*80)+(3*2*5*50)","v":6900},13170,null,null,null,null,null,13170]
[null,null,null,null,"1.7.3",null,null,null,null,null,null,0,null,null,null,null,null,null,null,null,0,null,null,0,null,null,0,null,null,0,null,null,null,null,0,null,null,0,null,0,null,null,null,null,null,0]
[null,null,1.8,"1.9.Renforcement des compétences et amélioration du fonctionnement du Groupe de gestion stratégique comme strucutre de coordination au sein de chaque ministère et des Groupes transversaux dans le cadre des Groupes de politique de gestion intégrée.","1.8.1","Évaluation de la situation en termes de fonctionnement des Groupes de gestion stratégique (GGS) ",null,"Shqyrtimi I tyre ne 19 ministri. Hartimi I raportit dhe rekomandimeve",null,null,null,0,null,null,null,null,null,null,null,null,0,30,350,10500,35,1250,43750,null,null,0,null,null,null,null,0,null,null,0,1500,55750,null,null,null,null,null,55750]
[null,null,null,null,"1.8.2","Modification du cadre légal et institutionnel approprié pour le fonctionnement des GGS.",null,null,null,null,null,0,null,null,null,null,null,null,null,null,0,10,350,3500,10,1250,12500,null,null,0,null,null,null,null,0,null,null,null,null,16000,null,null,null,null,null,16000]
[null,null,null,null,"1.8.3","Préparation du programme de formation pour les cadres supérieurs en lien avec le cycle de gestion des politiques publiques. ",null,null,null,null,null,0,null,null,null,null,null,null,null,null,0,10,350,3500,20,1250,25000,null,null,0,null,null,null,null,0,null,null,{"$f":"AJ40*AK40","v":0},null,28500,null,null,null,null,null,28500]
[null,null,null,null,"1.8.4","Renforcement des compétences des cadres supérieurs des ministères sectoriels par la mise en oeuvre du programme de formation sur le cycle de gestion des politiques publiques.  ",null,"Perfshihet trajnimi dhe coaching per menaxheret e larte gjate fazes se hartimit te PBA + Strategji",null,null,null,0,15,2,20,350,25,50,10,null,58500,250,350,87500,{"$f":"35 +(19*10)","v":225},1250,281250,null,null,0,null,null,null,null,0,null,null,{"$f":"AJ41*AK41","v":0},null,427250,null,null,null,null,null,427250]
[null,null,null,null,null,null,null,null,null,null,null,{"$f":"SUM(L10:L41)","v":259200},null,null,null,null,null,null,null,null,{"$f":"SUM(U10:U41)","v":780425},null,null,{"$f":"SUM(X10:X41)","v":2163000},null,null,{"$f":"SUM(AA10:AA41)","v":5637500},null,null,{"$f":"SUM(AD10:AD41)","v":28500},0,250000,0,0,0,0,0,0,85400,9204025,8000,450000,0,300000,0,8446025]
["Objectif 2 : Système transparent et exhaustif de rédaction des lois, fondé sur les politiques, et garantissant la conformité avec l'acquis communautaire."]
[3,null,2.1,"2.1. Evaluation des défis auxquels est actuellement confronté le processus de rédaction des lois  :","2.1.1","Préparation d'une analyse de l'évaluation de la situaiton","Assistance technique",null,null,null,null,0,null,null,null,null,null,null,null,null,0,10,350,3500,20,1200,24000,null,null,0,null,null,null,null,0,null,null,{"$f":"AJ44*AK44","v":0},1000,28500,null,null,null,null,null,28500]
[null,null,null,null,"2.1.2","Paquet législatif sur la rédaction des lois (projets de lois et de règlements)","Assistance technique",null,null,null,null,0,null,null,null,null,null,null,null,null,0,60,350,21000,50,1200,60000,null,null,0,null,null,null,null,0,null,null,null,1500,82500,null,null,null,null,null,82500]
[null,null,null,null,"2.1.3",null,null,null,null,null,null,0,null,null,null,null,null,null,null,null,0,null,null,0,null,null,0,null,null,0,null,null,null,null,0,null,null,{"$f":"AJ46*AK46","v":0},null,0,null,null,null,null,null,0]
[null,null,2.2000000000000002,"2.2. Accélération de la mise en oeuvre du manuel de rédaction des lois en la promouvant au niveau d'une décision du Conseil des ministres afin de garantir son entrée en vigueur.","2.2.1","Analyse de la situation actuelle des personnels en termes d'emploi, d'organisgrammes et de fiches de poste.","Assistance technique",null,null,null,null,0,null,null,null,null,null,null,null,null,0,20,350,7000,20,1200,24000,null,null,0,null,null,null,null,0,null,null,{"$f":"AJ47*AK47","v":0},2000,33000,null,null,null,null,null,33000]
[null,null,null,null,"2.2.2","Critères plus stricts pour les postes impliqués dans le processus législatif. ","Assistance technique",null,null,null,null,0,null,null,null,null,null,null,null,null,0,2,350,700,5,1200,6000,null,null,0,null,null,null,null,0,null,null,null,null,6700,null,null,null,null,null,6700]
[null,null,null,null,"2.2.3","Rédaction de fiches de postes plus claires.","Assistance technique",null,null,null,null,0,null,null,null,null,null,null,null,null,0,5,350,1750,10,1200,12000,null,null,0,null,null,null,null,0,null,null,{"$f":"AJ49*AK49","v":0},1000,14750,null,null,null,null,null,14750]
[null,null,2.2999999999999998,"8.3. Mise en place d'une étude sur les possibilités de prestation directe des services : ","2.3.1","Rédaction d'un manuel/d'un protocole de travail pour la consultation des actes. ","Assistance technique",null,null,null,null,0,null,null,null,null,null,null,null,null,0,null,null,0,null,null,0,null,null,0,null,null,null,null,0,null,null,{"$f":"AJ50*AK50","v":0},7500,7500,7500,null,null,null,null,0]
[null,null,null,null,"2.3.3",null,null,null,null,null,null,0,null,null,null,null,null,null,null,null,0,null,null,0,null,null,0,null,null,0,null,null,null,null,0,null,null,{"$f":"AJ51*AK51","v":0},null,0,null,null,null,null,null,0]
[null,null,2.4,"Veiller à la mise en œuvre de la Loi sur la communication et la consultation publique et la compléter par des règlements :","2.4.1","Adoption de règlements pour faciliter la procédure de consultation. ","Assistance technique",null,null,null,null,0,null,null,null,null,null,null,null,null,0,null,null,0,null,null,0,null,null,0,null,null,null,null,0,null,null,{"$f":"AJ52*AK52","v":0},9000,9000,null,null,null,null,null,9000]
[null,null,null,null,"2.4.2"," Création d'une base de données des parties prenantes ","Assistance technique",null,null,null,null,0,null,null,null,null,null,null,null,null,0,null,null,0,null,null,0,null,null,0,null,null,null,null,0,null,null,null,null,0,null,null,null,null,null,0]
[null,null,null,null,"2.4.3","Rédaction d'un manuel/protocole de travail pour la consultation des actes. ","Assistance technique",null,null,null,null,0,null,null,null,null,null,null,null,null,0,null,null,0,null,null,0,null,null,0,null,null,null,null,0,null,null,null,null,0,null,null,null,null,null,0]
[null,null,null,null,"2.4.5","Formation des personnes responsables des consultations.","Assistance technique",null,null,null,null,0,null,null,null,null,null,null,null,null,0,null,null,0,null,null,0,null,null,0,null,null,null,null,0,null,null,{"$f":"AJ55*AK55","v":0},{"$f":"(12*1*500)+ (12*2*1*80)+(12*1*2*50)","v":9120},9120,null,null,null,null,null,9120]
[null,null,2.5,"Amélioration de la procédure de réalisation des études d'impact obligatoires et des évaluations du respect de l'acquis. Meilleure prise en compte par la réglementation des politiques publiquesmenées dans le pays :","2.5.1","Analyse du degré de compréhension des impacts estimés des actes.","Assistance technique",null,null,null,null,0,null,null,null,null,null,null,null,null,0,40,350,14000,60,1200,72000,null,null,0,null,null,null,null,0,null,null,null,2000,88000,null,null,null,null,null,88000]
[null,null,null,null,"2.5.2","Loi sur l'AIR adoptée, rendant obligatoire l'analyse en question.","Pas de coût ",null,null,null,null,0,null,null,null,null,null,null,null,null,0,null,null,0,null,null,0,null,null,0,null,null,null,null,0,null,null,null,null,0,null,null,null,null,null,0]
[null,null,null,null,"2.5.3","et X AIR menées/essayées sous la loi adoptée (projets dans X institutions pour X questions). ","Assistance technique",null,null,null,null,0,null,null,null,null,null,null,null,null,0,100,350,35000,120,1200,144000,null,null,0,null,null,null,null,0,null,null,null,5000,184000,null,null,null,null,null,184000]
[null,null,2.6,"Amélioration des compétences des services chargés de la rédaction législative et des services centraux responsables du suivi :","2.6.1","Formation en rédaction législative pour les services centraux","Formation par l'EAAP",null,null,null,null,0,1,3,15,300,25,null,20,null,2325,5,350,1750,5,350,1750,null,null,0,null,null,null,null,0,null,null,{"$f":"AJ59*AK59","v":0},25000,30825,null,null,null,null,null,30825]
[null,null,null,null,"2.6.2","Formation en rédaction législative pour les ministères sectoriels","Formation par l'EAAP",null,null,null,null,0,2,3,20,null,25,null,20,65,4190,null,null,0,null,null,0,null,null,0,null,null,null,null,0,null,null,null,1000,5190,null,null,null,null,null,5190]
[null,null,null,null,"2.6.3","Formation en rédaction législative pour les institutions indépendantes","Formation par l'EAAP",null,null,null,null,0,1,3,20,null,25,null,20,65,2095,null,null,0,null,null,0,null,null,0,null,null,null,null,0,null,null,{"$f":"AJ61*AK61","v":0},1000,3095,null,null,null,null,null,3095]
[null,null,2.7,"Amélioration de la transparence de la publication de la législation :","2.7.1","Obligation (Instruction) du service officiel des publications de publier les lois consolidées.","Pas de coût ",null,null,null,null,0,null,null,null,null,null,null,null,null,0,null,null,0,null,null,0,null,null,0,null,null,null,null,0,null,null,{"$f":"AJ62*AK62","v":0},25000,25000,null,null,null,null,null,25000]
[null,null,null,null,"2.7.2","Chaque institution devra avoir posté les lois consolidées sur son site internet en 2015. ","Assistance technique locale pour saisir les actes dans 19 ministères (2 experts juridiques pour chaque ministère).  ",null,null,null,null,0,null,null,null,null,null,null,null,null,0,{"$f":"19*2*20","v":760},250,190000,null,null,0,null,null,0,null,null,null,null,0,null,null,{"$f":"AJ63*AK63","v":0},null,190000,null,null,null,null,null,190000]
[null,null,"Total Objectif 2",null,null,null,null,null,{"$f":"SUM(I43:I63)","v":0},{"$f":"SUM(J43:J63)","v":0},{"$f":"SUM(K43:K63)","v":0},{"$f":"SUM(L43:L63)","v":0},null,null,null,null,null,null,null,null,{"$f":"SUM(U43:U63)","v":8610},null,null,{"$f":"SUM(X43:X63)","v":274700},null,null,{"$f":"SUM(AA43:AA63)","v":343750},0,0,0,0,0,0,0,0,0,0,0,90120,717180,7500,0,0,0,0,709680]
["Objectif 3 : Création d'un système efficace de suivi et d'évaluation des stratégies, des programmes et du cadre juridique en vigueur, sur la base des éléments suivants : 1) recueil de données de façon neutre et transparente pour élaborer les stratégies, les programmes et les lois, et 2) préparation d'une analyse pour évaluer les impacts de la mise en oeuvre."]
[5,null,3.1,"Évaluation de la situation actuelle concernant le système de suivi et d'évaluation utilisé par le gouvernement, y compris l'institution chargée des ces fonctions, les ressources humaines disponibles et les nesoins en renforcement des compétences, la méthodologie utilisée et le cadre réglementaire en vigueur.","3.1.1","Analyse de l'évaluation de la situation actuelle concernant le suivi des stratégies sectorielles et transversales  ",null,"1 exp huaj + 1 exc lokal",null,null,null,{"$f":"I66*J66*K66","v":0},null,null,null,null,null,null,null,null,0,30,350,10500,{"$f":"5+10+20+5","v":40},1250,50000,null,null,0,null,null,null,null,0,null,null,{"$f":"AJ66*AK66","v":0},2000,62500,null,null,null,null,null,62500]
[null,null,null,null,"3.1.2","Examen de la base juridique permettant le suivi des stratégies sectorielles et transversales ",null,null,null,null,null,0,null,null,null,null,null,null,null,null,0,20,350,7000,40,1250,50000,null,null,0,null,null,null,null,0,null,null,{"$f":"AJ67*AK67","v":0},2000,59000,null,null,null,null,null,59000]
[null,null,null,null,"3.1.3","Analyse de l'évaluation de la situation existante en matière de suivi et d'évaluation (S &E) (structures et ressources humaines)","19 ministères sectoriels + CoM. 2 jours/ministère. 5 jours pour rédiger l'analyse + 2 jours pour ajouter les commentaires + 6(3+3) jours pour établir les rapports.  (approx. 60 jours de travail pour un expert étranger)",null,null,null,null,0,null,null,null,null,null,null,null,null,0,40,350,14000,60,1250,75000,null,null,0,null,null,null,null,0,null,null,null,2000,91000,null,null,null,null,null,91000]
[null,null,null,null,"3.1.4","Analyse de l'évaluation du cadre juridique actuel et de la méthodologie de S &E","1 expert étranger + 1 local",null,null,null,null,0,null,null,null,null,null,null,null,null,0,10,350,3500,30,1250,37500,null,null,0,null,null,null,null,0,null,null,null,1000,42000,null,null,null,null,null,42000]
[null,null,null,null,"3.1.5","Analyse de l'évaluation des besoins en formation pour les structures de S &E. ","19 ministères sectoriels + CoM. 1,5 jours/ministère. 5 jours pour rédiger l'analyse + 2 jours pour ajouter les commentaires + 10 jours de programme de formation + 3 jours pour établir les rapports.  (approx. 45 jours de travail pour un expert étranger) ",null,null,null,null,0,null,null,null,null,null,null,null,null,0,40,350,14000,45,1250,56250,null,null,0,null,null,null,null,0,null,null,null,2000,72250,null,null,null,null,null,72250]
[null,null,null,null,"3.1.6","Formation du personnel des Unités de suivi du Bureau du Premier ministre et des ministères sectoriels ","Cette activité ne peut être chiffrée qu'après l'achèvement du TNA",null,null,null,null,0,null,null,null,null,null,null,null,null,0,null,null,0,null,null,0,null,null,0,null,null,null,null,{"$f":"AG71*AH71","v":0},null,null,null,null,0,null,null,null,null,null,0]
[null,null,null,"Création et amélioration du système de suivi et d'évaluation du Gouvernement albanais par la réforme du cadre réglementaire en vigueur, une révision fonctionnelle des unités responsables du suivi et de l'évaluation dans les institutions centrales et le renforcement des compétences du personnel de ces institutions, mais aussi des unités centrales de suivi du Bureau du Premier ministre, par la mise en place d'un réseau de suivi et d'évaluation efficace.","3.1.7","Publication de rapports annuels des ministères sectoriels sur la mise en œuvre des stratégies sectorielles/transversales respectives, de la NSDI, ainsi que du DPFDDAE. "," ",null,null,null,null,0,null,null,null,null,null,null,null,null,0,null,null,{"$f":"V72*W72","v":0},null,null,{"$f":"Y72*Z72","v":0},{"$f":"30*200*3","v":18000},8,{"$f":"AB72*AC72","v":144000},null,null,null,null,0,null,null,null,null,{"$f":"L72+U72+X72+AA72+AD72+AI72+AL72+AM72+AE72+AF72","v":144000},null,null,null,null,null,144000]
[null,null,null,null,"3.1.8","Rédaction d'un nouveau cadre juridique pour le système de suivi et d'évaluation.",null,null,null,null,null,0,null,null,null,null,null,null,null,null,0,20,350,7000,50,1250,62500,null,null,0,null,null,null,null,0,null,null,null,null,69500,null,null,null,null,null,69500]
[null,null,null,null,"3.1.9","Révision des structures des ministères en vue de la mise en œuvre sur système de S & E ","Pas de coût ",null,null,null,null,0,null,null,null,null,null,null,null,null,0,null,null,0,null,null,0,null,null,0,null,null,null,null,0,null,null,null,null,0,null,null,null,null,null,0]
[null,null,null,null,"3.1.10","Mise en place d'un réseau de S & E et renforcement des compétences (formation) ","Formation selon l'évaluation des besoins en technologie (TNA)",null,null,null,null,0,null,null,null,null,null,null,null,null,0,null,null,0,null,null,0,null,null,0,null,null,null,null,0,null,null,null,null,0,null,null,null,null,null,0]
[null,null,3.2,"Elaboration de la méthodologie de suivi et d'évaluation :","3.2.1","Manuel sur le suivi des stratégies sectorielles/transversales (EMP) et Manuel de formation pour l'administration (FdF)",null,"rishikimi I kuadrit, metodologjise + hartimi dhe publikimi I manualit ",null,null,null,0,null,null,null,null,null,null,null,null,0,30,350,10500,40,1250,50000,null,null,0,null,null,null,null,0,null,null,{"$f":"AJ76*AK76","v":0},1000,61500,null,null,null,{"$f":"AN76","v":61500},null,0]
[null,null,null,null,"3.2.2","Renforcement des compétences du DPFDDAE concernant la rédaction des rapports de synthèse annuels sur la mise en œuvre du cadre stratégique (ToT) ",null,"Trajnime + Study Tour",null,null,null,0,1,2,10,350,25,50,20,null,2400,5,350,1750,5,1250,6250,null,null,0,null,null,null,null,0,null,null,null,1000,11400,null,null,null,{"$f":"AN77","v":11400},null,0]
[null,null,null,null,"3.2.3","Renforcement des compétences des ministères sectoriels pour établir les rapports EMP  ",null,"10 persona /ML=400 . Trajnim 2 ditor/ per 3 vjet",null,null,null,0,{"$f":"20*3","v":60},2,20,null,25,null,20,65,91800,null,null,0,null,null,0,null,null,0,null,null,null,null,0,null,null,null,1000,92800,null,null,null,null,null,92800]
[null,null,null,null,"3.2.4","Elabroation de la méthodologie de suivi et d'évaluation pour le Programme du gouvernement   ","1 expert étranger",null,null,null,null,0,1,2,4,null,25,null,20,null,280,null,null,0,50,1250,62500,200,10,2000,null,null,null,null,0,null,null,null,null,64780,null,null,null,null,null,64780]
[null,null,null,null,"3.2.5","Elabroation de la méthodologie de suivi et d'évaluation de la mise en application des lois","1 expert étranger",null,null,null,null,0,null,null,null,null,null,null,null,null,0,null,null,0,60,1250,75000,500,10,5000,null,null,null,null,0,null,null,{"$f":"AJ80*AK80","v":0},null,80000,null,null,null,null,null,80000]
[null,null,3.4,"Utilisation des sytèmes de suivi électronique par les institutions gouvernementales :","3.4.1","Système électronique de suivi de la mise en œuvre du Programme du gouvernement","Pas de coût ",null,null,null,null,0,null,null,null,null,null,null,null,null,0,null,null,null,null,null,0,null,null,0,null,null,null,null,0,null,null,{"$f":"AJ81*AK81","v":0},{"$f":"1800000/140","v":12857.142857142857},12857.142857142857,{"$f":"AN81","v":12857.142857142857},null,null,null,null,0]
[null,null,null,null,"3.4.2","Système électronique de suivi du flux d'information et de correspondance","NAIS",null,null,null,null,0,null,null,null,null,null,null,null,null,0,null,null,{"$f":"9137556/140","v":65268.257142857146},null,null,0,null,null,0,null,null,null,null,0,null,null,null,null,65268.257142857146,{"$f":"AN82","v":65268.257142857146},null,null,null,null,0]
[null,null,null,null,"3.4.3","Système d'actes électroniques (système de suivi du processus de rédaction législative) ","NAIS",null,null,null,null,0,null,null,null,null,null,null,null,null,0,null,null,0,null,null,0,null,null,0,null,null,null,null,0,null,null,null,{"$f":"1058400/140/3","v":2520},2520,{"$f":"AN83","v":2520},null,null,null,null,0]
[null,null,null,null,"3.4.4","Système électronique de suivi intégré \"The watchtower\" (\"La Tour de contrôle\"). ","Pas de coût ",null,null,null,null,0,null,null,null,null,null,null,null,null,0,null,null,0,null,null,0,null,null,0,null,null,null,null,0,null,null,null,null,0,null,null,null,null,null,0]
[null,null,null,null,"3.4.5",null,null,null,null,null,null,0,null,null,null,null,null,null,null,null,0,null,null,0,null,null,0,null,null,0,null,null,null,null,0,null,null,null,null,0,null,null,null,null,null,0]
[null,null,null,null,"3.4.6",null,null,null,null,null,null,0,null,null,null,null,null,null,null,null,0,null,null,0,null,null,0,null,null,0,null,null,null,null,0,null,null,{"$f":"AJ86*AK86","v":0},null,0,null,null,null,null,null,0]
[null,null,null,"Total Objectif 3 ",null,null,null,null,null,null,null,null,null,null,null,null,null,null,null,null,{"$f":"SUM(U66:U86)","v":94480},null,null,{"$f":"SUM(X66:X86)","v":133518.25714285715},null,null,525000,null,null,151000,0,0,0,0,0,0,0,0,27377.142857142855,931375.4,80645.400000000009,0,0,72900,0,777830]
[null,null,null,null,null,null,null,null,null,null,null,{"$f":"L42+L64+L87","v":259200},0,0,0,0,0,0,0,0,883515,0,0,2571218.2571428572,0,0,6506250,0,0,179500,0,250000,0,0,0,0,0,0,202897.14285714284,10852580.4,96145.400000000009,450000,0,372900,0,9933535]
[]
[]
[null,null,null,null,null,null,null,null,null,null,null,null,null,null,null,null,null,null,null,null,null,null,null,null,null,null,null,null,null,null,null,null,null,null,null,null,null,null,null,{"$f":"AO88+AP88+AQ88+AR88+AS88+AT88","v":10852580.4}]
[]
[]
[]
[null,null,null,null,null,null,null,null,null,null,null,null,null,null,null,null,null,null,null,null,null,null,null,null,null,null,null,null,null,null,null,null,null,null,null,null,null,null,null,null," "]

{"sheet":"Innovation","index":6,"n_rows":44,"n_cols":50,"rows_kept":44,"cut":false,"hidden":false,"merged":[[2,46,4,49],[3,1,6,2],[3,3,6,4],[3,7,4,10],[3,11,4,19],[4,20,4,22],[4,23,4,25],[4,31,4,33],[4,34,4,36],[5,40,5,43],[2,39,4,44],[2,38,6,38],[3,20,3,25],[2,37,6,37],[1,1,1,16],[2,0,2,4],[2,7,2,10],[2,11,2,28],[2,29,3,36],[3,0,6,0],[9,2,11,2],[4,6,6,6],[14,1,14,44],[15,2,16,2],[4,29,6,29],[4,30,6,30],[8,0,8,44],[9,1,11,1],[3,26,5,28],[30,2,32,2],[30,1,32,1],[19,2,20,2],[19,1,20,1],[22,1,24,1],[22,2,24,2],[25,1,26,1],[28,1,28,4],[25,2,26,2]]}
[]
[]
[null,null,null,null,null,null,null,"Dépenses de la catégorie économique \"Rémunérations et salaires\" : (Code 600-601)",null,null,null,"Dépenses de fournitures et de services  ",null,null,null,null,null,null,null,null,null,null,null,null,null,null,null,null,null,"Investissements ",null,null,null,null,null,null,null,"Autres dépenses ","Coût estimé de la réalisation","Sources de financement (par réalisation)",null,null,null,null,null,null,"Ndarja e buxhetit ne vite "]
["Numéro","Action",null,"Activités pour mener l'action",null,null,null,"Fonds de rémunération pour le personnel supplémentaire ",null,null,null,"Dépenses pour les conférences/séminaires et la formation   ",null,null,null,null,null,null,null,null,"Services de conseil divers (assistance technique)",null,null,null,null,null,"Dépenses d'information publique (publications)   "]
[null,null,null,null,null,null,"Activité avec/sans coût additionnel",null,null,null,null,null,null,null,null,null,null,null,null,null,"Expertise locale",null,null,"Expertise étrangère",null,null,null,null,null,"Immeubles","Développement de logiciels","Équipement informatique",null,null,"Office supplies "]
[null,null,null,null,null,null,null,null,null,null,null,null,null,null,null,null,null,null,null,null,null,null,null,null,null,null,null,null,null,null,null,null,null,null,null,null,null,null,null,null,"Contributions"]
[null,null,null,null,null,"Correspondance avec les nouveaux numéros des activités de la Stratégie de réforme transversale de l'administration publique ",null,"Nb","Salaire moyen","Mois","Valeur totale","Nb d'activités de formation/séminaires","Jour/activité","Participants à la formation","Location de salle/jour","Coût pour une personne (café/restauration)","Coût moyen d'hébergement/nuit ","Valeur matériel/personne","Honoraires du formateur/jour","Total","Jour/expert","Honoraires","Total ","Jour/expert","Honoraires","Total","Article/activité","Prix/valeur par unité","Total",null,null,"Pièce ","Prix moyen/unité","Valeur totale","Pièce","Prix moyen/unité","Valeur totale",null,null,"Budget de l'État (PBMT 2015-2017)","IAP","CdE","BM","PNUD","Écart financier",null,"Viti 2015","Viti 2016","Viti 2017","Viti 2018-2020"]
["a","c","d","e","f",null,null,1,2,3,4,5,6,7,8,9,10,11,12,13,14,15,16,17,18,19,20,21,22,23,24,25,26,27,28,29,30,31,32,33,34,35,36,37,38,null,47,48,49,50]
["Objectif 5 : Améliorer et concentrer les services publics en réduisant les causes de corruption et en renforçant une éthique civique pour la prestation des services publics."]
[null,5.0999999999999996,"Mise en place de centres de prestation de services sous la forme de guichets uniques :",null,"Stratégie de prestation des services publics ",5.0999999999999996,null,null,null,null,{"$f":"H10*I10*J10","v":0},null,null,null,null,null,null,null,null,{"$f":"(L10*M10*O10)+(L10*M10*N10*P10)+(L10*M10*N10*Q10)+(L10*N10*R10)+(L10*M10*S10)","v":0},null,null,{"$f":"U10*V10","v":0},null,null,286960,null,null,{"$f":"AA10*AB10","v":0},null,null,null,null,null,null,null,null,null,{"$f":"K10+T10+W10+Z10+AC10+AH10+AK10+AL10+AD10+AE10","v":286960},null,null,null,null,{"$f":"AM10","v":286960},{"$f":"AM10-AN10-AO10-AP10-AQ10-AR10","v":0},null,{"$f":"AM10*1","v":286960}]
[null,null,null,null,"Mise en place de l'ADISA (Agence pour la prestation de services intégrés) et ouverture de 4 centres pilotes  ",5.0999999999999996,null,81,680,24,{"$f":"I11*J11*H11","v":1321920},null,null,null,null,null,null,null,null,{"$f":"(L11*M11*O11)+(L11*M11*N11*P11)+(L11*M11*N11*Q11)+(L11*N11*R11)+(L11*M11*S11)","v":0},null,null,{"$f":"U11*V11","v":0},null,null,{"$f":"121536","v":121536},null,null,136728,282740,317015,null,null,131487,null,null,{"$f":"(30000*0.844)*2","v":50640},{"$f":"33760+716850+40934","v":791544},{"$f":"K11+T11+W11+Z11+AC11+AH11+AK11+AL11+AD11+AE11","v":3153610},{"$f":"K11+716850","v":2038770},null,null,485722,629118,{"$f":"AM11-AN11-AO11-AP11-AQ11-AR11","v":0},null,{"$f":"K11/2+341357+Z11+AD11+AE11+AH11+AK11","v":1905735},{"$f":"AM11-AU11","v":1247875},0.3]
[null,null,null,null,"Création des infrastructures physiques des guichets uniques et de leur fonctionnement ",5.0999999999999996,null,271,650,12,{"$f":"I12*J12*H12","v":2113800},null,null,null,null,null,null,null,null,0,null,null,0,null,null,{"$f":"X12*Y12","v":0},null,null,{"$f":"AA12*AB12","v":0},{"$f":"18000000","v":18000000},null,null,null,{"$f":"AF12*AG12","v":0},null,null,{"$f":"AI12*AJ12","v":0},2250800,{"$f":"K12+T12+W12+Z12+AC12+AH12+AK12+AL12+AD12+AE12","v":22364600},{"$f":"K12+3000000+AL12","v":7364600},null,null,{"$f":"AM12-AN12","v":15000000},null,0,null,{"$f":"AD12*0.02","v":360000},{"$f":"AD12*0.58","v":10440000},{"$f":"AL12+K12+AD12*0.4","v":11564600}]
[null,5.2,"Adaptation au modèle du guichet unique de la configuration des institutions qui fournissent des services publics :",null,"Changement des structures administratives sur la base de l'Étude pour la réorganisation des institutions publiques","Changement des structures administratives sur la base de l'Étude pour la réorganisation des institutions publiques",null,null,null,null,null,null,null,null,null,null,null,null,null,null,null,null,null,null,null,null,null,null,null,null,null,null,null,null,null,null,null,null,null," "]
[null,null,null,null,null,null,null,null,null,null,{"$f":"SUM(K10:K12)","v":3435720},0,0,0,0,0,0,0,0,0,0,0,0,0,0,408496,0,0,136728,18282740,317015,0,0,131487,0,0,50640,3042344,25805170,9403370,0,0,15485722,916078,0,0,2552695,11687875,11564600.300000001,0]
[null,"Objectif 8 : Procédure simplifiée pour la prestation des services par la promotion de la communication avec le public et l'évitement de la corruption."]
[1,8.1,"Restructuration des services publics comme mesure nécessaire pour la simplification des procédures administratives et la réduction du nombre de msures effectuées par les citoyens et le personnel de soutien :","8.1.1","Restructuration des services publics - Identification, évaluation et définition des procédures standard pour 300+ services publics",8.1,null,null,null,null,0,null,null,null,null,null,null,null,null,0,4500,350,1575000,3000,1250,{"$f":"X16*Y16","v":3750000},null,null,0,null,null,null,null,{"$f":"AF16*AG16","v":0},null,null,{"$f":"AI16*AJ16","v":0},500000,5825000,{"$f":"AM16*25.93%","v":1510422.4999999998},null,null,null,null,4314577.5,null,{"$f":"AM16*0.5","v":2912500},{"$f":"AM16*0.5","v":2912500}]
[null,null,null,"8.1.2","Rédaction de manuels pour la réglementation des procédures de service ;",8.1,null,null,null,null,0,null,null,null,null,null,null,null,null,0,300,350,105000,250,1250,312500,null,null,0,null,null,null,null,{"$f":"AF17*AG17","v":0},null,null,{"$f":"AI17*AJ17","v":0},20000,437500,{"$f":"AM17*25.93%","v":113443.74999999999},null,null,null,null,324056.25,null,null,{"$f":"AM17*0.6","v":262500},{"$f":"AM17*0.4","v":175000}]
[null,8.1999999999999993,"Réorganisation des services fournis par les guichets uniques en structurant les relations entre le guichet unique et le bureau de soutien.","8.2.1","Étude de faisabilité pour le modèle de services centrés sur les citoyens.","transversal",null,null,null,null,null,null,null,null,null,null,null,null,null,0,null,null,350000,null,null,1000000,null,null,0,null,null,null,null,null,null,null,null,null,1350000,{"$f":"1000000*(0.2+0.15)","v":350000},null,null,1000000,null,0,null,{"$f":"AM18*0.7","v":944999.99999999988},{"$f":"AM18*0.3","v":405000}]
[null,8.3000000000000007,"Décharger les institutions de l'administration publique de la fonction de prestation directe de services.","8.3.1","Mener l'étude sur la réorganisation des institutions publiques.","8.2 / 8.3 / 5.2",null,null,null,null,0,null,null,null,null,null,null,null,null,0,{"$f":"15*50","v":750},350,262500,{"$f":"15*45","v":675},1250,843750,null,null,0,null,null,null,null,{"$f":"AF19*AG19","v":0},null,null,{"$f":"AI19*AJ19","v":0},100000,1206250,{"$f":"AM19*25.93%","v":312780.62499999994},25992,null,null,null,867477.375,null,null,{"$f":"AM19*0.7","v":844375},{"$f":"AM19*0.3","v":361875}]
[null,8.4,"Examen général de la législation applicable à la prestation de services publics afin de refléter la restructuration des processus opérationnel dans le cadre réglementaire :","1.3.1","Achèvement de l'Étude sur la consolidation de l'analyse de la situation initiale (référence).",8.4,null,null,null,null,0,null,null,null,null,null,null,null,null,0,null,null,0,null,null,0,null,null,0,null,null,null,null,241152,null,null,0,null,241152,{"$f":"AM20*14.81%","v":35714.611199999999},null,null,null,null,205437.38880000002,null,{"$f":"AM20*1","v":241152}]
[null,null,null,"1.3.2","Identification des macro secteurs nécessitant des changements (Analyses des lacunes juridiques).",8.4,null,null,null,null,0,null,null,null,null,null,null,null,null,0,{"$f":"350*2.5","v":875},350,306250,150,1250,187500,null,null,0,null,null,null,null,{"$f":"AF21*AG21","v":0},null,null,0,90000,583750,null,null,null,{"$f":"AM21","v":583750},null,0,null,{"$f":"AM21*1","v":583750}]
[null,8.5,"Rédaction de manuels et des formulaires standard pour assurer le service d'une manière unifiée et codifiée.",1.4,"Formulaires de services unifiés et codifiés (services unifiés totalement codifiés en 2015, tous les services en 2017).",8.5,null,null,null,null,0,null,null,null,null,null,null,null,null,0,null,null,150000,null,null,0,null,null,0,null,null,null,null,0,null,null,0,null,150000,null,{"$f":"AM22","v":150000},null,null,null,0,null,{"$f":"AM22*1","v":150000}]
[null,8.6,"Garantir la valeur légale des documents électroniques imprimés.","1.3.3","Propositions de modifications juridiques et administratives.",8.6,null,null,null,null,0,null,null,null,null,null,null,null,null,0,{"$f":"350*2.5","v":875},350,306250,{"$f":"300*2","v":600},1250,750000,null,null,0,null,null,null,null,0,null,null,0,40000,1096250,null,{"$f":"AM23","v":1096250},null,null,null,0,null,{"$f":"AM23*1","v":1096250}]
[null,null,null,"1.3.4","Validation des modifications apportées au cadre juridique",8.6,"Sans coût additionnel",null,null,null,0,null,null,null,null,null,null,null,null,0,null,null,0,null,null,0,null,null,0,null,null,null,null,0,null,null,0,null,0,{"$f":"AM24*14.81%","v":0},null,null,null,null,0,null,null,{"$f":"AM24*1","v":0}]
[null,null,null,"1.3.5","Finalisation des modifications institutionnelles et administratives",8.6,"Sans coût additionnel",null,null,null,0,null,null,null,null,null,null,null,null,0,null,null,0,null,null,0,null,null,0,null,null,null,null,0,null,null,0,null,0,{"$f":"AM25*14.81%","v":0},null,null,null,null,0,null,null,{"$f":"AM25*1","v":0}]
[null,8.6999999999999993,"Renforcement des compétences du personnel impliqué dans la restructuration des procédures et dans la prestation de services publics.","1.4.1","Préparation de programmes de formation.",8.6999999999999993,null,null,null,null,0,null,null,null,null,null,null,null,null,0,20,300,6000,null,null,0,null,null,0,null,null,null,null,0,null,null,0,null,6000,null,null,null,null,null,6000,null,null,null,{"$f":"AM26","v":6000}]
[null,null,null,"1.4.2"," Sessions de formation générale  (2017)",8.6999999999999993,"300 personnes",null,null,null,0,15,3,20,350,25,30,20,65,74175,null,null,0,null,null,0,null,null,0,null,null,null,null,0,null,null,0,null,74175,null,null,null,null,null,74175,null,null,null,{"$f":"AM27*1","v":74175}]
[null,null,null,null,null,null,null,null,null,null,{"$f":"SUM(K15:K27)","v":0},null,null,null,null,null,null,null,null,{"$f":"SUM(T15:T27)","v":74175},null,null,3061000,null,null,6843750,0,0,0,0,0,0,0,241152,0,0,0,750000,10970077,2322361.4861999997,1272242,0,1583750,0,5791723.5137999998,null,5928652,4424375,617050,0]
[null,"Objectif 9 : Développement d'une infrastructure de TIC capable de soutenir les activités quotidiennes de l'administration publique et les augmentations de rendement en réduisant le délai pour accéder aux informations, les traiter et les transmettre tout en améliorant le flux d'informations.",null,null,null,null,null,null,null,null,0,null,null,null,null,null,null,null,null,0,null,null,0,null,null,0,null,null,0,null,null,null,null,null,null,null,null,null,0,null,null,null,null,null,0]
[null,9.1,"9.1. Numérisation des registres principaux.","1.2.1","Étude de l'analyse de la situation des principaux registres ",9.1,null,null,null,null,0,null,null,null,null,null,null,null,null,0,400,300,120000,80,1000,80000,null,null,0,null,null,null,null,{"$f":"AF30*AG30","v":0},null,null,{"$f":"AI30*AJ30","v":0},null,200000,null,null,null,null,null,200000,null,{"$f":"AM30*1","v":200000}]
[null,9.1999999999999993," 9.2. Élaboration et utilisation d'un système intégré de TIC (fondé sur les exigences du processus de restructuration des services) ;","1.2.2","Préparation d'un système intégré de TIC (fondé sur les exigences du processus de restructuration des services) ;",9.1999999999999993,null,null,null,null,0,null,null,null,null,null,null,null,null,0,null,null,0,null,null,0,null,null,0,null,1350000,null,null,{"$f":"AF31*AG31","v":0},null,null,{"$f":"AI31*AJ31","v":0},null,1350000,350000,null,null,null,null,1000000,null,{"$f":"AM31*0.2","v":270000},{"$f":"AM31*0.8","v":1080000}]
[null,null,null,"1.2.3","Développement et consolidation du système ; Documents pour la formation des utilisateurs ; ",9.1999999999999993,null,null,null,null,0,null,null,null,null,null,null,null,null,0,null,null,0,60,350,21000,200,1250,250000,null,6750000,null,null,4800000,null,null,{"$f":"AI32*AJ32","v":0},null,11821000,{"$f":"750000+800000","v":1550000},null,null,null,null,10271000,null,null,{"$f":"AM32*0.8","v":9456800},{"$f":"AM32*0.2","v":2364200}]
[null,null,null,"1.4.3","Sessions de formaiton pour les utilisateurs du système de TIC (2017)",9.1999999999999993,"300 personnes",null,null,null,0,15,3,20,350,25,30,20,65,{"$f":"(L33*M33*O33)+(L33*M33*N33*P33)+(L33*M33*N33*Q33)+(L33*N33*R33)+(L33*M33*S33)+51906","v":126081},null,null,0,null,null,0,null,null,0,null,null,null,null,{"$f":"AF33*AG33","v":0},null,null,{"$f":"AI33*AJ33","v":0},null,126081,74175,null,null,51906,null,0,null,null,null,{"$f":"AM33*1","v":126081}]
[null,9.3000000000000007,"9.3. Création d'un mécanisme pour que les citoyens qui contrôleront la qualité des services fournissent directement leur opinion par SMS, pour les destinaitaires du service uniquement :","1.2.8","Élaboration d'un système permettant de rapporter les réactions des citoyens et de suivre les plaintes pour toutes les catégories de services fournis par l'administration.  ",9.3000000000000007,null,null,null,null,0,null,null,null,null,null,null,null,null,0,null,null,0,null,null,0,null,null,0,null,{"$f":"250000*0.844","v":211000},null,null,{"$f":"AF34*AG34","v":0},null,null,{"$f":"AI34*AJ34","v":0},null,211000,null,null,null,{"$f":"AM34","v":211000},null,0,null,{"$f":"AM34*1","v":211000}]
[null,null,null,null,null,null,null,null,null,null,{"$f":"SUM(K29:K34)","v":0},{"$f":"SUM(L29:L34)","v":15},3,20,350,25,30,20,65,126081,400,300,120000,140,1350,101000,200,1250,250000,0,8311000,0,0,4800000,0,0,0,0,13708081,1974175,0,0,262906,0,11471000,null,681000,10536800,2490281,0]
[null,null,null,null,null,null,null,null,null,null,{"$f":"K14+K28+K35","v":3435720},null,null,null,null,null,null,null,null,{"$f":"T14+T28+T35","v":200256},null,null,3181000,null,null,7353246,null,null,386728,18282740,8628015,0,0,5172639,0,0,50640,3792344,50483328,13699906.486199999,1272242,0,17332378,916078,17262723.513799999,null,9162347,26649050,14671931.300000001,0]
[null,null,null,null,null,null,null,null,null,null,null,null,null,null,null,null,null,null,null,null,null,null,null,null,null,null,null,null,null,null,null,null,null,null,null,null,null,null,{"$f":"AM41-AM36","v":360600.57142857462}]
[null,null,null,null,null,null,null,null,null,null,null,null,null,null,null,null,null,null,null,null,null,null,null,null,null,null,null,null,null,null,null,null,null,{"$f":"K36+T36+W36+Z36+AC36+AD36+AE36+AH36+AK36+AL36","v":50483328},null,null,"Total according to MIPA estimation",null,44400000,9400000,2000000,null,26520000,916077.6,{"$f":"AM41-AN40-AO38-AQ38-AR38","v":5563922.4000000004},null,{"$f":"AS36-AS38","v":11698801.113799999}]
[null,null,null,null,null,null,null,null,null,null,null,null,null,null,null,null,null,null,null,null,null,null,null,null,null,null,null,null,null,null,null,null,null,null,null,null,null,"Salaries",{"$f":"[1]Sheet2!I25","v":3476278.5714285714},6443928.5714285709]
[null,null,null,null,null,null,null,null,null,null,null,null,null,null,null,null,null,null,null,null,null,null,null,null,null,null,null,null,null,null,null,null,null,{"$f":"AM36-AH38","v":0},null,null,null,"Maintenance",{"$f":"[1]Sheet2!I26","v":2967650},{"$f":"AN38+AN39","v":15843928.571428571}]
[null,null,null,null,null,null,null,null,null,null,null,null,null,null,null,null,null,null,null,null,null,null,null,null,null,null,null,null,null,null,null,null,null,null,null,null,null,null,{"$f":"SUM(AM38:AM40)","v":50843928.571428575}]
[]
[null,null,null,null,null,null,null,null,null,null,null,null,null,null,null,null,null,null,null,null,null,null,null,null,null,null,null,null,null,null,null,null,null,null,null,null,null,null,"Difference",{"$f":"AN40-AN36","v":2144022.0852285717},{"$f":"AO38-AO36","v":727758},{"$f":"AP38-AP36","v":0},{"$f":"AQ38-AQ36","v":9187622},{"$f":"AR38-AR36","v":-0.40000000002328306},{"$f":"AS38-AS36","v":-11698801.113799999}]
[null,null,null,null,null,null,null,null,null,null,null,null,null,null,null,null,null,null,null,null,null,null,null,null,null,null,null,null,null,null,null,null,null,null,null,null,null,null,null," "]

{"sheet":"Décentralisation ","index":7,"n_rows":18,"n_cols":44,"rows_kept":18,"cut":false,"hidden":false,"merged":[[13,0,13,4],[4,29,5,29],[4,30,4,32],[4,33,4,35],[7,0,7,4],[8,0,11,0],[8,1,11,1],[8,2,11,2],[4,5,5,5],[4,19,4,21],[2,37,5,37],[2,38,4,43],[3,0,5,0],[3,1,5,2],[3,3,5,4],[3,6,4,9],[3,10,4,18],[3,19,3,24],[3,25,4,27],[2,36,5,36],[4,22,4,24],[4,28,5,28],[1,1,1,15],[2,0,2,4],[2,6,2,9],[2,10,2,27],[2,28,3,35]]}
[]
[null,"Stratégie transversale de réforme de l'administration publique- Tableau de chiffrage des activités liées à la décentralisation"]
[null,null,null,null,null,null,"Dépenses de la catégorie économique \"Rémunérations et salaires\" : (Code 600-601)",null,null,null,null,null,null,null,null,null,null,null,null,null,null,null,null,null,null,null,null,null,"Investissements ",null,null,null,null,null,null,null,"Autres dépenses","Coût estimé de la réalisation ","Sources de financement (par réalisation)"]
["Numéro ","Action",null,"Indicateurs de réalisation",null,null,"Fonds de rémunération pour le personnel supplémentaire ",null,null,null,"Dépenses pour les conférences/séminaires et la formation   ",null,null,null,null,null,null,null,null,"Services de conseil divers (assistance technique)",null,null,null,null,null,"Dépenses d'information publique (publications)  "]
[null,null,null,null,null,"Activité avec/sans coût additionnel",null,null,null,null,null,null,null,null,null,null,null,null,null,"Expertise locale",null,null,"Expertise étrangère",null,null,null,null,null,"Immeubles","Développement de logiciels","Équipement informatique",null,null,"Fournitures de bureau "]
[null,null,null,null,null,null,"Nb","Salaire moyen","Mois","Valeur totale","Nb d'activités de formation/séminaires","Jour/activité","Participants à la formation","Location de salle/jour","Coût pour une personne (café/restauration)","Coût moyen d'hébergement/nuit ","Valeur matériel/personne",null,"Valeur totale","Jour/expert","Honoraires","Total ","Jour/expert","Honoraires","Total","Article/activité","Prix/valeur par unité","Total",null,null,"Pièce ","Prix moyen/unité","Valeur totale","Pièce","Prix moyen/unité","Valeur totale",null,null,"Budget de l'État (PBMT 2015-2017)","IAP","CDE","BM","UNDP","Écart budgétaire"]
["a","c","d","e","f",null,1,2,3,4,5,6,7,8,9,10,11,12,13,14,15,16,17,18,19,20,21,22,23,24,25,26,27,28,29,30,31,32,33,34,35,36,37,38]
["Objectif 4 : Renforcer les structures de l'administration publique afin d'améliorer la prestation de services au public.\n"]
[null,4.3,"Soutien méthodologique à l'organisation et au fonctionnement des nouvelles entités administratives du pays et renforcement des compétences concernant la mise en œuvre.","4.3.1","Préparation de la liste des fonctions des Unités gouvernementales locales (UGL), du modèle structurel de l'organisation des municipalités, de la classification des postes et de la mise en oeuvre d'un programme de formation pour les UGL (IAP A 1.6)","61 nouvelles UGL x 3 employés = 180 personnes à former.",null,null,null,{"$f":"G9*H9*I9","v":0},9,3,20,250,20,30,20,null,{"$f":"(K9*L9*N9)+(K9*L9*M9*O9)+(K9*L9*M9*P9)+(K9*M9*Q9)+(K9*L9*R9)","v":37350},null,null,50000," ",null,{"$f":"300000-S9","v":262650},null,null,{"$f":"Z9*AA9","v":0},null,null,null,null,{"$f":"AE9*AF9","v":0},null,null,{"$f":"AH9*AI9","v":0},null,{"$f":"J9+S9+V9+Y9+AB9+AG9+AJ9+AK9+AC9+AD9","v":350000},null,300000,50000,null,null,{"$f":"AL9-AM9-AN9-AO9-AP9-AQ9","v":0}]
[null,null,null,"4.3.2","Conception du modèle du nouveau dispositif des UGL et aide à la mise en place des nouveaux dispositifs (assistance pratique).\n","CdE au total 250 000",null,null,null,null,null,null,null,null,null,null,null,null,{"$f":"(K10*L10*N10)+(K10*L10*M10*O10)+(K10*L10*M10*P10)+(K10*M10*Q10)+(K10*L10*R10)","v":0},null,null,null,null,null,200000,null,null,null,null,null,null,null,null,null,null,null,null,200000,null,null,200000,null,null,0]
[null,null,null,"4.3.3","Renforcement des compétences des unités de gestion des ressources humaines des nouvelles municipalités (15 000 euros).","61 municipalités x 2 personnes dans chaque municipalité = 122 personnes au total",null,null,null,null,6,5,20,250,20,30,20,null,{"$f":"(K11*L11*N11)+(K11*L11*M11*O11)+(K11*L11*M11*P11)+(K11*M11*Q11)+(K11*L11*R11)","v":39900},null,null,null,null,null,null,null,null,null,null,null,null,null,null,null,null,null,null,39900,null,null,15000,null,null,24900]
[null,null,null,"4.3.4","Standardisation des procédures de gestion des RH dans toutes les UGL (IAP A 1.2)",null,null,null,null,{"$f":"G12*H12*I12","v":0},null,null,null,null,null,null,null,null,{"$f":"(K12*L12*N12)+(K12*L12*M12*O12)+(K12*L12*M12*P12)+(K12*M12*Q12)+(K12*L12*R12)","v":0},null,null,50000,null,null,50000,null,null,{"$f":"Z12*AA12","v":0},null,null,null,null,100000,null,null,{"$f":"AH12*AI12","v":0},null,200000,null,200000,null,null,null,0]
[null,null,null,null,null,null,null,null,null,{"$f":"SUM(J9:J12)","v":0},15,8,40,500,40,60,40,0,77250,0,0,100000,0,0,512650,0,0,0,0,0,0,0,100000,0,0,0,0,789900,0,500000,265000,0,0,24900]
["Objectif 5 : Améliorer et concentrer les services publics en réduisant les causes de corruption et en renforçant une éthique civique pour la prestation des services publics.\n"]
[5,5.3,"Mise en place de guichets uniques pour les services administratifs au niveau local. ",null,"61 municipalités, 322 unités locales.",null,null,null,null,{"$f":"G15*H15*I15","v":0},null,null,null,null,null,null,null,null,{"$f":"322*500","v":161000},null,null,{"$f":"T15*U15","v":0},null,null,{"$f":"W15*X15","v":0},null,null,{"$f":"Z15*AA15","v":0},{"$f":"322*15000","v":4830000},{"$f":"(61*20000)+(322*1000)","v":1542000},322,2500,{"$f":"AE15*AF15","v":805000},null,null,{"$f":"AH15*AI15","v":0},null,7338000,4300000,null,null,null,null,3038000]
[null,null,null,null,null,null,null,null,null,{"$f":"J13+J15","v":0},{"$f":"K13+K15","v":15},8,40,500,40,60,40,0,238250,0,0,100000,0,0,512650,0,0,0,4830000,1542000,322,2500,905000,0,0,0,0,8127900,4300000,500000,265000,0,0,3062900]
[]
[null,null,null,null,null,null,null,null,null,null,null,null,null,null,null,null,null,null,null,null,null,null,null,null,null,null,null,null,null,null,null,null,null,null,null,null,null,{"$f":"AM16+AN16+AO16+AP16+AQ16+AR16","v":8127900}]

{"sheet":"Transparence & Anti-corruption ","index":8,"n_rows":28,"n_cols":44,"rows_kept":28,"cut":false,"hidden":false,"merged":[[20,1,20,43],[8,1,9,1],[8,2,9,2],[3,19,3,24],[3,25,4,27],[2,36,5,36],[17,1,18,1],[17,2,18,2],[1,1,1,15],[2,0,2,4],[2,6,2,9],[2,10,2,27],[4,30,4,32],[2,28,3,35],[4,19,4,21],[4,22,4,24],[4,5,5,5],[4,29,5,29],[3,1,5,2],[16,0,18,0],[7,0,7,43],[11,0,11,43],[2,37,5,37],[2,38,4,43],[3,3,5,4],[8,0,9,0],[12,1,13,1],[12,2,13,2],[15,1,15,4],[3,0,5,0],[4,33,4,35],[3,6,4,9],[3,10,4,18],[4,28,5,28],[12,0,13,0]]}
[]
[]
[null,null,null,null,null,null,"Dépenses de la catégorie économique \"Rémunérations et salaires\" : (Code 600-601)",null,null,null,null,null,null,null,null,null,null,null,null,null,null,null,null,null,null,null,null,null,"Investissements ",null,null,null,null,null,null,null,"Autres dépenses","Coût estimé de la réalisation ","Sources de financement (par réalisation)"]
["Numéro ","Action",null,"Indicateurs de réalisation",null,null,"Fonds de rémunération pour le personnel supplémentaire ",null,null,null,"Dépenses pour les conférences/séminaires et la formation   ",null,null,null,null,null,null,null,null,"Services de conseil divers (assistance technique)",null,null,null,null,null,"Dépenses d'information publique (publications)  "]
[null,null,null,null,null,"Activité avec/sans coût additionnel",null,null,null,null,null,null,null,null,null,null,null,null,null,"Expertise locale",null,null,"Expertise étrangère",null,null,null,null,null,"Immeubles","Développement de logiciels","Équipement informatique",null,null,"Fournitures de bureau "]
[null,null,null,null,null,null,"Nb","Salaire moyen","Mois","Valeur totale","Nb d'activités de formation/séminaires","Jour/activité","Participants à la formation","Location de salle/jour","Coût pour une personne (café/restauration)","Coût moyen d'hébergement/nuit ","Valeur matériel/personne",null,"Valeur totale","Jour/expert","Honoraires","Total ","Jour/expert","Honoraires","Total","Article/activité","Prix/valeur par unité","Total",null,null,"Pièce ","Prix moyen/unité","Valeur totale","Pièce","Prix moyen/unité","Valeur totale",null,null,"Budget de l'État (PBMT 2015-2017)","IAP","CDE","BM","UNDP","Écart budgétaire"]
["a","c","d","e","f",null,1,2,3,4,5,6,7,8,9,10,11,12,13,14,15,16,17,18,19,20,21,22,23,24,25,26,27,28,29,30,31,32,33,34,35,36,37,38]
["Objectif 2 : Système transparent et exhaustif de rédaction législative, fondé sur les politiques publiques et garantissant la conformité avec l'acquis communautaire."]
[2,2.2999999999999998,"Evaluation systématique des failles législatives facilitant la corruption (protection contre la corruption).","2.3.1","Intégration du manuel sur la prévention de la corruption.","Pas de coût",null,null,null,{"$f":"G9*H9*I9","v":0},null,null,null,null,null,null,null,null,{"$f":"(K9*L9*N9)+(K9*L9*M9*O9)+(K9*L9*M9*P9)+(K9*M9*Q9)+(K9*L9*R9)","v":0},null,null,{"$f":"T9*U9","v":0},null,null,null,null,null,null,null,null,null,null,null,null,null,null,null,{"$f":"J9+S9+V9+Y9+AB9+AG9+AJ9+AK9+AC9+AD9","v":0},null,null,null,null,null,{"$f":"AL9-AM9-AN9-AO9-AP9-AQ9","v":0}]
[null,null,null,"2.3.2","Elaboration d'une méthodologie d'analyse de la législation aux fins de détecter les failles facilitant la corruption.","Manuel et voyage d'études pour 8 personnes, et formation pour environ 20 ministères + Parlement + Bureau du Président (environ 45 au total).",null,null,null,0,2,2,25,300,20,null,25,null,4450,10,350,3500,45,1250,{"$f":"W10*X10","v":56250},null,null,null,null,null,null,null,null,null,null,null,{"$f":"(8*500)+ (8*5*80)+(3*5*50)","v":7950},72150,null,null,null,null,null,{"$f":"AL10-AM10-AN10-AO10-AP10-AQ10","v":72150}]
[null,null,null,null,null,null,null,null,null,{"$f":"SUM(J8:J10)","v":0},null,null,null,null,null,null,null,null,{"$f":"SUM(S8:S10)","v":4450},null,null,3500,null,null,56250,0,0,0,0,0,0,0,0,0,0,0,7950,72150,0,0,0,0,0,72150]
[" Objectif 6 : Amélioration des capacités de mise en œuvre de la législation sur la fonction publique et simplification des procédures d'application.\n"]
[null,"6.5.1","Utilisation systématique des procédures de contrôle de laprobité (contrôle de l'intégrité).  ","6.5.1.1","Révision de l'examen d'admission pendant le recrutement pour y inclure des questions spécifiques concernant l'évaluation de la probité.","Pas de coût (à inclure dans le coût de l'examen)",null,null,null,0,null,null,null,null,null,null,null,null,0,null,null,null,null,null,null,null,null,null,null,null,null,null,null,null,null,null,null,0,null,null,null,null,null,{"$f":"AL13-AM13-AN13-AO13-AP13-AQ13","v":0}]
[null,null,null,"6.5.1.2","Évaluation de la probité lors de l'évaluation annuelle de performance.","Pas de coût",null,null,null,0,null,null,null,null,null,null,null,null,0,null,null,0,null,null,null,null,null,null,null,null,null,null,null,null,null,null,null,0,null,null,null,null,null,{"$f":"AL14-AM14-AN14-AO14-AP14-AQ14","v":0}]
[null,null,null,null,null,null,null,null,null,{"$f":"SUM(J12:J14)","v":0},null,null,null,null,null,null,null,null,{"$f":"SUM(S12:S14)","v":0},0,0,0,0,0,0,0,0,0,0,0,0,0,0,0,0,0,0,0,0,0,0,0,0,0]
[null,"Objectif 10 : Renforcement de l'efficience et de la responsabilité des fonctionnaires."]
[10,10.1,"Préparation d'un large programme de formation sur le nouveau Code de procédure administrative :","10.1.1","Mise en œuvre du programme de renforcement des compétences pour les ministères sectoriels et les UGL, en ce qui concerne l'application du Code de procédure administrative (IAP A.1.1)","700000 TA",null,null,null,{"$f":"G17*H17*I17","v":0},null,null,null,null,null,null,null,null,{"$f":"(K17*L17*N17)+(K17*L17*M17*O17)+(K17*L17*M17*P17)+(K17*M17*Q17)+(K17*L17*R17)","v":0},null,null,{"$f":"T17*U17","v":0},null,null,{"$f":"700000-AD17","v":226000},null,null,{"$f":"Z17*AA17","v":0},null,{"$f":"700000-226000","v":474000},null,null,{"$f":"AE17*AF17","v":0},null,null,{"$f":"AH17*AI17","v":0},null,{"$f":"J17+S17+V17+Y17+AB17+AG17+AJ17+AK17+AC17+AD17","v":700000},null,{"$f":"AL17","v":700000},null,null,null,{"$f":"AL17-AM17-AN17-AO17-AP17-AQ17","v":0}]
[null,10.199999999999999,"10.2. Généraliser les délégations de compétences aux institutions, afin d'accroître la responsabilité des fonctionnaires :","10.2.1","Développement des projets pilotes de délégation de prise de décisions.",null,null,null,null,{"$f":"G18*H18*I18","v":0},null,null,null,null,null,null,null,null,{"$f":"(K18*L18*N18)+(K18*L18*M18*O18)+(K18*L18*M18*P18)+(K18*M18*Q18)+(K18*L18*R18)","v":0},null,null,{"$f":"T18*U18","v":0},null,null,{"$f":"W18*X18","v":0},null,null,{"$f":"Z18*AA18","v":0},null,null,null,null,{"$f":"AE18*AF18","v":0},null,null,{"$f":"AH18*AI18","v":0},2000000,{"$f":"J18+S18+V18+Y18+AB18+AG18+AJ18+AK18+AC18+AD18","v":2000000},null,null,null,null,null,{"$f":"AL18-AM18-AN18-AO18-AP18-AQ18","v":2000000}]
[null,null,null,"10.2.2","Étendre le processus de délégation à l'intégralité de l'administration publique.","L'estimation réelle du coût aura lieu après l'achèvement des projets pilotes. Le coût fixé n'est qu'indicatif.",null,null,null,{"$f":"G19*H19*I19","v":0},null,null,null,null,null,null,null,null,{"$f":"(K19*L19*N19)+(K19*L19*M19*O19)+(K19*L19*M19*P19)+(K19*M19*Q19)+(K19*L19*R19)","v":0},null,null,{"$f":"T19*U19","v":0},null,null,{"$f":"W19*X19","v":0},null,null,{"$f":"Z19*AA19","v":0},null,null,null,null,{"$f":"AE19*AF19","v":0},null,null,{"$f":"AH19*AI19","v":0},null,{"$f":"J19+S19+V19+Y19+AB19+AG19+AJ19+AK19+AC19+AD19","v":0},null,null,null,null,null,{"$f":"AL19-AM19-AN19-AO19-AP19-AQ19","v":0}]
[null,null,null,null,null,null,null,null,null,{"$f":"SUM(J17:J19)","v":0},null,null,null,null,null,null,null,null,{"$f":"SUM(S17:S19)","v":0},null,null,{"$f":"SUM(V17:V19)","v":0},null,null,{"$f":"SUM(Y17:Y19)","v":226000},null,null,{"$f":"SUM(AB17:AB19)","v":0},{"$f":"SUM(AC17:AC19)","v":0},{"$f":"SUM(AD17:AD19)","v":474000},null,null,{"$f":"SUM(AG17:AG19)","v":0},null,null,{"$f":"SUM(AJ17:AJ19)","v":0},2000000,2700000,0,700000,0,0,0,2000000]
[null,"Objectif 11 : Renforcement du contrôle sur les activités de l'admnistration publique, garantissant le droit des citoyens et l'accès à l'information. "]
[null,11.1,"Mise en œuvre du programme de transparence institutionnelle par les autorités publiques.","11.1.1",null,"PAS DE COÛT",null,null,null,null,null,null,null,null,null,null,null,null,null,null,null,null,null,null,null,null,null,null,null,null,null,null,null,null,null,null,null,{"$f":"J22+S22+V22+Y22+AB22+AG22+AJ22+AK22+AC22+AD22","v":0},null,null,null,null,null,{"$f":"AL22-AM22-AN22-AO22-AP22-AQ22","v":0}]
[null,11.2,"Utilisation des TIC pour renforcer la transparence des activités de l'administration.","11.2.1",null,"PAS DE COÛT",null,null,null,null,null,null,null,null,null,null,null,null,null,null,null,null,null,null,null,null,null,null,null,null,null,null,null,null,null,null,null,{"$f":"J23+S23+V23+Y23+AB23+AG23+AJ23+AK23+AC23+AD23","v":0},null,null,null,null,null,{"$f":"AL23-AM23-AN23-AO23-AP23-AQ23","v":0}]
[null,11.3,"Élaboration d'un mécanisme d'évaluationpour contrôler la mise en application cohérente et homogène des normes dans l'administration publique.","11.3.1","Développement d'un programme de contrôle de l'application des normes (IAP A.2.1)",null,null,null,null,null,null,null,null,null,null,null,null,null,null,null,null,200000,null,null,null,null,null,null,null,200000,null,null,200000,null,null,null,null,{"$f":"J24+S24+V24+Y24+AB24+AG24+AJ24+AK24+AC24+AD24","v":600000},null,600000,null,null,null,{"$f":"AL24-AM24-AN24-AO24-AP24-AQ24","v":0}]
[null,null,null,null,null,null,null,null,null,{"$f":"SUM(J22:J24)","v":0},{"$f":"SUM(K22:K24)","v":0},0,0,0,0,0,0,0,0,0,0,200000,0,0,0,0,0,0,0,200000,0,0,200000,0,0,0,0,600000,0,600000,0,0,0,0]
[null,null,null,null,null,null,null,null,null,{"$f":"J11+J15+J20+J25","v":0},0,0,0,0,0,0,0,0,4450,0,0,203500,0,0,282250,0,0,0,0,674000,0,0,200000,0,0,0,2007950,3372150,0,1300000,0,0,0,2072150]
[]
[null,null,null,null,null,null,null,null,null,null,null,null,null,null,null,null,null,null,null,null,null,null,null,null,null,null,null,null,null,null,null,null,null,null,null,null,null,{"$f":"AM26+AN26+AO26+AP26+AQ26+AR26","v":3372150}]